Workbook

Sheet Skriveni (hidden)
A1: VP | B1: AOP | C1: IZNOS01 | D1: IZNOS02 | E1: IZNOS03 | F1: IZNOS04 | G1: KONTRBR | H1: RAZLIKA | I1: RAZLIKA1 | J1: POLJE | K1: TEKST | L1: BROJ
A2: 151 | B2: =PRRAS!C12 -> 1 | C2: =PRRAS!D12 -> 7377585 | D2: =PRRAS!E12 -> 7821214 | G2: =(B2/1000)*(C2*1+D2*2) -> 23020.013 | H2: =ABS(C2-ROUND(C2,0))+ABS(D2-ROUND(D2,0)) -> 0 | I2: 0 | J2: VP151 | K2: =RefStr!B25 -> DA | L2: =IF(RefStr!B25="DA",1,0) -> 1
A3: 151 | B3: =PRRAS!C13 -> 2 | C3: =PRRAS!D13 -> 0 | D3: =PRRAS!E13 -> 0 | E3: 0 | F3: 0 | G3: 0 | H3: 0 | I3: 0 | J3: VP152 | K3: =RefStr!B27 -> DA | L3: =IF(RefStr!B27="DA",1,0) -> 1
A4: 151 | B4: =PRRAS!C14 -> 3 | C4: =PRRAS!D14 -> 0 | D4: =PRRAS!E14 -> 0 | E4: 0 | F4: 0 | G4: 0 | H4: 0 | I4: 0 | J4: VP154 | K4: =RefStr!B29 -> DA | L4: =IF(RefStr!B29="DA",1,0) -> 1
A5: 151 | B5: =PRRAS!C15 -> 4 | C5: =PRRAS!D15 -> 0 | D5: =PRRAS!E15 -> 0 | E5: 0 | F5: 0 | G5: 0 | H5: 0 | I5: 0 | J5: VP156 | K5: =IF(RefStr!B31<>"",RefStr!B31, "NE") -> DA | L5: =IF(RefStr!B31="DA",1,0) -> 1
A6: 151 | B6: =PRRAS!C16 -> 5 | C6: =PRRAS!D16 -> 0 | D6: =PRRAS!E16 -> 0 | E6: 0 | F6: 0 | G6: 0 | H6: 0 | I6: 0 | J6: VP159 | K6: =RefStr!B33 -> DA | L6: 0
A7: 151 | B7: =PRRAS!C17 -> 6 | C7: =PRRAS!D17 -> 0 | D7: =PRRAS!E17 -> 0 | E7: 0 | F7: 0 | G7: 0 | H7: 0 | I7: 0 | J7: RAZDOBLJE | K7: =TRIM(RefStr!F6) -> 2017-12 | L7: =IF(RefStr!F6<>0,100*INT(VALUE(MID(RefStr!F6,1,4)))+INT(VALUE(MID(RefStr!F6,6,2))), 0) -> 201712
A8: 151 | B8: =PRRAS!C18 -> 7 | C8: =PRRAS!D18 -> 0 | D8: =PRRAS!E18 -> 0 | E8: 0 | F8: 0 | G8: 0 | H8: 0 | I8: 0 | J8: DATUMOD | K8: =TEXT(RefStr!K10,"YYYYMMDD") -> 20170101 | L8: =YEAR(RefStr!K10)*10000+MONTH(RefStr!K10)*100+DAY(RefStr!K10) -> 20170101
A9: 151 | B9: =PRRAS!C19 -> 8 | C9: =PRRAS!D19 -> 0 | D9: =PRRAS!E19 -> 0 | E9: 0 | F9: 0 | G9: 0 | H9: 0 | I9: 0 | J9: DATUMDO | K9: =TEXT(RefStr!K12,"YYYYMMDD") -> 20171231 | L9: =YEAR(RefStr!K12)*10000+MONTH(RefStr!K12)*100+DAY(RefStr!K12) -> 20171231
A10: 151 | B10: =PRRAS!C20 -> 9 | C10: =PRRAS!D20 -> 0 | D10: =PRRAS!E20 -> 0 | E10: 0 | F10: 0 | G10: 0 | H10: 0 | I10: 0 | J10: RKP | K10: =TEXT(RefStr!B6,"00000") -> 09431 | L10: =INT(VALUE(RefStr!B6)) -> 9431
A11: 151 | B11: =PRRAS!C21 -> 10 | C11: =PRRAS!D21 -> 0 | D11: =PRRAS!E21 -> 0 | E11: 0 | F11: 0 | G11: 0 | H11: 0 | I11: 0 | J11: MATBROJ | K11: =TEXT(RefStr!B8,"00000000") -> 03392295 | L11: =INT(VALUE(RefStr!B8)) -> 3392295
A12: 151 | B12: =PRRAS!C22 -> 11 | C12: =PRRAS!D22 -> 0 | D12: =PRRAS!E22 -> 0 | E12: 0 | F12: 0 | G12: 0 | H12: 0 | I12: 0 | J12: NAZIV | K12: =TRIM(RefStr!B10) -> OŠ MLADOST OSIJEK | L12: =LEN(Skriveni!K12) -> 17
A13: 151 | B13: =PRRAS!C23 -> 12 | C13: =PRRAS!D23 -> 0 | D13: =PRRAS!E23 -> 0 | E13: 0 | F13: 0 | G13: 0 | H13: 0 | I13: 0 | J13: POSTA | K13: =TEXT(RefStr!B12,"00000") -> 31000 | L13: =INT(VALUE(RefStr!B12)) -> 31000
A14: 151 | B14: =PRRAS!C24 -> 13 | C14: =PRRAS!D24 -> 0 | D14: =PRRAS!E24 -> 0 | E14: 0 | F14: 0 | G14: 0 | H14: 0 | I14: 0 | J14: MJESTO | K14: =TRIM(RefStr!C12) -> OSIJEK | L14: =LEN(Skriveni!K14) -> 6
A15: 151 | B15: =PRRAS!C25 -> 14 | C15: =PRRAS!D25 -> 0 | D15: =PRRAS!E25 -> 0 | E15: 0 | F15: 0 | G15: 0 | H15: 0 | I15: 0 | J15: ADRESA | K15: =TRIM(RefStr!B14) -> SJENJAK 7 | L15: =LEN(Skriveni!K15) -> 9
A16: 151 | B16: =PRRAS!C26 -> 15 | C16: =PRRAS!D26 -> 0 | D16: =PRRAS!E26 -> 0 | E16: 0 | F16: 0 | G16: 0 | H16: 0 | I16: 0 | J16: RAZINA | K16: =TEXT(RefStr!B16,"00") -> 31 | L16: =INT(VALUE(RefStr!B16)) -> 31
A17: 151 | B17: =PRRAS!C27 -> 16 | C17: =PRRAS!D27 -> 0 | D17: =PRRAS!E27 -> 0 | E17: 0 | F17: 0 | G17: 0 | H17: 0 | I17: 0 | J17: DJELAT | K17: =TEXT(RefStr!B18,"0000") -> 8520 | L17: =INT(VALUE(RefStr!B18)) -> 8520
A18: 151 | B18: =PRRAS!C28 -> 17 | C18: =PRRAS!D28 -> 0 | D18: =PRRAS!E28 -> 0 | E18: 0 | F18: 0 | G18: 0 | H18: 0 | I18: 0 | J18: RAZDJEL | K18: =TEXT(RefStr!B20,"000") -> 000 | L18: =INT(VALUE(RefStr!B20)) -> 0
A19: 151 | B19: =PRRAS!C29 -> 18 | C19: =PRRAS!D29 -> 0 | D19: =PRRAS!E29 -> 0 | E19: 0 | F19: 0 | G19: 0 | H19: 0 | I19: 0 | J19: OPCINA | K19: =TEXT(RefStr!B22,"000") -> 312 | L19: =INT(VALUE(RefStr!B22)) -> 312
A20: 151 | B20: =PRRAS!C30 -> 19 | C20: =PRRAS!D30 -> 0 | D20: =PRRAS!E30 -> 0 | E20: 0 | F20: 0 | G20: 0 | H20: 0 | I20: 0 | J20: ZUPANIJA | K20: =IF(ISNUMBER(RefStr!H2), TEXT(RefStr!H2, "00"),"00") -> 14 | L20: =IF(ISERROR(RefStr!H2),0,INT(VALUE(RefStr!H2))) -> 14
A21: 151 | B21: =PRRAS!C31 -> 20 | C21: =PRRAS!D31 -> 0 | D21: =PRRAS!E31 -> 0 | E21: 0 | F21: 0 | G21: 0 | H21: 0 | I21: 0 | J21: OIB | K21: =TEXT(RefStr!K14, "00000000000") -> 19998137302 | L21: =INT(VALUE(RefStr!K14)) -> 19998137302
A22: 151 | B22: =PRRAS!C32 -> 21 | C22: =PRRAS!D32 -> 0 | D22: =PRRAS!E32 -> 0 | E22: 0 | F22: 0 | G22: 0 | H22: 0 | I22: 0 | J22: KONTAKT | K22: =TRIM(RefStr!H25) -> Robertina Filić | L22: =LEN(RefStr!H25) -> 15
A23: 151 | B23: =PRRAS!C33 -> 22 | C23: =PRRAS!D33 -> 0 | D23: =PRRAS!E33 -> 0 | E23: 0 | F23: 0 | G23: 0 | H23: 0 | I23: 0 | J23: TEL | K23: =TRIM(RefStr!H27) -> 031496682 | L23: =LEN(RefStr!H27) -> 9
A24: 151 | B24: =PRRAS!C34 -> 23 | C24: =PRRAS!D34 -> 0 | D24: =PRRAS!E34 -> 0 | E24: 0 | F24: 0 | G24: 0 | H24: 0 | I24: 0 | J24: FAX | K24: =TRIM(RefStr!K27) -> 031574913 | L24: =LEN(RefStr!K27) -> 9
A25: 151 | B25: =PRRAS!C35 -> 24 | C25: =PRRAS!D35 -> 0 | D25: =PRRAS!E35 -> 0 | E25: 0 | F25: 0 | G25: 0 | H25: 0 | I25: 0 | J25: E_POSTA | K25: =TRIM(RefStr!H29) -> ured@os-mladost-os.skole.hr | L25: =LEN(RefStr!H29) -> 27
A26: 151 | B26: =PRRAS!C36 -> 25 | C26: =PRRAS!D36 -> 0 | D26: =PRRAS!E36 -> 0 | E26: 0 | F26: 0 | G26: 0 | H26: 0 | I26: 0 | J26: E_POSTAOBV | K26: =TRIM(RefStr!H31) ->  | L26: =LEN(RefStr!H31) -> 0
A27: 151 | B27: =PRRAS!C37 -> 26 | C27: =PRRAS!D37 -> 0 | D27: =PRRAS!E37 -> 0 | E27: 0 | F27: 0 | G27: 0 | H27: 0 | I27: 0 | J27: ZAK_PREDST | K27: =TRIM(RefStr!H33) -> JOSIP JUKIĆ | L27: =LEN(RefStr!H33) -> 11
A28: 151 | B28: =PRRAS!C38 -> 27 | C28: =PRRAS!D38 -> 0 | D28: =PRRAS!E38 -> 0 | E28: 0 | F28: 0 | G28: 0 | H28: 0 | I28: 0 | J28: KONTBR | K28: =SUM(G2:G1561) -> 110541620.3 | L28: =SUM(G2:G1561) -> 110541620.3
A29: 151 | B29: =PRRAS!C39 -> 28 | C29: =PRRAS!D39 -> 0 | D29: =PRRAS!E39 -> 0 | E29: 0 | F29: 0 | G29: 0 | H29: 0 | I29: 0 | J29: RAZLIKA | K29: =IF(SUM(H2:H1561)<>0,"LIPE","NULA") -> NULA | L29: =SUM(H2:H1561) -> 0
A30: 151 | B30: =PRRAS!C40 -> 29 | C30: =PRRAS!D40 -> 0 | D30: =PRRAS!E40 -> 0 | E30: 0 | F30: 0 | G30: 0 | H30: 0 | I30: 0 | J30: BRKONT | K30: =TEXT(Kont!E3, "000") -> 000 | L30: =IF(ISERROR(Kont!E3),1,Kont!E3) -> 0
A31: 151 | B31: =PRRAS!C41 -> 30 | C31: =PRRAS!D41 -> 0 | D31: =PRRAS!E41 -> 0 | E31: 0 | F31: 0 | G31: 0 | H31: 0 | I31: 0 | J31: VER | K31: 504 | L31: 504
A32: 151 | B32: =PRRAS!C42 -> 31 | C32: =PRRAS!D42 -> 0 | D32: =PRRAS!E42 -> 0 | E32: 0 | F32: 0 | G32: 0 | H32: 0 | I32: 0 | J32: KONS_ISTI | K32: =IF(RefStr!I8 = "DA","DA","NE") -> NE
A33: 151 | B33: =PRRAS!C43 -> 32 | C33: =PRRAS!D43 -> 0 | D33: =PRRAS!E43 -> 0 | E33: 0 | F33: 0 | G33: 0 | H33: 0 | I33: 0 | J33: KBR_151 | L33: =PRRAS!E4 -> 95496472.04
A34: 151 | B34: =PRRAS!C44 -> 33 | C34: =PRRAS!D44 -> 0 | D34: =PRRAS!E44 -> 0 | E34: 0 | F34: 0 | G34: 0 | H34: 0 | I34: 0 | J34: KBR_152 | L34: =Bil!E4 -> 3550769.592
A35: 151 | B35: =PRRAS!C45 -> 34 | C35: =PRRAS!D45 -> 0 | D35: =PRRAS!E45 -> 0 | E35: 0 | F35: 0 | G35: 0 | H35: 0 | I35: 0 | J35: KBR_154 | L35: =RasF!E4 -> 10764600.59
A36: 151 | B36: =PRRAS!C46 -> 35 | C36: =PRRAS!D46 -> 0 | D36: =PRRAS!E46 -> 0 | E36: 0 | F36: 0 | G36: 0 | H36: 0 | I36: 0 | J36: KBR_156 | L36: =PVRIO!D4 -> 4167.098
A37: 151 | B37: =PRRAS!C47 -> 36 | C37: =PRRAS!D47 -> 0 | D37: =PRRAS!E47 -> 0 | E37: 0 | F37: 0 | G37: 0 | H37: 0 | I37: 0 | J37: KBR_159 | L37: =Obv!C4 -> 725610.953
A38: 151 | B38: =PRRAS!C48 -> 37 | C38: =PRRAS!D48 -> 0 | D38: =PRRAS!E48 -> 0 | E38: 0 | F38: 0 | G38: 0 | H38: 0 | I38: 0
A39: 151 | B39: =PRRAS!C49 -> 38 | C39: =PRRAS!D49 -> 0 | D39: =PRRAS!E49 -> 0 | E39: 0 | F39: 0 | G39: 0 | H39: 0 | I39: 0
A40: 151 | B40: =PRRAS!C50 -> 39 | C40: =PRRAS!D50 -> 0 | D40: =PRRAS!E50 -> 0 | E40: 0 | F40: 0 | G40: 0 | H40: 0 | I40: 0
A41: 151 | B41: =PRRAS!C51 -> 40 | C41: =PRRAS!D51 -> 0 | D41: =PRRAS!E51 -> 0 | E41: 0 | F41: 0 | G41: 0 | H41: 0 | I41: 0
A42: 151 | B42: =PRRAS!C52 -> 41 | C42: =PRRAS!D52 -> 0 | D42: =PRRAS!E52 -> 0 | E42: 0 | F42: 0 | G42: 0 | H42: 0 | I42: 0
A43: 151 | B43: =PRRAS!C53 -> 42 | C43: =PRRAS!D53 -> 0 | D43: =PRRAS!E53 -> 0 | E43: 0 | F43: 0 | G43: 0 | H43: 0 | I43: 0
A44: 151 | B44: =PRRAS!C54 -> 43 | C44: =PRRAS!D54 -> 0 | D44: =PRRAS!E54 -> 0 | E44: 0 | F44: 0 | G44: 0 | H44: 0 | I44: 0
A45: 151 | B45: =PRRAS!C55 -> 44 | C45: =PRRAS!D55 -> 0 | D45: =PRRAS!E55 -> 0 | E45: 0 | F45: 0 | G45: 0 | H45: 0 | I45: 0
A46: 151 | B46: =PRRAS!C56 -> 45 | C46: =PRRAS!D56 -> 5905381 | D46: =PRRAS!E56 -> 6257250 | E46: 0 | F46: 0 | G46: 828894.645 | H46: 0 | I46: 0
A47: 151 | B47: =PRRAS!C57 -> 46 | C47: =PRRAS!D57 -> 0 | D47: =PRRAS!E57 -> 0 | E47: 0 | F47: 0 | G47: 0 | H47: 0 | I47: 0
A48: 151 | B48: =PRRAS!C58 -> 47 | C48: =PRRAS!D58 -> 0 | D48: =PRRAS!E58 -> 0 | E48: 0 | F48: 0 | G48: 0 | H48: 0 | I48: 0
A49: 151 | B49: =PRRAS!C59 -> 48 | C49: =PRRAS!D59 -> 0 | D49: =PRRAS!E59 -> 0 | E49: 0 | F49: 0 | G49: 0 | H49: 0 | I49: 0
A50: 151 | B50: =PRRAS!C60 -> 49 | C50: =PRRAS!D60 -> 0 | D50: =PRRAS!E60 -> 0 | E50: 0 | F50: 0 | G50: 0 | H50: 0 | I50: 0
A51: 151 | B51: =PRRAS!C61 -> 50 | C51: =PRRAS!D61 -> 0 | D51: =PRRAS!E61 -> 0 | E51: 0 | F51: 0 | G51: 0 | H51: 0 | I51: 0
A52: 151 | B52: =PRRAS!C62 -> 51 | C52: =PRRAS!D62 -> 0 | D52: =PRRAS!E62 -> 0 | E52: 0 | F52: 0 | G52: 0 | H52: 0 | I52: 0
A53: 151 | B53: =PRRAS!C63 -> 52 | C53: =PRRAS!D63 -> 0 | D53: =PRRAS!E63 -> 0 | E53: 0 | F53: 0 | G53: 0 | H53: 0 | I53: 0
A54: 151 | B54: =PRRAS!C64 -> 53 | C54: =PRRAS!D64 -> 0 | D54: =PRRAS!E64 -> 0 | E54: 0 | F54: 0 | G54: 0 | H54: 0 | I54: 0
A55: 151 | B55: =PRRAS!C65 -> 54 | C55: =PRRAS!D65 -> 3366 | D55: =PRRAS!E65 -> 0 | E55: 0 | F55: 0 | G55: 181.764 | H55: 0 | I55: 0
A56: 151 | B56: =PRRAS!C66 -> 55 | C56: =PRRAS!D66 -> 3366 | D56: =PRRAS!E66 -> 0 | E56: 0 | F56: 0 | G56: 185.13 | H56: 0 | I56: 0
A57: 151 | B57: =PRRAS!C67 -> 56 | C57: =PRRAS!D67 -> 0 | D57: =PRRAS!E67 -> 0 | E57: 0 | F57: 0 | G57: 0 | H57: 0 | I57: 0
A58: 151 | B58: =PRRAS!C68 -> 57 | C58: =PRRAS!D68 -> 0 | D58: =PRRAS!E68 -> 0 | E58: 0 | F58: 0 | G58: 0 | H58: 0 | I58: 0
A59: 151 | B59: =PRRAS!C69 -> 58 | C59: =PRRAS!D69 -> 0 | D59: =PRRAS!E69 -> 0 | E59: 0 | F59: 0 | G59: 0 | H59: 0 | I59: 0
A60: 151 | B60: =PRRAS!C70 -> 59 | C60: =PRRAS!D70 -> 0 | D60: =PRRAS!E70 -> 0 | E60: 0 | F60: 0 | G60: 0 | H60: 0 | I60: 0
A61: 151 | B61: =PRRAS!C71 -> 60 | C61: =PRRAS!D71 -> 0 | D61: =PRRAS!E71 -> 0 | E61: 0 | F61: 0 | G61: 0 | H61: 0 | I61: 0
A62: 151 | B62: =PRRAS!C72 -> 61 | C62: =PRRAS!D72 -> 0 | D62: =PRRAS!E72 -> 0 | E62: 0 | F62: 0 | G62: 0 | H62: 0 | I62: 0
A63: 151 | B63: =PRRAS!C73 -> 62 | C63: =PRRAS!D73 -> 0 | D63: =PRRAS!E73 -> 0 | E63: 0 | F63: 0 | G63: 0 | H63: 0 | I63: 0
A64: 151 | B64: =PRRAS!C74 -> 63 | C64: =PRRAS!D74 -> 5902015 | D64: =PRRAS!E74 -> 6257250 | E64: 0 | F64: 0 | G64: 1160240.445 | H64: 0 | I64: 0
A65: 151 | B65: =PRRAS!C75 -> 64 | C65: =PRRAS!D75 -> 5902015 | D65: =PRRAS!E75 -> 6257250 | E65: 0 | F65: 0 | G65: 1178656.96 | H65: 0 | I65: 0
A66: 151 | B66: =PRRAS!C76 -> 65 | C66: =PRRAS!D76 -> 0 | D66: =PRRAS!E76 -> 0 | E66: 0 | F66: 0 | G66: =(B66/1000)*(C66*1+D66*2) -> 0 | H66: =ABS(C66-ROUND(C66,0))+ABS(D66-ROUND(D66,0)) -> 0 | I66: 0
A67: 151 | B67: =PRRAS!C77 -> 66 | C67: =PRRAS!D77 -> 0 | D67: =PRRAS!E77 -> 0 | E67: 0 | F67: 0 | G67: 0 | H67: 0 | I67: 0
A68: 151 | B68: =PRRAS!C78 -> 67 | C68: =PRRAS!D78 -> 0 | D68: =PRRAS!E78 -> 0 | E68: 0 | F68: 0 | G68: 0 | H68: 0 | I68: 0
A69: 151 | B69: =PRRAS!C79 -> 68 | C69: =PRRAS!D79 -> 0 | D69: =PRRAS!E79 -> 0 | E69: 0 | F69: 0 | G69: 0 | H69: 0 | I69: 0
A70: 151 | B70: =PRRAS!C80 -> 69 | C70: =PRRAS!D80 -> 0 | D70: =PRRAS!E80 -> 0 | E70: 0 | F70: 0 | G70: 0 | H70: 0 | I70: 0
A71: 151 | B71: =PRRAS!C81 -> 70 | C71: =PRRAS!D81 -> 0 | D71: =PRRAS!E81 -> 0 | E71: 0 | F71: 0 | G71: 0 | H71: 0 | I71: 0
A72: 151 | B72: =PRRAS!C82 -> 71 | C72: =PRRAS!D82 -> 0 | D72: =PRRAS!E82 -> 0 | E72: 0 | F72: 0 | G72: 0 | H72: 0 | I72: 0
A73: 151 | B73: =PRRAS!C83 -> 72 | C73: =PRRAS!D83 -> 0 | D73: =PRRAS!E83 -> 0 | E73: 0 | F73: 0 | G73: 0 | H73: 0 | I73: 0
A74: 151 | B74: =PRRAS!C84 -> 73 | C74: =PRRAS!D84 -> 0 | D74: =PRRAS!E84 -> 0 | E74: 0 | F74: 0 | G74: 0 | H74: 0 | I74: 0
A75: 151 | B75: =PRRAS!C85 -> 74 | C75: =PRRAS!D85 -> 226 | D75: =PRRAS!E85 -> 86 | E75: 0 | F75: 0 | G75: 29.452 | H75: 0 | I75: 0
A76: 151 | B76: =PRRAS!C86 -> 75 | C76: =PRRAS!D86 -> 226 | D76: =PRRAS!E86 -> 86 | E76: 0 | F76: 0 | G76: 29.85 | H76: 0 | I76: 0
A77: 151 | B77: =PRRAS!C87 -> 76 | C77: =PRRAS!D87 -> 0 | D77: =PRRAS!E87 -> 0 | E77: 0 | F77: 0 | G77: 0 | H77: 0 | I77: 0
A78: 151 | B78: =PRRAS!C88 -> 77 | C78: =PRRAS!D88 -> 226 | D78: =PRRAS!E88 -> 86 | E78: 0 | F78: 0 | G78: 30.646 | H78: 0 | I78: 0
A79: 151 | B79: =PRRAS!C89 -> 78 | C79: =PRRAS!D89 -> 0 | D79: =PRRAS!E89 -> 0 | E79: 0 | F79: 0 | G79: 0 | H79: 0 | I79: 0
A80: 151 | B80: =PRRAS!C90 -> 79 | C80: =PRRAS!D90 -> 0 | D80: =PRRAS!E90 -> 0 | E80: 0 | F80: 0 | G80: 0 | H80: 0 | I80: 0
A81: 151 | B81: =PRRAS!C91 -> 80 | C81: =PRRAS!D91 -> 0 | D81: =PRRAS!E91 -> 0 | E81: 0 | F81: 0 | G81: 0 | H81: 0 | I81: 0
A82: 151 | B82: =PRRAS!C92 -> 81 | C82: =PRRAS!D92 -> 0 | D82: =PRRAS!E92 -> 0 | E82: 0 | F82: 0 | G82: 0 | H82: 0 | I82: 0
A83: 151 | B83: =PRRAS!C93 -> 82 | C83: =PRRAS!D93 -> 0 | D83: =PRRAS!E93 -> 0 | E83: 0 | F83: 0 | G83: 0 | H83: 0 | I83: 0
A84: 151 | B84: =PRRAS!C94 -> 83 | C84: =PRRAS!D94 -> 0 | D84: =PRRAS!E94 -> 0 | E84: 0 | F84: 0 | G84: 0 | H84: 0 | I84: 0
A85: 151 | B85: =PRRAS!C95 -> 84 | C85: =PRRAS!D95 -> 0 | D85: =PRRAS!E95 -> 0 | E85: 0 | F85: 0 | G85: 0 | H85: 0 | I85: 0
A86: 151 | B86: =PRRAS!C96 -> 85 | C86: =PRRAS!D96 -> 0 | D86: =PRRAS!E96 -> 0 | E86: 0 | F86: 0 | G86: 0 | H86: 0 | I86: 0
A87: 151 | B87: =PRRAS!C97 -> 86 | C87: =PRRAS!D97 -> 0 | D87: =PRRAS!E97 -> 0 | E87: 0 | F87: 0 | G87: 0 | H87: 0 | I87: 0
A88: 151 | B88: =PRRAS!C98 -> 87 | C88: =PRRAS!D98 -> 0 | D88: =PRRAS!E98 -> 0 | E88: 0 | F88: 0 | G88: 0 | H88: 0 | I88: 0
A89: 151 | B89: =PRRAS!C99 -> 88 | C89: =PRRAS!D99 -> 0 | D89: =PRRAS!E99 -> 0 | E89: 0 | F89: 0 | G89: 0 | H89: 0 | I89: 0
A90: 151 | B90: =PRRAS!C100 -> 89 | C90: =PRRAS!D100 -> 0 | D90: =PRRAS!E100 -> 0 | E90: 0 | F90: 0 | G90: 0 | H90: 0 | I90: 0
A91: 151 | B91: =PRRAS!C101 -> 90 | C91: =PRRAS!D101 -> 0 | D91: =PRRAS!E101 -> 0 | E91: 0 | F91: 0 | G91: 0 | H91: 0 | I91: 0
A92: 151 | B92: =PRRAS!C102 -> 91 | C92: =PRRAS!D102 -> 0 | D92: =PRRAS!E102 -> 0 | E92: 0 | F92: 0 | G92: 0 | H92: 0 | I92: 0
A93: 151 | B93: =PRRAS!C103 -> 92 | C93: =PRRAS!D103 -> 0 | D93: =PRRAS!E103 -> 0 | E93: 0 | F93: 0 | G93: 0 | H93: 0 | I93: 0
A94: 151 | B94: =PRRAS!C104 -> 93 | C94: =PRRAS!D104 -> 0 | D94: =PRRAS!E104 -> 0 | E94: 0 | F94: 0 | G94: 0 | H94: 0 | I94: 0
A95: 151 | B95: =PRRAS!C105 -> 94 | C95: =PRRAS!D105 -> 0 | D95: =PRRAS!E105 -> 0 | E95: 0 | F95: 0 | G95: 0 | H95: 0 | I95: 0
A96: 151 | B96: =PRRAS!C106 -> 95 | C96: =PRRAS!D106 -> 0 | D96: =PRRAS!E106 -> 0 | E96: 0 | F96: 0 | G96: 0 | H96: 0 | I96: 0
A97: 151 | B97: =PRRAS!C107 -> 96 | C97: =PRRAS!D107 -> 0 | D97: =PRRAS!E107 -> 0 | E97: 0 | F97: 0 | G97: 0 | H97: 0 | I97: 0
A98: 151 | B98: =PRRAS!C108 -> 97 | C98: =PRRAS!D108 -> 0 | D98: =PRRAS!E108 -> 0 | E98: 0 | F98: 0 | G98: 0 | H98: 0 | I98: 0
A99: 151 | B99: =PRRAS!C109 -> 98 | C99: =PRRAS!D109 -> 0 | D99: =PRRAS!E109 -> 0 | E99: 0 | F99: 0 | G99: 0 | H99: 0 | I99: 0
A100: 151 | B100: =PRRAS!C110 -> 99 | C100: =PRRAS!D110 -> 0 | D100: =PRRAS!E110 -> 0 | E100: 0 | F100: 0 | G100: 0 | H100: 0 | I100: 0
A101: 151 | B101: =PRRAS!C111 -> 100 | C101: =PRRAS!D111 -> 0 | D101: =PRRAS!E111 -> 0 | E101: 0 | F101: 0 | G101: 0 | H101: 0 | I101: 0
A102: 151 | B102: =PRRAS!C112 -> 101 | C102: =PRRAS!D112 -> 0 | D102: =PRRAS!E112 -> 0 | E102: 0 | F102: 0 | G102: 0 | H102: 0 | I102: 0
A103: 151 | B103: =PRRAS!C113 -> 102 | C103: =PRRAS!D113 -> 0 | D103: =PRRAS!E113 -> 0 | E103: 0 | F103: 0 | G103: 0 | H103: 0 | I103: 0
A104: 151 | B104: =PRRAS!C114 -> 103 | C104: =PRRAS!D114 -> 0 | D104: =PRRAS!E114 -> 0 | E104: 0 | F104: 0 | G104: 0 | H104: 0 | I104: 0
A105: 151 | B105: =PRRAS!C115 -> 104 | C105: =PRRAS!D115 -> 0 | D105: =PRRAS!E115 -> 0 | E105: 0 | F105: 0 | G105: 0 | H105: 0 | I105: 0
A106: 151 | B106: =PRRAS!C116 -> 105 | C106: =PRRAS!D116 -> 484200 | D106: =PRRAS!E116 -> 490122 | E106: 0 | F106: 0 | G106: 153766.62 | H106: 0 | I106: 0
A107: 151 | B107: =PRRAS!C117 -> 106 | C107: =PRRAS!D117 -> 0 | D107: =PRRAS!E117 -> 0 | E107: 0 | F107: 0 | G107: 0 | H107: 0 | I107: 0
A108: 151 | B108: =PRRAS!C118 -> 107 | C108: =PRRAS!D118 -> 0 | D108: =PRRAS!E118 -> 0 | E108: 0 | F108: 0 | G108: 0 | H108: 0 | I108: 0
A109: 151 | B109: =PRRAS!C119 -> 108 | C109: =PRRAS!D119 -> 0 | D109: =PRRAS!E119 -> 0 | E109: 0 | F109: 0 | G109: 0 | H109: 0 | I109: 0
A110: 151 | B110: =PRRAS!C120 -> 109 | C110: =PRRAS!D120 -> 0 | D110: =PRRAS!E120 -> 0 | E110: 0 | F110: 0 | G110: 0 | H110: 0 | I110: 0
A111: 151 | B111: =PRRAS!C121 -> 110 | C111: =PRRAS!D121 -> 0 | D111: =PRRAS!E121 -> 0 | E111: 0 | F111: 0 | G111: 0 | H111: 0 | I111: 0
A112: 151 | B112: =PRRAS!C122 -> 111 | C112: =PRRAS!D122 -> 484200 | D112: =PRRAS!E122 -> 490122 | E112: 0 | F112: 0 | G112: 162553.284 | H112: 0 | I112: 0
A113: 151 | B113: =PRRAS!C123 -> 112 | C113: =PRRAS!D123 -> 0 | D113: =PRRAS!E123 -> 0 | E113: 0 | F113: 0 | G113: 0 | H113: 0 | I113: 0
A114: 151 | B114: =PRRAS!C124 -> 113 | C114: =PRRAS!D124 -> 0 | D114: =PRRAS!E124 -> 0 | E114: 0 | F114: 0 | G114: 0 | H114: 0 | I114: 0
A115: 151 | B115: =PRRAS!C125 -> 114 | C115: =PRRAS!D125 -> 0 | D115: =PRRAS!E125 -> 0 | E115: 0 | F115: 0 | G115: 0 | H115: 0 | I115: 0
A116: 151 | B116: =PRRAS!C126 -> 115 | C116: =PRRAS!D126 -> 0 | D116: =PRRAS!E126 -> 0 | E116: 0 | F116: 0 | G116: 0 | H116: 0 | I116: 0
A117: 151 | B117: =PRRAS!C127 -> 116 | C117: =PRRAS!D127 -> 484200 | D117: =PRRAS!E127 -> 490122 | E117: 0 | F117: 0 | G117: 169875.504 | H117: 0 | I117: 0
A118: 151 | B118: =PRRAS!C128 -> 117 | C118: =PRRAS!D128 -> 0 | D118: =PRRAS!E128 -> 0 | E118: 0 | F118: 0 | G118: 0 | H118: 0 | I118: 0
A119: 151 | B119: =PRRAS!C129 -> 118 | C119: =PRRAS!D129 -> 0 | D119: =PRRAS!E129 -> 0 | E119: 0 | F119: 0 | G119: 0 | H119: 0 | I119: 0
A120: 151 | B120: =PRRAS!C130 -> 119 | C120: =PRRAS!D130 -> 0 | D120: =PRRAS!E130 -> 0 | E120: 0 | F120: 0 | G120: 0 | H120: 0 | I120: 0
A121: 151 | B121: =PRRAS!C131 -> 120 | C121: =PRRAS!D131 -> 0 | D121: =PRRAS!E131 -> 0 | E121: 0 | F121: 0 | G121: 0 | H121: 0 | I121: 0
A122: 151 | B122: =PRRAS!C132 -> 121 | C122: =PRRAS!D132 -> 0 | D122: =PRRAS!E132 -> 0 | E122: 0 | F122: 0 | G122: 0 | H122: 0 | I122: 0
A123: 151 | B123: =PRRAS!C133 -> 122 | C123: =PRRAS!D133 -> 0 | D123: =PRRAS!E133 -> 0 | E123: 0 | F123: 0 | G123: 0 | H123: 0 | I123: 0
A124: 151 | B124: =PRRAS!C134 -> 123 | C124: =PRRAS!D134 -> 126805 | D124: =PRRAS!E134 -> 166887 | E124: 0 | F124: 0 | G124: 56651.217 | H124: 0 | I124: 0
A125: 151 | B125: =PRRAS!C135 -> 124 | C125: =PRRAS!D135 -> 126805 | D125: =PRRAS!E135 -> 166887 | E125: 0 | F125: 0 | G125: 57111.796 | H125: 0 | I125: 0
A126: 151 | B126: =PRRAS!C136 -> 125 | C126: =PRRAS!D136 -> 0 | D126: =PRRAS!E136 -> 0 | E126: 0 | F126: 0 | G126: 0 | H126: 0 | I126: 0
A127: 151 | B127: =PRRAS!C137 -> 126 | C127: =PRRAS!D137 -> 126805 | D127: =PRRAS!E137 -> 166887 | E127: 0 | F127: 0 | G127: 58032.954 | H127: 0 | I127: 0
A128: 151 | B128: =PRRAS!C138 -> 127 | C128: =PRRAS!D138 -> 0 | D128: =PRRAS!E138 -> 0 | E128: 0 | F128: 0 | G128: 0 | H128: 0 | I128: 0
A129: 151 | B129: =PRRAS!C139 -> 128 | C129: =PRRAS!D139 -> 0 | D129: =PRRAS!E139 -> 0 | E129: 0 | F129: 0 | G129: 0 | H129: 0 | I129: 0
A130: 151 | B130: =PRRAS!C140 -> 129 | C130: =PRRAS!D140 -> 0 | D130: =PRRAS!E140 -> 0 | E130: 0 | F130: 0 | G130: =(B130/1000)*(C130*1+D130*2) -> 0 | H130: =ABS(C130-ROUND(C130,0))+ABS(D130-ROUND(D130,0)) -> 0 | I130: 0
A131: 151 | B131: =PRRAS!C141 -> 130 | C131: =PRRAS!D141 -> 860973 | D131: =PRRAS!E141 -> 906869 | E131: 0 | F131: 0 | G131: 347712.43 | H131: 0 | I131: 0
A132: 151 | B132: =PRRAS!C142 -> 131 | C132: =PRRAS!D142 -> 860973 | D132: =PRRAS!E142 -> 906869 | E132: 0 | F132: 0 | G132: 350387.141 | H132: 0 | I132: 0
A133: 151 | B133: =PRRAS!C143 -> 132 | C133: =PRRAS!D143 -> 860973 | D133: =PRRAS!E143 -> 906869 | E133: 0 | F133: 0 | G133: 353061.852 | H133: 0 | I133: 0
A134: 151 | B134: =PRRAS!C144 -> 133 | C134: =PRRAS!D144 -> 0 | D134: =PRRAS!E144 -> 0 | E134: 0 | F134: 0 | G134: 0 | H134: 0 | I134: 0
A135: 151 | B135: =PRRAS!C145 -> 134 | C135: =PRRAS!D145 -> 0 | D135: =PRRAS!E145 -> 0 | E135: 0 | F135: 0 | G135: 0 | H135: 0 | I135: 0
A136: 151 | B136: =PRRAS!C146 -> 135 | C136: =PRRAS!D146 -> 0 | D136: =PRRAS!E146 -> 0 | E136: 0 | F136: 0 | G136: 0 | H136: 0 | I136: 0
A137: 151 | B137: =PRRAS!C147 -> 136 | C137: =PRRAS!D147 -> 0 | D137: =PRRAS!E147 -> 0 | E137: 0 | F137: 0 | G137: 0 | H137: 0 | I137: 0
A138: 151 | B138: =PRRAS!C148 -> 137 | C138: =PRRAS!D148 -> 0 | D138: =PRRAS!E148 -> 0 | E138: 0 | F138: 0 | G138: 0 | H138: 0 | I138: 0
A139: 151 | B139: =PRRAS!C149 -> 138 | C139: =PRRAS!D149 -> 0 | D139: =PRRAS!E149 -> 0 | E139: 0 | F139: 0 | G139: 0 | H139: 0 | I139: 0
A140: 151 | B140: =PRRAS!C150 -> 139 | C140: =PRRAS!D150 -> 0 | D140: =PRRAS!E150 -> 0 | E140: 0 | F140: 0 | G140: 0 | H140: 0 | I140: 0
A141: 151 | B141: =PRRAS!C151 -> 140 | C141: =PRRAS!D151 -> 0 | D141: =PRRAS!E151 -> 0 | E141: 0 | F141: 0 | G141: 0 | H141: 0 | I141: 0
A142: 151 | B142: =PRRAS!C152 -> 141 | C142: =PRRAS!D152 -> 0 | D142: =PRRAS!E152 -> 0 | E142: 0 | F142: 0 | G142: 0 | H142: 0 | I142: 0
A143: 151 | B143: =PRRAS!C153 -> 142 | C143: =PRRAS!D153 -> 0 | D143: =PRRAS!E153 -> 0 | E143: 0 | F143: 0 | G143: 0 | H143: 0 | I143: 0
A144: 151 | B144: =PRRAS!C154 -> 143 | C144: =PRRAS!D154 -> 0 | D144: =PRRAS!E154 -> 0 | E144: 0 | F144: 0 | G144: 0 | H144: 0 | I144: 0
A145: 151 | B145: =PRRAS!C155 -> 144 | C145: =PRRAS!D155 -> 0 | D145: =PRRAS!E155 -> 0 | E145: 0 | F145: 0 | G145: 0 | H145: 0 | I145: 0
A146: 151 | B146: =PRRAS!C156 -> 145 | C146: =PRRAS!D156 -> 0 | D146: =PRRAS!E156 -> 0 | E146: 0 | F146: 0 | G146: 0 | H146: 0 | I146: 0
A147: 151 | B147: =PRRAS!C157 -> 146 | C147: =PRRAS!D157 -> 0 | D147: =PRRAS!E157 -> 0 | E147: 0 | F147: 0 | G147: 0 | H147: 0 | I147: 0
A148: 151 | B148: =PRRAS!C158 -> 147 | C148: =PRRAS!D158 -> 0 | D148: =PRRAS!E158 -> 0 | E148: 0 | F148: 0 | G148: 0 | H148: 0 | I148: 0
A149: 151 | B149: =PRRAS!C159 -> 148 | C149: =PRRAS!D159 -> 7344045 | D149: =PRRAS!E159 -> 7840643 | E149: 0 | F149: 0 | G149: 3407748.988 | H149: 0 | I149: 0
A150: 151 | B150: =PRRAS!C160 -> 149 | C150: =PRRAS!D160 -> 5955536 | D150: =PRRAS!E160 -> 6259741 | E150: 0 | F150: 0 | G150: 2752777.682 | H150: 0 | I150: 0
A151: 151 | B151: =PRRAS!C161 -> 150 | C151: =PRRAS!D161 -> 4825040 | D151: =PRRAS!E161 -> 5043876 | E151: 0 | F151: 0 | G151: 2236918.8 | H151: 0 | I151: 0
A152: 151 | B152: =PRRAS!C162 -> 151 | C152: =PRRAS!D162 -> 4804533 | D152: =PRRAS!E162 -> 5023864 | E152: 0 | F152: 0 | G152: 2242691.411 | H152: 0 | I152: 0
A153: 151 | B153: =PRRAS!C163 -> 152 | C153: =PRRAS!D163 -> 0 | D153: =PRRAS!E163 -> 0 | E153: 0 | F153: 0 | G153: 0 | H153: 0 | I153: 0
A154: 151 | B154: =PRRAS!C164 -> 153 | C154: =PRRAS!D164 -> 20507 | D154: =PRRAS!E164 -> 20012 | E154: 0 | F154: 0 | G154: 9261.243 | H154: 0 | I154: 0
A155: 151 | B155: =PRRAS!C165 -> 154 | C155: =PRRAS!D165 -> 0 | D155: =PRRAS!E165 -> 0 | E155: 0 | F155: 0 | G155: 0 | H155: 0 | I155: 0
A156: 151 | B156: =PRRAS!C166 -> 155 | C156: =PRRAS!D166 -> 306437 | D156: =PRRAS!E166 -> 359985 | E156: 0 | F156: 0 | G156: 159093.085 | H156: 0 | I156: 0
A157: 151 | B157: =PRRAS!C167 -> 156 | C157: =PRRAS!D167 -> 824059 | D157: =PRRAS!E167 -> 855880 | E157: 0 | F157: 0 | G157: 395587.764 | H157: 0 | I157: 0
A158: 151 | B158: =PRRAS!C168 -> 157 | C158: =PRRAS!D168 -> 0 | D158: =PRRAS!E168 -> 0 | E158: 0 | F158: 0 | G158: 0 | H158: 0 | I158: 0
A159: 151 | B159: =PRRAS!C169 -> 158 | C159: =PRRAS!D169 -> 742612 | D159: =PRRAS!E169 -> 771287 | E159: 0 | F159: 0 | G159: 361059.388 | H159: 0 | I159: 0
A160: 151 | B160: =PRRAS!C170 -> 159 | C160: =PRRAS!D170 -> 81447 | D160: =PRRAS!E170 -> 84593 | E160: 0 | F160: 0 | G160: 39850.647 | H160: 0 | I160: 0
A161: 151 | B161: =PRRAS!C171 -> 160 | C161: =PRRAS!D171 -> 1380197 | D161: =PRRAS!E171 -> 1543744 | E161: 0 | F161: 0 | G161: 714829.6 | H161: 0 | I161: 0
A162: 151 | B162: =PRRAS!C172 -> 161 | C162: =PRRAS!D172 -> 132122 | D162: =PRRAS!E172 -> 151407 | E162: 0 | F162: 0 | G162: 70024.696 | H162: 0 | I162: 0
A163: 151 | B163: =PRRAS!C173 -> 162 | C163: =PRRAS!D173 -> 25216 | D163: =PRRAS!E173 -> 38243 | E163: 0 | F163: 0 | G163: 16475.724 | H163: 0 | I163: 0
A164: 151 | B164: =PRRAS!C174 -> 163 | C164: =PRRAS!D174 -> 104276 | D164: =PRRAS!E174 -> 107166 | E164: 0 | F164: 0 | G164: 51933.104 | H164: 0 | I164: 0
A165: 151 | B165: =PRRAS!C175 -> 164 | C165: =PRRAS!D175 -> 1700 | D165: =PRRAS!E175 -> 430 | E165: 0 | F165: 0 | G165: 419.84 | H165: 0 | I165: 0
A166: 151 | B166: =PRRAS!C176 -> 165 | C166: =PRRAS!D176 -> 930 | D166: =PRRAS!E176 -> 5568 | E166: 0 | F166: 0 | G166: 1990.89 | H166: 0 | I166: 0
A167: 151 | B167: =PRRAS!C177 -> 166 | C167: =PRRAS!D177 -> 1002953 | D167: =PRRAS!E177 -> 1122074 | E167: 0 | F167: 0 | G167: 539018.766 | H167: 0 | I167: 0
A168: 151 | B168: =PRRAS!C178 -> 167 | C168: =PRRAS!D178 -> 49700 | D168: =PRRAS!E178 -> 49453 | E168: 0 | F168: 0 | G168: 24817.202 | H168: 0 | I168: 0
A169: 151 | B169: =PRRAS!C179 -> 168 | C169: =PRRAS!D179 -> 417950 | D169: =PRRAS!E179 -> 460815 | E169: 0 | F169: 0 | G169: 225049.44 | H169: 0 | I169: 0
A170: 151 | B170: =PRRAS!C180 -> 169 | C170: =PRRAS!D180 -> 498015 | D170: =PRRAS!E180 -> 533639 | E170: 0 | F170: 0 | G170: 264534.517 | H170: 0 | I170: 0
A171: 151 | B171: =PRRAS!C181 -> 170 | C171: =PRRAS!D181 -> 24137 | D171: =PRRAS!E181 -> 74652 | E171: 0 | F171: 0 | G171: 29484.97 | H171: 0 | I171: 0
A172: 151 | B172: =PRRAS!C182 -> 171 | C172: =PRRAS!D182 -> 12851 | D172: =PRRAS!E182 -> 3515 | E172: 0 | F172: 0 | G172: 3399.651 | H172: 0 | I172: 0
A173: 151 | B173: =PRRAS!C183 -> 172 | C173: =PRRAS!D183 -> 0 | D173: =PRRAS!E183 -> 0 | E173: 0 | F173: 0 | G173: 0 | H173: 0 | I173: 0
A174: 151 | B174: =PRRAS!C184 -> 173 | C174: =PRRAS!D184 -> 300 | D174: =PRRAS!E184 -> 0 | E174: 0 | F174: 0 | G174: 51.9 | H174: 0 | I174: 0
A175: 151 | B175: =PRRAS!C185 -> 174 | C175: =PRRAS!D185 -> 220400 | D175: =PRRAS!E185 -> 218158 | E175: 0 | F175: 0 | G175: 114268.584 | H175: 0 | I175: 0
A176: 151 | B176: =PRRAS!C186 -> 175 | C176: =PRRAS!D186 -> 17936 | D176: =PRRAS!E186 -> 17328 | E176: 0 | F176: 0 | G176: 9203.6 | H176: 0 | I176: 0
A177: 151 | B177: =PRRAS!C187 -> 176 | C177: =PRRAS!D187 -> 90018 | D177: =PRRAS!E187 -> 75007 | E177: 0 | F177: 0 | G177: 42245.632 | H177: 0 | I177: 0
A178: 151 | B178: =PRRAS!C188 -> 177 | C178: =PRRAS!D188 -> 2785 | D178: =PRRAS!E188 -> 3520 | E178: 0 | F178: 0 | G178: 1739.025 | H178: 0 | I178: 0
A179: 151 | B179: =PRRAS!C189 -> 178 | C179: =PRRAS!D189 -> 49383 | D179: =PRRAS!E189 -> 48063 | E179: 0 | F179: 0 | G179: 25900.602 | H179: 0 | I179: 0
A180: 151 | B180: =PRRAS!C190 -> 179 | C180: =PRRAS!D190 -> 0 | D180: =PRRAS!E190 -> 0 | E180: 0 | F180: 0 | G180: 0 | H180: 0 | I180: 0
A181: 151 | B181: =PRRAS!C191 -> 180 | C181: =PRRAS!D191 -> 13638 | D181: =PRRAS!E191 -> 19414 | E181: 0 | F181: 0 | G181: 9443.88 | H181: 0 | I181: 0
A182: 151 | B182: =PRRAS!C192 -> 181 | C182: =PRRAS!D192 -> 20957 | D182: =PRRAS!E192 -> 30883 | E182: 0 | F182: 0 | G182: 14972.863 | H182: 0 | I182: 0
A183: 151 | B183: =PRRAS!C193 -> 182 | C183: =PRRAS!D193 -> 6000 | D183: =PRRAS!E193 -> 6562 | E183: 0 | F183: 0 | G183: 3480.568 | H183: 0 | I183: 0
A184: 151 | B184: =PRRAS!C194 -> 183 | C184: =PRRAS!D194 -> 19683 | D184: =PRRAS!E194 -> 17381 | E184: 0 | F184: 0 | G184: 9963.435 | H184: 0 | I184: 0
A185: 151 | B185: =PRRAS!C195 -> 184 | C185: =PRRAS!D195 -> 0 | D185: =PRRAS!E195 -> 0 | E185: 0 | F185: 0 | G185: 0 | H185: 0 | I185: 0
A186: 151 | B186: =PRRAS!C196 -> 185 | C186: =PRRAS!D196 -> 24722 | D186: =PRRAS!E196 -> 52105 | E186: 0 | F186: 0 | G186: 23852.42 | H186: 0 | I186: 0
A187: 151 | B187: =PRRAS!C197 -> 186 | C187: =PRRAS!D197 -> 0 | D187: =PRRAS!E197 -> 0 | E187: 0 | F187: 0 | G187: 0 | H187: 0 | I187: 0
A188: 151 | B188: =PRRAS!C198 -> 187 | C188: =PRRAS!D198 -> 0 | D188: =PRRAS!E198 -> 0 | E188: 0 | F188: 0 | G188: 0 | H188: 0 | I188: 0
A189: 151 | B189: =PRRAS!C199 -> 188 | C189: =PRRAS!D199 -> 4108 | D189: =PRRAS!E199 -> 7670 | E189: 0 | F189: 0 | G189: 3656.224 | H189: 0 | I189: 0
A190: 151 | B190: =PRRAS!C200 -> 189 | C190: =PRRAS!D200 -> 0 | D190: =PRRAS!E200 -> 1000 | E190: 0 | F190: 0 | G190: 378 | H190: 0 | I190: 0
A191: 151 | B191: =PRRAS!C201 -> 190 | C191: =PRRAS!D201 -> 9360 | D191: =PRRAS!E201 -> 13759 | E191: 0 | F191: 0 | G191: 7006.82 | H191: 0 | I191: 0
A192: 151 | B192: =PRRAS!C202 -> 191 | C192: =PRRAS!D202 -> 0 | D192: =PRRAS!E202 -> 21908 | E192: 0 | F192: 0 | G192: 8368.856 | H192: 0 | I192: 0
A193: 151 | B193: =PRRAS!C203 -> 192 | C193: =PRRAS!D203 -> 11254 | D193: =PRRAS!E203 -> 7768 | E193: 0 | F193: 0 | G193: 5143.68 | H193: 0 | I193: 0
A194: 151 | B194: =PRRAS!C204 -> 193 | C194: =PRRAS!D204 -> 8312 | D194: =PRRAS!E204 -> 37158 | E194: 0 | F194: 0 | G194: =(B194/1000)*(C194*1+D194*2) -> 15947.204 | H194: =ABS(C194-ROUND(C194,0))+ABS(D194-ROUND(D194,0)) -> 0 | I194: 0
A195: 151 | B195: =PRRAS!C205 -> 194 | C195: =PRRAS!D205 -> 0 | D195: =PRRAS!E205 -> 0 | E195: 0 | F195: 0 | G195: 0 | H195: 0 | I195: 0
A196: 151 | B196: =PRRAS!C206 -> 195 | C196: =PRRAS!D206 -> 0 | D196: =PRRAS!E206 -> 0 | E196: 0 | F196: 0 | G196: 0 | H196: 0 | I196: 0
A197: 151 | B197: =PRRAS!C207 -> 196 | C197: =PRRAS!D207 -> 0 | D197: =PRRAS!E207 -> 0 | E197: 0 | F197: 0 | G197: 0 | H197: 0 | I197: 0
A198: 151 | B198: =PRRAS!C208 -> 197 | C198: =PRRAS!D208 -> 0 | D198: =PRRAS!E208 -> 0 | E198: 0 | F198: 0 | G198: 0 | H198: 0 | I198: 0
A199: 151 | B199: =PRRAS!C209 -> 198 | C199: =PRRAS!D209 -> 0 | D199: =PRRAS!E209 -> 0 | E199: 0 | F199: 0 | G199: 0 | H199: 0 | I199: 0
A200: 151 | B200: =PRRAS!C210 -> 199 | C200: =PRRAS!D210 -> 0 | D200: =PRRAS!E210 -> 0 | E200: 0 | F200: 0 | G200: 0 | H200: 0 | I200: 0
... 1361 more rows

Sheet Upute
B1: Prelazak na Referentnu stranicu ––––>
B2: OSNOVNE UPUTE ZA UNOS PODATAKA
B3: ="Ver. " & MID(Skriveni!K31,1,1) & "." & MID(Skriveni!K31,2,1) & "." & MID(Skriveni!K31,3,1) & "." -> Ver. 5.0.4.
B4: Od 2017. Potvrda o primitku se izdaje samo za potpun i ispravan izvještaj (svi potrebni obrasci popunjeni i sve kontrole točne). U slučaju nepotpunog ili neispravnog izvještaja, korisniku se izdaje samo lista pogrešaka. S obzirom da su od 2017. godine novi obrasci, još uvijek je moguće da neka od kontrola sadrži pogrešku. Utvrdite li takvu pogrešku, ili prilikom predaje u Finu dobijete ispis pogrešaka koje smatrate da ne stoje, dostavite popunjenu Excel datoteku ili izlist pogreški na adresu e-pošte: rgfi@fina.hr
B5: Ovi izvještaji napravljeni su u Excel datoteci, format 97-2003. kako bi se omogućilo popunjavanje i korisnicima starijih verzija Excel-a. Moguće ju je popuniti u MS EXcel-u 97, XP, 2003, 2007, 2010, Office365, te novijim verzijama, a od besplatnih rješenja u OpenOffice-u 3.x i 4.x. Libre Office, Kingsoft Office te neki drugi alati koji imaju mogućnost rada s Excel datotekama nisu upotrebljivi za popunjavanje, kao ni neki drugi alati kojima je moguć rad s Excel datotekama jer ne sadrže bitne funkcionalnosti koje su potrebne da bi ugrađene formule i kontrole radile ispravno. Kod rada s novijim verzijama MS Excel-a važno je da datoteka ostane u ovom formatu, tj. da se ne pretvori u novi ".xlsx" format. Ova verzija datoteke predviđena je za popunjavanje svih vrsta proračunskih obrazaca, za sve razine te za sva razdoblja od 2015. godini nadalje. Predaja ovih obrazaca za sada je moguća samo u poslovnicama Fine, a predaja putem web servisa je u planu. Od 2015. godine ukinuti su izvještaji NT i S-PR-RAS. Svi koji su za kvartale predavali obrazac S-PR-RAS, sad su dužni predati PR-RAS obrazac i za I. i III. kvartal. Isto tako, neki obveznici koji nisu bili obvezni predavati obrazac RAS-funkcijski za godinu sada su obvezni.
B6: Sva bitna pravila o popunjavanju obrazaca, poslovnim pravilima navedena su u nastavku uputa, ono što nije objašnjeno u uputama opisano je u kontrolama koje javljaju pogrešku. Prije nego rješenje problema potražite na broju telefona ili adresi e-pošte na dnu uputa, pokušajte ga pronaći u sklopu uputa.
B7: Analizom najčešćih pogrešaka prilikom popunjavanja i predaje, nastojali smo na najmanju moguću mjeru smanjiti mogućnost pogreške pri popunjavanju te olakšati pronalaženje pogrešaki. Novost je da će se ćelija sa upisanim iznosom obojati žutom bojom ako iznos nije zaokružena vrijednost, a pozadina ćelije koja je upisana s predznakom minus tamo gdje to nije dopušteno obojat će se crvenom bojom. Iako je onemogućen ručni upis takvih podataka, programi koji pune Excel datoteku mogu u svaku ćeliju "zgurati" bilo kakvu vrijednost pa je kontrola ovog tipa potrebna. Na referentnoj stranici je pored svakog obrasca koji je popunjen upsan tekst "NE" ako obrazac nema matematičko logičkih pogrešaka, a u slučaju da ih ima, pisat će broj pogrešaka u crvenoj boji kako bi pogreške bile uočljivije. Na radnom listu Kont (kontrole), status ispravne kontrole "Ispravna" biti će zelene boje na bijeloj podlozi, a status kontrole u grešci biti će "Pogreška" bijelim slovima na crvenoj podlozi. Status kontrole upozorenja koje upozoravaju da provjerite neki iznos biti će "Pozor!" napisano žutim slovima na rozoj podlozi.
B8: Excel datoteka može javiti pogrešku iako je pored svih naziva obrazaca broj pogrešaka nula. To je moguće samo na godišnjoj razini kada postoje kontrole između obrazaca, tj. svaki obrazac sam za sebe može biti točan, ali kontrole između obrazaca uspoređuju istovjernte stavke u raznim obrascima, ako se one ne slažu (nisu iste), cijeli paket je u grešci, tj. neispravan.
B9: U nastavku su dane tehničke upute o popunajvanju obrazaca.
B10: U polja Datum od i Datum do upisuju se stvarni datumi unutar razdoblja izvještavanja u kojem je obveznik bio aktivan (tj. poslovao). Obveznik koji je počeo s radom tokom godine, upisuje datum stvarnog početka rada, a obveznik koji je prestaje s radom ili postaje druga vrsta obveznika upisuju stvarni datum prestanka rada, što znači da se u tim slučajevima ne upisuju 1.1. u Datum od, niti 31.12 u Datum do polje. Isti upisani datumi se prenose i na naslovnicu Referentne stranice. Za razliku od upisanih datuma, datumi na pojedinačnom obrascu se određuju prema odabranoj AOP oznaci razdoblja, tj. bez obzira koliko je obveznik stvarno poslovao unutar razdoblja obrade. Primjerice, za odabrano razdoblje 2015-12 na bilanci će se pojaviti datumi razdoblja za koje se izvještava (tj. 1.1. do 31. 12. 2015.), dok će se na obrascu obveze pojaviti datumi 1.10 do 31. 12. 2015. jer je to stvarno razdoblje izvještavanja za taj obrazac. Prema kontrolama obveznosti, razini i odabranoj AOP oznaci razdoblja, u zaglavlju nekih obrasca će biti ispisan tekst - "za odabrano razdoblje i razinu obrazac se ne popunjava" (primjerice, Bil se popunjava samo kada je obrada za cijelu godinu (razdoblje 20XX-12) dok se PR-RAS popunjava samo za kvartale, a mjesečne obveze predaju se za sve mjesece.
B11: Navigacija kroz Excel datoteku riješena je na način da se sa svakog obrasca možete se vratiti na Referentnu stranicu, ili direktno na kontrole vezane za taj obrazac (klikom na žuti tekst na plavoj podlozi na vrhu ekrana), a sa referentne stranice možete se prebaciti na šifarnike, upute i kontrole. Sa referentne stranice na svaki od obrazaca prebacujete se klikom na ime obrasca na popisu obrazaca. Sa kontrola obrasca moguće je vratiti se na Referentnu stranicu (na vrhu ekrana) ili na svaki pojedini obrazac - klikom na ime obrasca u naslovima dijela kontrola koje se odnose na taj obrazac. Kako bi što bolje označili koja polja služe za navigaciju, ona su obojana tamnomodrozelenom bojom s žutim slovima. Mjesto za radni list Novosti je predviđeno, a ugradit ćemo ga neku novu verziju Excel datoteke kada to bude potrebno. Zbog toga je navigacija na List novosti bijela (Neaktivna).
B12: Osnovni podaci o obvezniku unose se u radni list "RefStr" (Referentna stranica). Podaci u zaglavlju upisani u Referentnu stranicu prenose se automatizmom na sve ostale radne listove i obrasce. Time je osigurano da svi podaci iz zaglavlja, u svim obrascima budu identični. Svi podaci u zaglavlju čiji opis je označen tamnomodrom bojom obavezni su za unos. Preporuča se da popunite sva polja, jer nisu obavezni kontakt podaci o korisniku, a koji bi mogli zatrebati da Vas možemo obavijestiti o naknadno utvrđenim pogreškama ili novostima.
B13: Oznaka razdoblja, razine, šifre općine i djelatnosti možete upisati rukom ili izabrati s padajućeg izbornika na tom unosnom polju. Izbjegavajte unos ovih podataka metodama Copy/Paste iz nekih drugih Excel datoteka (Kopiraj/Zalijepi) kako ne biste prenijeli i neke formate iz te druge datoteke, a time spomenutu šifru učinili neprepoznatljivom za programsko učitavanje. Polja predviđena za unos u zaglavlju Referentne stranice označena su sivim rasterom. Razdoblje se unosi na način GGGG-MM gdje je GGGG godina, a MM mjesec u kojem završava razdoblje izvještavanja. Kako biste bili sigurni da nećete imati problema oko popunjavanja obrazaca, preporučeno je da regionalne postavke na računalu budu namještene za Hrvatsku, format datuma: DD.MM.GGGG (DD.MM.YYYY), a kod brojevnih vrijednosti točka za odvajanje tisućica, zarez kao decimalno mjesto.
B14: Novost u odnosu na prijašnje obrasce je da se sve brojčane oznake (RKP, matični broj, broj pošte, razina, šifra djelatnosti, razdjel te šifra općine) unose kao brojevna vrijednost, bez vodećih nula, a nakon unosa, na Referentnoj stranici će se pokazati s vodećim nulama tamo gdje je to potrebno. Ovaj način uveden je kako bi istu Excel datoteku bilo moguće popunjavati i u Excel-u i u OpenOffice-u.
B15: U obrasce se unose iznosi samo pojedinačnih AOP oznaka. Sumarne AOP oznake se zaštićene su, u njih nije moguć unos, a izračunavaju se automatski na osnovu upisanih pojedinačnih iznosa. Upisuju se samo cjelobrojne vrijednosti. Iznosi s lipama nisu dopušteni. Sumarne AOP oznake u obrascu plave boje s podebljanim tipom slova (bold) da se bolje razlikuju. Vrijednosti tih pozicija izračunat će se automatski na osnovu upisanih pojedinačnih stavaka. Na obrascima koji imaju stupac indeks, taj podatak se ne upisuje već se izračunava automatski na osnovu upisanih vrijednosti. Tamo gdje indeks nije moguće izračunati pojavit će se crtica "-", a tamo gdje je indeks veći od 1000 pojavit će se tekst ">>100".
B16: Vrlo važno: Kod unosa vrijednosti naprednijim metodama Kopiraj/Zalijepi (Copy/Paste) iz nekih drugih dokumenata OBAVEZNO koristite metodu Copy (Kopiraj), a ne Cut (Izreži), jer se kod korištenja metode Cut/Paste nepovratno pokvari struktura datoteke. Isto tako, kod Paste metode koristite opciju Paste Special (Posebno lijepljenje), pa odaberite Vrijednosti (Value). Ni u kom slučaju ne prenosite krivo upisane iznose s jedne AOP pozicije na drugu tako da ih prenosite mišem. Isto tako, ne brišite postojeće radne listove, ne mijenjajte nazive postojećih, ne uključujte dijeljenje ili zaštitu radne knjige, ne ubacujte linkove na neke druge dokumente. S obzirom da su svi radni listovi međusobno povezani formulama koje služe kao kontrola, svaka od spomenutih radnji rezultira da Excel datoteka postane neupotrebljiva za računalnu obradu i morat ćete ispuniti novu datoteku.
B17: Kontrole obrazaca podijeljene su na općenite (kontrole popunjenosti pojedinih obrazaca, popunjenost zaglavlja, kontrole između obrazaca) te na kontrole na razini pojedinog obrasca. Općenite kontrole provjeravajte tek kada popunite sve obrasce koje ste dužni predati. Ako ste dužni predati neki obrazac (prema razdoblju predaje i razini), a niste ga popunili kontrola će na to upozoriti, isto tako, upozorit će ako ste popunili obrazac koji niste dužni predati. Kontrole na razini pojedinog obrasca provjeravajte nakon popunjavanja tog obrasca. Ako neka kontrola nije zadovoljena ispravite podatak.
B18: Na referentnoj stranici pored imena svakog obrasca postoji stupac "Kontroliran" u kojem piše "DA" ako su sve kontrole zadovoljene, a ako nisu, umjesto teksta "DA" pojavljuje se broj kontrola na razini tog obrasca koje su još u grešci. Ako na Referentnoj stranici, pored imena nekog obrasca u stupcu "Popunjen" stoji "NE" eventualne kontrole na razini tog obrasca koje nisu zadovoljene možete zanemariti jer se taj obrazac neće ni učitati. Ako pored svakog obrasca piše da je kontroliran ("DA"), a i dalje na referentnoj stranici piše da obrazac nije ispravan, nije zadovoljena neka od općenitih kontrola.
B19: Oznaka "DA" na referentnoj stranici pored imena svakog obrasca pojavit će se nakon unosa barem jednog iznosa različitog od nule. To još uvijek ne znači da je taj obrazac potpun, i ispravan ali signalizira da je nešto upisano u taj obrazac, i smatra se da je korisnik i taj obrazac predao. Ne unosite iznose u obrasce koje niste dužni predati. Posebnost je obrazac P-VRIO, koji kod nekih obveznika može sadržavati sve nule, tj. nema niti jednu vrijednost različitu od nule. Kod obrasca P-VRIO oznaka "DA" ili "NE" ne dodjeljuje se automatski nego je mora upisati (ili odabrati s popisa) korisnik.
B20: Česta pogreška pri unosu je da nakon brisanja vrijednosti nekog AOP-a u ćeliji ostane upisan razmak koji se ne vidi na ekranu, kad se to dogodi, polje kontrolni broj na vrhu obrasca bit će popunjeno s vrijednošću #VRIJ ili #VALUE. U tom slučaju, ako ne uspijete pronaći na kojem AOP-u je upisan razmak ili neki drugi znak koji nije brojevna vrijednost, popunite sva polja koja nemaju podataka nulama.
B21: Važno: S obzirom da velik broj obveznika obrasce popunjava direktno iz svojih računovodstvenih aplikacija, prije dostavljanja takvog obrasca u poslovnicu FINA-e (bez obzira u kojem programu je popunjavan) neophodno je da tako popunjene obrasce otvore u Excel-u, te nakon toga neki od AOP-a ili neki od datuma razdoblja pobrišete i upišete ponovo, kako biste u Excel-u pokrenuli izračun formula jer vanjske aplikacije popune samo pojedinačna polja u obrascu i nemaju mogućnost da pokrenu i sve izračune i kontrole u obrascima. Znači, nakon što obrazac popuni vanjska aplikacija, te ga otvorite kako biste ispisali referentnu stranicu, pobrišite i ponovo upište recimo datum od i datum do razdoblja, te obavezno nakon ispisa te stranice snimite ponovo sve promjene u obrascu (kod izlaska iz Excel-a on Vas pita želite li snimiti promjene, treba obavezno odgovoriti sa Da.
B22: Korisnici Open Office-a: U vrijeme izrade obrasca zadnja aktualna verzija OpenOffice-a na hrvatskom jeziku je bila 4.2. Obrazac popunjen u ovoj verziji Open Office-a moguće je učitati u aplikaciju i s njim nije bilo problema u učitavanju. Koristite li starije verzije OpenOffice-a možete s Interneta besplatno skinuti zadnju verziju Open Officea, jer obrasci popunjeni u starijim verzijama mogli bi biti nečitki nakon predaje u FINA-u. Praksa je pokazala da neke verzije Excel-a ne rade dobro bez svih zakrpa (Service Pack-ova), zato provjerite s svojim informatičarima imate li na računalu instalirane sve zakrpe za program koji koristitie za popunjavanje. Korisnici Excel-a verzije 2007 i 2010, moraju prilikom snimanja Excel datoteke odabrati format 97-2003 jer najnoviji Excel format 2007 nije podržan. Prilikom prvog snimanja u ovoj novoj verziji Excel-a on će ponuditi konverziju u najnoviji format, pri tome treba odabrati da datoteka ostane u starom 97-2003 formatu, a ako ste pogreškom pretvorili u novi format 2007, potrebno je kroz opciju File (Datoteka), Save As (Snimi kao) ponovo snimiti u stariji format na način da se odabere format "Radna knjiga Excela 97-2003" ili "Microsoft Excel 97-2003 workbook" (na dnu prozora za snimanje).
B23: Primijećeno je da se Excel datoteke često ne daju učitati jer sve formule nisu izračunate. Praksa je pokazala da se to puno rjeđe događa ako se obrazac prvo snimi, pa se onda izađe iz Excel-a (ili aplikacije za unos) nego ako se odabere izlaz iz aplikacije pa tek onda na poruku "želite li snimiti promjene prilikom izlaska iz aplikacije" odaberete "snimi". Zato pokušajte uvijek kad želite izaći iz datoteke koju popunjavate ili ste popunili, prvo izabrati snimi promjene, pa onda napustiti aplikaciju (bez snimanja promjena).
B24: Imate li problema tehničke naravi s popunjavanjem obrasca, radom kontrola i slično, dostavite nam popunjenu problematičnu Excel datoteku zajedno s Vašim kontakt podacima te podacima o programu koji i koju verziju koristite za popunjavanje na adresu e-pošte: rgfi@fina.hr.

Sheet RefStr
A1: Novosti | C1: Uputa | E1: Kontrole | G1: Sifre | J1: Promjene
H2: =LOOKUP(B22,A107:A663,C107:C663) -> 14 | J2: Referentna stranica
A4: Izvještaji proračuna, proračunskih i izvanproračunskih korisnika
A5: =IF(AND(K10<>"",K12<>""), "za razdoblje: " & TEXT(K10, "d. mmmm yyyy.") & " – " & TEXT(K12, "d. mmmm yyyy."),"za razdoblje od ________________ do ______________") -> za razdoblje: 1. siječanj 2017. – 31. prosinac 2017.
A6: Broj RKP-a: | B6: 9431 | D6: AOP oznaka razdoblja: | F6: 2017-12 | J6: =SUM(Skriveni!G2:G1561) -> 110541620.3
A8: Matični broj: | B8: 3392295 | C8: Proračun nema korisnika pa Izvještaj vrijedi i kao konsolidirani: | I8: NE | J8: Kontrolni broj izvještaja
A10: Naziv obveznika: | B10: OŠ MLADOST OSIJEK | J10: Od datuma: | K10: 2017-01-01
A12: Pošta i mjesto: | B12: 31000 | C12: OSIJEK | J12: Do datuma: | K12: 2017-12-31
A14: Ulica i kućni broj: | B14: SJENJAK 7 | J14: OIB: | K14: 19998137302
A16: Razina: | B16: 31 | C16: =IF(B16>0,LOOKUP(B16,A66:A74,B66:B74),"Razina nije upisana") -> Proračunski korisnik jedinice lokalne i područne (regionalne) samouprave koji obavlja poslove u sklopu funkcija koje se decentraliziraju
A18: Šifra djelatnosti: | B18: 8520 | C18: =IF(B18>0,LOOKUP(B18,Sifre!A255:A869,Sifre!B255:B869),"Djelatnost nije upisana") -> Osnovno obrazovanje
A20: Razdjel: | B20: 0 | C20: =IF(B20<>"","Razdjel: " & LOOKUP(B20,A666:A713,B666:B713),"Razdjel nije upisan") -> Razdjel: NEMA RAZDJELA
A22: Šifra grada/opć.: | B22: 312 | C22: =IF(B22>0, "Županija: " & LOOKUP(H2,A83:A103,B83:B103) & ", grad/općina: " & LOOKUP(B22,A107:A663,B107:B663),"Šifra grada/općine nije upisana") -> Županija: OSIJEČKO-BARANJSKA, grad/općina: OSIJEK
B24: Popunjen | D24: Broj pogrešaka
A25: Pregled popunjenosti obrazaca: | B25: =IF(SUM(Skriveni!C2:F642)=0,"NE", "DA") -> DA | C25: PR-RAS (VP 151) | E25: =IF(AND(B25="DA",Kont!E23>0),Kont!E23,"Nema") -> Nema | G25: Osoba za kontaktiranje: | H25: Robertina Filić
B27: =IF(SUM(Skriveni!C977:D1225)<>0,"DA","NE") -> DA | C27: BIL (VP 152) | E27: =IF(AND(B27="DA",Kont!E261>0),Kont!E261,"Nema") -> Nema | G27: Telefon: | H27: 031496682 | J27: Telefax: | K27: 031574913
B29: =IF(SUM(Skriveni!C1287:D1422)<>0,"DA","NE") -> DA | C29: RAS funkcijski (VP 154) | E29: =IF(AND(B29="DA",Kont!E297>0),Kont!E297,"Nema") -> Nema | G29: Adresa e-pošte za kontakt: | H29: ured@os-mladost-os.skole.hr
B31: DA | C31: P-VRIO (VP 156) | E31: =IF(Kont!E292>0,Kont!E292,"Nema") -> Nema | G31: Adresa e-pošte obveznika:
B33: =IF(SUM(Skriveni!C1468:C1550)<>0,"DA","NE") -> DA | C33: Obveze (VP 159) | E33: =IF(AND(B33="DA",Kont!E288>0),Kont!E288,"Nema") -> Nema | G33: Zakonski predstavnik: | H33: JOSIP JUKIĆ
G35: Stanje kontrola: | H35: =IF(Kont!E3>0,"Izvještaj sadrži pogreške, broj pogrešaka: " & Kont!E3,IF(J6=0,"Izvještaj je prazan","Izvještaj nema pogrešaka")) -> Izvještaj nema pogrešaka
A38: Obrazac | B38: Opis stavke | I38: AOP oznaka | J38: Prethodna godina / početak godine | K38: Tekuća godina / kraj godine
A39: PR-RAS | B39: =PRRAS!B12 -> PRIHODI POSLOVANJA (AOP 002+039+045+074+105+123+130+136) | I39: =PRRAS!C12 -> 1 | J39: =PRRAS!D12 -> 7377585 | K39: =PRRAS!E12 -> 7821214
B40: =PRRAS!B159 -> RASHODI POSLOVANJA (AOP 149+160+193+212+221+246+257) | I40: =PRRAS!C159 -> 148 | J40: =PRRAS!D159 -> 7344045 | K40: =PRRAS!E159 -> 7840643
B41: =PRRAS!B648 -> Višak prihoda i primitaka raspoloživ u sljedećem razdoblju (AOP 631+633-632-634) | I41: =PRRAS!C648 -> 635 | J41: =PRRAS!D648 -> 85945 | K41: =PRRAS!E648 -> 12550
B42: =PRRAS!B649 -> Manjak prihoda i primitaka za pokriće u sljedećem razdoblju (AOP 632+634-631-633) | I42: =PRRAS!C649 -> 636 | J42: =PRRAS!D649 -> 0 | K42: =PRRAS!E649 -> 0
A43: Bilanca | B43: =Bil!B13 -> Nefinancijska imovina (AOP 003+007+046+047+051+058) | I43: =Bil!C13 -> 2 | J43: =Bil!D13 -> 127017 | K43: =Bil!E13 -> 157138
B44: =Bil!B74 -> Financijska imovina (AOP 064+073+081+112+128+140+157+158) | I44: =Bil!C74 -> 63 | J44: =Bil!D74 -> 707100 | K44: =Bil!E74 -> 720697
B45: =Bil!B174 -> Obveze (AOP 164+175+176+192+220) | I45: =Bil!C174 -> 163 | J45: =Bil!D174 -> 613897 | K45: =Bil!E174 -> 699199
B46: =Bil!B234 -> Vlastiti izvori (224 + 232 - 236 + 240 do 242) | I46: =Bil!C234 -> 223 | J46: =Bil!D234 -> 220219 | K46: =Bil!E234 -> 178635
A47: RAS-funkcijski | B47: =RasF!B12 -> Opće javne usluge (AOP 002+006+009+013 do 017) | I47: =RasF!C12 -> 1 | J47: =RasF!D12 -> 0 | K47: =RasF!E12 -> 0
B48: =RasF!B42 -> Ekonomski poslovi (AOP 032+035+039+046+050+056+057+062+070) | I48: =RasF!C42 -> 31 | J48: =RasF!D42 -> 0 | K48: =RasF!E42 -> 0
B49: =RasF!B95 -> Rashodi vezani za stanovanje i kom. pogodnosti koji nisu drugdje svrstani | I49: =RasF!C95 -> 84 | J49: =RasF!D95 -> 0 | K49: =RasF!E95 -> 0
B50: =RasF!B121 -> Obrazovanje (AOP 111+114+117+118+121 do 124) | I50: =RasF!C121 -> 110 | J50: =RasF!D121 -> 7358507 | K50: =RasF!E121 -> 7894608
B51: =RasF!B148 -> Kontrolni zbroj (AOP 001+018+024+031+071+078+085+103+110+125) | I51: =RasF!C148 -> 137 | J51: =RasF!D148 -> 7358507 | K51: =RasF!E148 -> 7894608
A52: P-VRIO | B52: =PVRIO!B12 -> Promjene u vrijednosti i obujmu imovine (AOP 002+018) | I52: =PVRIO!C12 -> 1 | J52: =PVRIO!D12 -> 0 | K52: =PVRIO!E12 -> 35027
B53: =PVRIO!B29 -> Promjene u obujmu imovine (AOP 019+026) | I53: =PVRIO!C29 -> 18 | J53: =PVRIO!D29 -> 0 | K53: =PVRIO!E29 -> 35027
B54: =PVRIO!B45 -> Promjene u vrijednosti (revalorizacija) i obujmu obveza (AOP 035+040) | I54: =PVRIO!C45 -> 34 | J54: =PVRIO!D45 -> 0 | K54: =PVRIO!E45 -> 0
B55: =PVRIO!B51 -> Promjene u obujmu obveza (AOP 041 do 044) | I55: =PVRIO!C51 -> 40 | J55: =PVRIO!D51 -> 0 | K55: =PVRIO!E51 -> 0
A56: Obveze | B56: =Obv!B12 -> Stanje obveza 1. siječnja (=AOP 036* iz Izvještaja o obvezama za prethodnu godinu) | I56: =Obv!C12 -> 1 | J56: - | K56: =Obv!D12 -> 597788
B57: =Obv!B47 -> Stanje obveza na kraju izvještajnog razdoblja (AOP 001+002-019) i (AOP 037+090) | I57: =Obv!C47 -> 36 | J57: - | K57: =Obv!D47 -> 691521
B58: =Obv!B48 -> Stanje dospjelih obveza na kraju izvještajnog razdoblja (AOP 038+043+079+084) | I58: =Obv!C48 -> 37 | J58: - | K58: =Obv!D48 -> 14900
B59: =Obv!B101 -> Stanje nedospjelih obveza na kraju izvještajnog razdoblja (AOP 091 do 094) | I59: =Obv!C101 -> 90 | J59: - | K59: =Obv!D101 -> 676621
A61: U ___________________________________ dana _________________ 20____ godine. | J61: ="Verzija Excel datoteke: " & MID(Skriveni!K31,1,1) & "." & MID(Skriveni!K31,2,1) & "." & MID(Skriveni!K31,3,1) & "." -> Verzija Excel datoteke: 5.0.4.
A63: (potpis voditelja računovodstva) | H63: (potpis odgovorne osobe)
A66: 11 | B66: Proračunski korisnik državnog proračuna i glava unutar nadležnog ministarstva
A67: 12 | B67: Nadležno ministarstvo/razdjel - konsolidirani izvještaj
A68: 13 | B68: Državni proračun
A69: 21 | B69: Proračunski korisnik jedinice lokalne i područne (regionalne) samouprave
A70: 22 | B70: Proračun jedinice lokalne i područne (regionalne) samouprave
A71: 23 | B71: Konsolidirani proračun jedinice lokalne i područne (regionalne) samouprave
A72: 31 | B72: Proračunski korisnik jedinice lokalne i područne (regionalne) samouprave koji obavlja poslove u sklopu funkcija koje se decentraliziraju
A73: 41 | B73: Izvanproračunski korisnik državnog proračuna
A74: 42 | B74: Izvanproračunski korisnik jedinice lokalne i područne (regionalne) samouprave
A76: RAZD | B76: OPIS2 kvartal
B77: za odabrano razdoblje i razinu obrazac se ne popunjava
A78: 2017-03 | B78: za razdoblje 1. siječnja do 31. ožujka 2017. godine
A79: 2017-06 | B79: za razdoblje 1. siječnja do 30. lipnja 2017. godine
A80: 2017-09 | B80: za razdoblje 1. siječnja do 30. rujna 2017. godine
A81: 2017-12 | B81: za razdoblje 1. siječnja do 31. prosinca 2017. godine
A83: 1 | B83: ZAGREBAČKA
A84: 2 | B84: KRAPINSKO-ZAGORSKA
A85: 3 | B85: SISAČKO-MOSLAVAČKA
A86: 4 | B86: KARLOVAČKA
A87: 5 | B87: VARAŽDINSKA
A88: 6 | B88: KOPRIVNIČKO-KRIŽEVAČKA
A89: 7 | B89: BJELOVARSKO-BILOGORSKA
A90: 8 | B90: PRIMORSKO-GORANSKA
A91: 9 | B91: LIČKO-SENJSKA
A92: 10 | B92: VIROVITIČKO-PODRAVSKA
A93: 11 | B93: POŽEŠKO-SLAVONSKA
A94: 12 | B94: BRODSKO-POSAVSKA
A95: 13 | B95: ZADARSKA
A96: 14 | B96: OSIJEČKO-BARANJSKA
A97: 15 | B97: ŠIBENSKO-KNINSKA
A98: 16 | B98: VUKOVARSKO-SRIJEMSKA
A99: 17 | B99: SPLITSKO-DALMATINSKA
A100: 18 | B100: ISTARSKA
A101: 19 | B101: DUBROVAČKO-NERETVANSKA
A102: 20 | B102: MEĐIMURSKA
A103: 21 | B103: GRAD ZAGREB
A107: 1 | B107: ANDRIJAŠEVCI | C107: 16 | E107: 111
A108: 2 | B108: ANTUNOVAC | C108: 14 | E108: 112
A109: 3 | B109: BABINA GREDA | C109: 16 | E109: 113
A110: 4 | B110: BAKAR | C110: 8 | E110: 114
A111: 5 | B111: BALE | C111: 18 | E111: 115
A112: 6 | B112: BARBAN | C112: 18 | E112: 116
A113: 7 | B113: BARILOVIĆI | C113: 4 | E113: 119
A114: 8 | B114: BAŠKA | C114: 8 | E114: 121
A115: 9 | B115: BAŠKA VODA | C115: 17 | E115: 122
A116: 10 | B116: BEBRINA | C116: 12 | E116: 123
A117: 11 | B117: BEDEKOVČINA | C117: 2 | E117: 124
A118: 12 | B118: BEDNJA | C118: 5 | E118: 125
A119: 13 | B119: BELI MANASTIR | C119: 14 | E119: 125
A120: 15 | B120: BELICA | C120: 20 | E120: 126
A121: 16 | B121: BELIŠĆE | C121: 14 | E121: 127
A122: 17 | B122: BENKOVAC | C122: 13 | E122: 128
A123: 18 | B123: BEREK | C123: 7 | E123: 129
A124: 19 | B124: BERETINEC | C124: 5 | E124: 130
A125: 20 | B125: BIBINJE | C125: 13 | E125: 141
A126: 21 | B126: BILJE | C126: 14 | E126: 142
A127: 22 | B127: BIOGRAD NA MORU | C127: 13 | E127: 143
A128: 23 | B128: BIZOVAC | C128: 14 | E128: 144
A129: 24 | B129: BJELOVAR | C129: 7 | E129: 145
A130: 25 | B130: BLATO | C130: 19 | E130: 146
A131: 26 | B131: BOGDANOVCI | C131: 16 | E131: 147
A132: 27 | B132: BOL | C132: 17 | E132: 149
A133: 29 | B133: BOROVO | C133: 16 | E133: 150
A134: 30 | B134: BOSILJEVO | C134: 4 | E134: 161
A135: 32 | B135: BOŠNJACI | C135: 16 | E135: 162
A136: 33 | B136: BRCKOVLJANI | C136: 1 | E136: 163
A137: 34 | B137: BRDOVEC | C137: 1 | E137: 164
A138: 35 | B138: BRESTOVAC | C138: 11 | E138: 170
A139: 36 | B139: BREZNICA | C139: 5 | E139: 210
A140: 37 | B140: BRINJE | C140: 9 | E140: 220
A141: 38 | B141: BROD MORAVICE | C141: 8 | E141: 230
A142: 39 | B142: BRODSKI STUPNIK | C142: 12 | E142: 240
A143: 40 | B143: BRTONIGLA | C143: 18 | E143: 311
A144: 41 | B144: BUDINŠČINA | C144: 2 | E144: 312
A145: 42 | B145: BUJE | C145: 18 | E145: 321
A146: 43 | B146: BUZET | C146: 18 | E146: 322
A147: 44 | B147: CERNA | C147: 16 | E147: 510
A148: 46 | B148: CERNIK | C148: 12 | E148: 520
A149: 47 | B149: CEROVLJE | C149: 18 | E149: 610
A150: 48 | B150: CESTICA | C150: 5 | E150: 620
A151: 49 | B151: CETINGRAD | C151: 4 | E151: 710
A152: 50 | B152: CISTA PROVO | C152: 17 | E152: 721
A153: 51 | B153: CIVLJANE | C153: 15 | E153: 729
A154: 52 | B154: CRES | C154: 8 | E154: 811
A155: 53 | B155: CRIKVENICA | C155: 8 | E155: 812
A156: 54 | B156: CRNAC | C156: 10 | E156: 891
A157: 55 | B157: ČABAR | C157: 8 | E157: 892
A158: 56 | B158: ČAČINCI | C158: 10 | E158: 893
A159: 57 | B159: ČAĐAVICA | C159: 10 | E159: 899
A160: 58 | B160: ČAGLIN | C160: 11 | E160: 910
A161: 60 | B161: ČAKOVEC | C161: 20 | E161: 990
A162: 61 | B162: ČAVLE | C162: 8 | E162: 1011
A163: 63 | B163: ČAZMA | C163: 7 | E163: 1012
A164: 64 | B164: ČEMINAC | C164: 14 | E164: 1013
A165: 65 | B165: ČEPIN | C165: 14 | E165: 1020
A166: 66 | B166: DARDA | C166: 14 | E166: 1031
A167: 67 | B167: DARUVAR | C167: 7 | E167: 1032
A168: 68 | B168: DAVOR | C168: 12 | E168: 1039
A169: 69 | B169: DELNICE | C169: 8 | E169: 1041
A170: 70 | B170: DESINIĆ | C170: 2 | E170: 1042
A171: 71 | B171: DEŽANOVAC | C171: 7 | E171: 1051
A172: 72 | B172: DICMO | C172: 17 | E172: 1052
A173: 74 | B173: DOBRINJ | C173: 8 | E173: 1061
A174: 75 | B174: DOMAŠINEC | C174: 20 | E174: 1062
A175: 77 | B175: BRELA | C175: 17 | E175: 1071
A176: 78 | B176: DONJA DUBRAVA | C176: 20 | E176: 1072
A177: 79 | B177: DONJA STUBICA | C177: 2 | E177: 1073
A178: 80 | B178: DONJA VOĆA | C178: 5 | E178: 1081
A179: 81 | B179: DONJI ANDRIJEVCI | C179: 12 | E179: 1082
A180: 82 | B180: DONJI KRALJEVEC | C180: 20 | E180: 1083
A181: 83 | B181: DONJI KUKURUZARI | C181: 3 | E181: 1084
A182: 84 | B182: DONJI LAPAC | C182: 9 | E182: 1085
A183: 85 | B183: DONJI MARTIJANEC | C183: 5 | E183: 1086
A184: 86 | B184: DONJI MIHOLJAC | C184: 14 | E184: 1089
A185: 87 | B185: MUĆ | C185: 17 | E185: 1091
A186: 88 | B186: PROLOŽAC | C186: 17 | E186: 1092
A187: 89 | B187: DONJI VIDOVEC | C187: 20 | E187: 1101
A188: 90 | B188: DRAGANIĆ | C188: 4 | E188: 1102
A189: 91 | B189: DRAŽ | C189: 14 | E189: 1103
A190: 92 | B190: DRENOVCI | C190: 16 | E190: 1104
A191: 94 | B191: DRENJE | C191: 14 | E191: 1105
A192: 95 | B192: DRNIŠ | C192: 15 | E192: 1106
A193: 96 | B193: DRNJE | C193: 6 | E193: 1107
A194: 97 | B194: DUBRAVA | C194: 1 | E194: 1200
A195: 98 | B195: DUBROVNIK | C195: 19 | E195: 1310
A196: 99 | B196: DUGA RESA | C196: 4 | E196: 1320
A197: 100 | B197: DUGI RAT | C197: 17 | E197: 1330
A198: 101 | B198: DUGO SELO | C198: 1 | E198: 1391
A199: 102 | B199: DVOR | C199: 3 | E199: 1392
A200: 103 | B200: ĐAKOVO | C200: 14 | E200: 1393
A201: 104 | B201: ĐELEKOVEC | C201: 6 | E201: 1394
A202: 105 | B202: ĐULOVAC | C202: 7 | E202: 1395
A203: 106 | B203: ĐURĐENOVAC | C203: 14 | E203: 1396
A204: 107 | B204: ĐURĐEVAC | C204: 6 | E204: 1399
A205: 108 | B205: ĐURMANEC | C205: 2 | E205: 1411
A206: 110 | B206: ERDUT | C206: 14 | E206: 1412
A207: 111 | B207: ERNESTINOVO | C207: 14 | E207: 1413
A208: 113 | B208: ERVENIK | C208: 15 | E208: 1414
A209: 114 | B209: FARKAŠEVAC | C209: 1 | E209: 1419
A210: 115 | B210: FERDINANDOVAC | C210: 6 | E210: 1420
A211: 116 | B211: FERIČANCI | C211: 14 | E211: 1431
A212: 117 | B212: FUŽINE | C212: 8 | E212: 1439
A213: 118 | B213: GARČIN | C213: 12 | E213: 1511
A214: 119 | B214: GAREŠNICA | C214: 7 | E214: 1512
A215: 120 | B215: GENERALSKI STOL | C215: 4 | E215: 1520
A216: 121 | B216: GLINA | C216: 3 | E216: 1610
A217: 122 | B217: GOLA | C217: 6 | E217: 1621
A218: 123 | B218: GORIČAN | C218: 20 | E218: 1622
A219: 124 | B219: GORJANI | C219: 14 | E219: 1623
A220: 125 | B220: GORNJA STUBICA | C220: 2 | E220: 1624
A221: 127 | B221: GORNJI BOGIĆEVCI | C221: 12 | E221: 1629
A222: 129 | B222: GORNJI KNEGINEC | C222: 5 | E222: 1711
A223: 130 | B223: GOSPIĆ | C223: 9 | E223: 1712
A224: 131 | B224: GRAČAC | C224: 13 | E224: 1721
A225: 132 | B225: GRAČIŠĆE | C225: 18 | E225: 1722
A226: 133 | B226: GRAD ZAGREB | C226: 21 | E226: 1723
... 496 more rows

Sheet PRRAS
A1: <–––– Povratak na RefStr | C1: Kontrole obrasca PR-RAS ––––>
A2: IZVJEŠTAJ O PRIHODIMA I RASHODIMA, PRIMICIMA I IZDACIMA | E2: Obrazac PR-RAS VP 151
A3: ="za razdoblje "&IF(RefStr!K10="","________________",TEXT(RefStr!K10,"d.mmmm yyyy.")&" do "&IF(RefStr!K12="","______________",TEXT(RefStr!K12,"d. mmmm yyyy."))) -> za razdoblje 1.siječanj 2017. do 31. prosinac 2017.
A4: Obveznik: | B4: ="RKP: "&IF(RefStr!B6<>"",TEXT(INT(VALUE(RefStr!B6)),"00000"),"_____"&", "&"MB: "&IF(RefStr!B8<>"",TEXT(INT(VALUE(RefStr!B8)),"00000000"),"________")&" OIB: "&IF(RefStr!K14<>"",RefStr!K14,"___________")) -> RKP: 09431 | E4: =SUM(Skriveni!G2:G976) -> 95496472.04
B5: ="Naziv: "&IF(RefStr!B10<>"",RefStr!B10,"_______________________________________") -> Naziv: OŠ MLADOST OSIJEK | E5: Kontrolni broj obrasca
B6: ="Razina: " & RefStr!B16 & ", Razdjel: " & TEXT(INT(VALUE(RefStr!B20)), "000") -> Razina: 31, Razdjel: 000
B7: ="Djelatnost: " & RefStr!B18 & " " & RefStr!C18 -> Djelatnost: 8520 Osnovno obrazovanje
F8: iznosi u kunama, bez lipa
A9: Račun iz rač. plana | B9: Naziv stavke | C9: AOP | D9: Ostvareno u izvještajnom razdoblju preth. godine | E9: Ostvareno u izvještajnom razdoblju tekuće godine | F9: Indeks (5/4)
A10: 1 | B10: 2 | C10: 3 | D10: 4 | E10: 5 | F10: 6
A11: Prihodi i rashodi poslovanja
A12: 6 | B12: PRIHODI POSLOVANJA (AOP 002+039+045+074+105+123+130+136) | C12: 1 | D12: =D13+D50+D56+D85+D116+D134+D141+D147 -> 7377585 | E12: =E13+E50+E56+E85+E116+E134+E141+E147 -> 7821214 | F12: =IF(D12<>0,IF(E12/D12>=100,">>100",E12/D12*100),"-") -> 106.0132008
A13: 61 | B13: Prihodi od poreza (AOP 003+012+018+024+032+035) | C13: 2 | D13: =D14+D23+D29+D35+D43+D46 -> 0 | E13: =E14+E23+E29+E35+E43+E46 -> 0 | F13: =IF(D13<>0,IF(E13/D13>=100,">>100",E13/D13*100),"-") -> -
A14: 611 | B14: Porez i prirez na dohodak (AOP 004 do 009 - 010 - 011) | C14: 3 | D14: =SUM(D15:D20)-D21-D22 -> 0 | E14: =SUM(E15:E20)-E21-E22 -> 0 | F14: =IF(D14<>0,IF(E14/D14>=100,">>100",E14/D14*100),"-") -> -
A15: 6111 | B15: Porez i prirez na dohodak od nesamostalnog rada | C15: 4 | F15: -
A16: 6112 | B16: Porez i prirez na dohodak od samostalnih djelatnosti | C16: 5 | F16: -
A17: 6113 | B17: Porez i prirez na dohodak od imovine i imovinskih prava | C17: 6 | F17: -
A18: 6114 | B18: Porez i prirez na dohodak od kapitala | C18: 7 | F18: -
A19: 6115 | B19: Porez i prirez na dohodak po godišnjoj prijavi | C19: 8 | F19: -
A20: 6116 | B20: Porez i prirez na dohodak utvrđen u postupku nadzora za prethodne godine | C20: 9 | F20: -
A21: 6117 | B21: Povrat poreza i prireza na dohodak po godišnjoj prijavi | C21: 10 | F21: -
A22: 6119 | B22: Povrat više ostvarenog poreza na dohodak za decentralizirane funkcije | C22: 11 | F22: -
A23: 612 | B23: Porez na dobit (AOP 013 do 016 - 017) | C23: 12 | D23: =SUM(D24:D27)-D28 -> 0 | E23: =SUM(E24:E27)-E28 -> 0 | F23: -
A24: 6121 | B24: Porez na dobit od poduzetnika | C24: 13 | F24: -
A25: 6122 | B25: Porez na dobit po odbitku na naknade za korištenje prava i za usluge | C25: 14 | F25: -
A26: 6123 | B26: Porez na dobit po odbitku na kamate, dividende i udjele u dobiti | C26: 15 | F26: -
A27: 6124 | B27: Porez na dobit po godišnjoj prijavi | C27: 16 | F27: -
A28: 6125 | B28: Povrat poreza na dobit po godišnjoj prijavi | C28: 17 | F28: -
A29: 613 | B29: Porezi na imovinu (AOP 019 do 023) | C29: 18 | D29: =SUM(D30:D34) -> 0 | E29: =SUM(E30:E34) -> 0 | F29: -
A30: 6131 | B30: Stalni porezi na nepokretnu imovinu | C30: 19 | F30: -
A31: 6132 | B31: Porez na nasljedstva i darove | C31: 20 | F31: -
A32: 6133 | B32: Porez na kapitalne i financijske transakcije | C32: 21 | F32: -
A33: 6134 | B33: Povremeni porezi na imovinu | C33: 22 | F33: -
A34: 6135 | B34: Ostali stalni porezi na imovinu | C34: 23 | F34: -
A35: 614 | B35: Porezi na robu i usluge (AOP 025 do 031) | C35: 24 | D35: =SUM(D36:D42) -> 0 | E35: =SUM(E36:E42) -> 0 | F35: -
A36: 6141 | B36: Porez na dodanu vrijednost | C36: 25 | F36: -
A37: 6142 | B37: Porez na promet | C37: 26 | F37: -
A38: 6143 | B38: Posebni porezi i trošarine | C38: 27 | F38: -
A39: 6145 | B39: Porezi na korištenje dobara ili izvođenje aktivnosti | C39: 28 | F39: -
A40: 6146 | B40: Ostali porezi na robu i usluge | C40: 29 | F40: -
A41: 6147 | B41: Porez na dobitke od igara na sreću i ostali porezi od igara na sreću | C41: 30 | F41: -
A42: 6148 | B42: Naknade za priređivanje igara na sreću | C42: 31 | F42: -
A43: 615 | B43: Porezi na međunarodnu trgovinu i transakcije (AOP 033+034) | C43: 32 | D43: =SUM(D44:D45) -> 0 | E43: =SUM(E44:E45) -> 0 | F43: -
A44: 6151 | B44: Carine i carinske pristojbe | C44: 33 | F44: -
A45: 6152 | B45: Ostali porezi na međunarodnu trgovinu i transakcije | C45: 34 | F45: -
A46: 616 | B46: Ostali prihodi od poreza (AOP 036 do 038) | C46: 35 | D46: =SUM(D47:D49) -> 0 | E46: =SUM(E47:E49) -> 0 | F46: -
A47: 6161 | B47: Ostali prihodi od poreza koje plaćaju pravne osobe | C47: 36 | F47: -
A48: 6162 | B48: Ostali prihodi od poreza koje plaćaju fizičke osobe | C48: 37 | F48: -
A49: 6163 | B49: Ostali neraspoređeni prihodi od poreza | C49: 38 | F49: -
A50: 62 | B50: Doprinosi (AOP 040+043+044) | C50: 39 | D50: =D51+D54+D55 -> 0 | E50: =E51+E54+E55 -> 0 | F50: -
A51: 621 | B51: Doprinosi za zdravstveno osiguranje (AOP 041+042) | C51: 40 | D51: =SUM(D52:D53) -> 0 | E51: =SUM(E52:E53) -> 0 | F51: -
A52: 6211 | B52: Doprinosi za obvezno zdravstveno osiguranje | C52: 41 | F52: -
A53: 6212 | B53: Doprinosi za obvezno zdravstveno osiguranje za slučaj ozljede na radu | C53: 42 | F53: -
A54: 622 | B54: Doprinosi za mirovinsko osiguranje | C54: 43 | F54: -
A55: 623 | B55: Doprinosi za zapošljavanje | C55: 44 | F55: -
A56: 63 | B56: Pomoći iz inozemstva i od subjekata unutar općeg proračuna (AOP 046+049+054+057+060+063+066+069) | C56: 45 | D56: =D57+D60+D65+D68+D71+D74+D77+D80 -> 5905381 | E56: =E57+E60+E65+E68+E71+E74+E77+E80 -> 6257250 | F56: 105.9584471
A57: 631 | B57: Pomoći od inozemnih vlada (AOP 047+048) | C57: 46 | D57: =D58+D59 -> 0 | E57: =E58+E59 -> 0 | F57: -
A58: 6311 | B58: Tekuće pomoći od inozemnih vlada | C58: 47 | F58: -
A59: 6312 | B59: Kapitalne pomoći od inozemnih vlada | C59: 48 | F59: -
A60: 632 | B60: Pomoći od međunarodnih organizacija te institucija i tijela EU (AOP 050 do 053) | C60: 49 | D60: =SUM(D61:D64) -> 0 | E60: =SUM(E61:E64) -> 0 | F60: -
A61: 6321 | B61: Tekuće pomoći od međunarodnih organizacija | C61: 50 | F61: -
A62: 6322 | B62: Kapitalne pomoći od međunarodnih organizacija | C62: 51 | F62: -
A63: 6323 | B63: Tekuće pomoći od institucija i tijela EU | C63: 52 | F63: -
A64: 6324 | B64: Kapitalne pomoći od institucija i tijela EU | C64: 53 | F64: -
A65: 633 | B65: Pomoći proračunu iz drugih proračuna (AOP 055+056) | C65: 54 | D65: =SUM(D66:D67) -> 3366 | E65: =SUM(E66:E67) -> 0 | F65: 0
A66: 6331 | B66: Tekuće pomoći proračunu iz drugih proračuna | C66: 55 | D66: 3366 | F66: 0
A67: 6332 | B67: Kapitalne pomoći proračunu iz drugih proračuna | C67: 56 | F67: -
A68: 634 | B68: Pomoći od izvanproračunskih korisnika (AOP 058+059) | C68: 57 | D68: =SUM(D69:D70) -> 0 | E68: =SUM(E69:E70) -> 0 | F68: -
A69: 6341 | B69: Tekuće pomoći od izvanproračunskih korisnika | C69: 58 | F69: -
A70: 6342 | B70: Kapitalne pomoći od izvanproračunskih korisnika | C70: 59 | F70: -
A71: 635 | B71: Pomoći izravnanja za decentralizirane funkcije (AOP 061+062) | C71: 60 | D71: =SUM(D72:D73) -> 0 | E71: =SUM(E72:E73) -> 0 | F71: -
A72: 6351 | B72: Tekuće pomoći izravnanja za decentralizirane funkcije | C72: 61 | F72: -
A73: 6352 | B73: Kapitalne pomoći izravnanja za decentralizirane funkcije | C73: 62 | F73: -
A74: 636 | B74: Pomoći proračunskim korisnicima iz proračuna koji im nije nadležan (AOP 064+065) | C74: 63 | D74: =SUM(D75:D76) -> 5902015 | E74: =SUM(E75:E76) -> 6257250 | F74: 106.0188766
A75: 6361 | B75: Tekuće pomoći proračunskim korisnicima iz proračuna koji im nije nadležan | C75: 64 | D75: 5902015 | E75: 6257250 | F75: 106.0188766
A76: 6362 | B76: Kapitalne pomoći proračunskim korisnicima iz proračuna koji im nije nadležan | C76: 65 | F76: -
A77: 638 | B77: Pomoći temeljem prijenosa EU sredstava (AOP 067+068) | C77: 66 | D77: =SUM(D78:D79) -> 0 | E77: =SUM(E78:E79) -> 0 | F77: -
A78: 6381 | B78: Tekuće pomoći temeljem prijenosa EU sredstava | C78: 67 | F78: =IF(D78<>0,IF(E78/D78>=100,">>100",E78/D78*100),"-") -> -
A79: 6382 | B79: Kapitalne pomoći temeljem prijenosa EU sredstava | C79: 68 | F79: -
A80: 639 | B80: Prijenosi između proračunskih korisnika istog proračuna (AOP 070 do 073) | C80: 69 | D80: =SUM(D81:D84) -> 0 | E80: =SUM(E81:E84) -> 0 | F80: -
A81: 6391 | B81: Tekući prijenosi između proračunskih korisnika istog proračuna | C81: 70 | F81: -
A82: 6392 | B82: Kapitalni prijenosi između proračunskih korisnika istog proračuna | C82: 71 | F82: -
A83: 6393 | B83: Tekući prijenosi između proračunskih korisnika istog proračuna temeljem prijenosa EU sredstava | C83: 72 | F83: -
A84: 6394 | B84: Kapitalni prijenosi između proračunskih korisnika istog proračuna temeljem prijenosa EU sredstava | C84: 73 | F84: -
A85: 64 | B85: Prihodi od imovine (AOP 075+083+090+098) | C85: 74 | D85: =D86+D94+D101+D109 -> 226 | E85: =E86+E94+E101+E109 -> 86 | F85: 38.05309735
A86: 641 | B86: Prihodi od financijske imovine (AOP 076 do 082) | C86: 75 | D86: =SUM(D87:D93) -> 226 | E86: =SUM(E87:E93) -> 86 | F86: 38.05309735
A87: 6412 | B87: Prihodi od kamata po vrijednosnim papirima | C87: 76 | F87: -
A88: 6413 | B88: Kamate na oročena sredstva i depozite po viđenju | C88: 77 | D88: 226 | E88: 86 | F88: 38.05309735
A89: 6414 | B89: Prihodi od zateznih kamata | C89: 78 | F89: -
A90: 6415 | B90: Prihodi od pozitivnih tečajnih razlika i razlika zbog primjene valutne klauzule | C90: 79 | F90: -
A91: 6416 | B91: Prihodi od dividendi | C91: 80 | F91: -
A92: 6417 | B92: Prihodi iz dobiti trgovačkih društava, kreditnih i ostalih financijskih institucija po posebnim propisima | C92: 81 | F92: -
A93: 6419 | B93: Ostali prihodi od financijske imovine | C93: 82 | F93: -
A94: 642 | B94: Prihodi od nefinancijske imovine (AOP 084 do 089) | C94: 83 | D94: =SUM(D95:D100) -> 0 | E94: =SUM(E95:E100) -> 0 | F94: -
A95: 6421 | B95: Naknade za koncesije | C95: 84 | F95: -
A96: 6422 | B96: Prihodi od zakupa i iznajmljivanja imovine | C96: 85 | F96: -
A97: 6423 | B97: Naknada za korištenje nefinancijske imovine | C97: 86 | F97: -
A98: 6424 | B98: Naknade za ceste | C98: 87 | F98: -
A99: 6425 | B99: Prihodi od prodaje kratkotrajne nefinancijske imovine | C99: 88 | F99: -
A100: 6429 | B100: Ostali prihodi od nefinancijske imovine | C100: 89 | F100: -
A101: 643 | B101: Prihodi od kamata na dane zajmove (AOP 091 do 097) | C101: 90 | D101: =SUM(D102:D108) -> 0 | E101: =SUM(E102:E108) -> 0 | F101: -
A102: 6431 | B102: Prihodi od kamata na dane zajmove međunarodnim organizacijama, institucijama i tijelima EU te inozemnim vladama | C102: 91 | F102: -
A103: 6432 | B103: Prihodi od kamata na dane zajmove neprofitnim organizacijama, građanima i kućanstvima | C103: 92 | F103: -
A104: 6433 | B104: Prihodi od kamata na dane zajmove kreditnim i ostalim financijskim institucijama u javnom sektoru | C104: 93 | F104: -
A105: 6434 | B105: Prihodi od kamata na dane zajmove trgovačkim društvima u javnom sektoru | C105: 94 | F105: -
A106: 6435 | B106: Prihodi od kamata na dane zajmove kreditnim i ostalim financijskim institucijama izvan javnog sektora | C106: 95 | F106: -
A107: 6436 | B107: Prihodi od kamata na dane zajmove trgovačkim društvima i obrtnicima izvan javnog sektora | C107: 96 | F107: -
A108: 6437 | B108: Prihodi od kamata na dane zajmove drugim razinama vlasti | C108: 97 | F108: -
A109: 644 | B109: Prihodi od kamata na dane zajmove po protestiranim jamstvima (AOP 099 do 104) | C109: 98 | D109: =SUM(D110:D115) -> 0 | E109: =SUM(E110:E115) -> 0 | F109: -
A110: 6442 | B110: Prihodi od kamata na dane zajmove neprofitnim organizacijama, građanima i kućanstvima po protestiranim jamstvima | C110: 99 | F110: -
A111: 6443 | B111: Prihodi od kamata na dane zajmove kreditnim i ostalim financijskim institucijama u javnom sektoru po protestiranim jamstvima | C111: 100 | F111: -
A112: 6444 | B112: Prihodi od kamata na dane zajmove trgovačkim društvima u javnom sektoru po protestiranim jamstvima | C112: 101 | F112: -
A113: 6445 | B113: Prihodi od kamata na dane zajmove kreditnim i ostalim financijskim institucijama izvan javnog sektora po protestiranim jamstvima | C113: 102 | F113: -
A114: 6446 | B114: Prihodi od kamata na dane zajmove trgovačkim društvima i obrtnicima izvan javnog sektora po protestiranim jamstvima | C114: 103 | F114: -
A115: 6447 | B115: Prihodi od kamata na dane zajmove drugim razinama vlasti po protestiranim jamstvima | C115: 104 | F115: -
A116: 65 | B116: Prihodi od upravnih i administrativnih pristojbi, pristojbi po posebnim propisima i naknada (AOP 106+111+119) | C116: 105 | D116: =D117+D122+D130 -> 484200 | E116: =E117+E122+E130 -> 490122 | F116: 101.2230483
A117: 651 | B117: Upravne i administrativne pristojbe (AOP 107 do 110) | C117: 106 | D117: =SUM(D118:D121) -> 0 | E117: =SUM(E118:E121) -> 0 | F117: -
A118: 6511 | B118: Državne upravne i sudske pristojbe | C118: 107 | F118: -
A119: 6512 | B119: Županijske, gradske i općinske pristojbe i naknade | C119: 108 | F119: -
A120: 6513 | B120: Ostale upravne pristojbe i naknade | C120: 109 | F120: -
A121: 6514 | B121: Ostale pristojbe i naknade | C121: 110 | F121: -
A122: 652 | B122: Prihodi po posebnim propisima (AOP 112 do 118) | C122: 111 | D122: =SUM(D123:D129) -> 484200 | E122: =SUM(E123:E129) -> 490122 | F122: 101.2230483
A123: 6521 | B123: Prihodi državne uprave | C123: 112 | F123: -
A124: 6522 | B124: Prihodi vodnog gospodarstva | C124: 113 | F124: -
A125: 6524 | B125: Doprinosi za šume | C125: 114 | F125: -
A126: 6525 | B126: Mjesni samodoprinos | C126: 115 | F126: -
A127: 6526 | B127: Ostali nespomenuti prihodi | C127: 116 | D127: 484200 | E127: 490122 | F127: 101.2230483
A128: 6527 | B128: Naknade od financijske imovine | C128: 117 | F128: -
A129: 6528 | B129: Prihodi od novčane naknade poslodavca zbog nezapošljavanja osoba s invaliditetom | C129: 118 | F129: -
A130: 653 | B130: Komunalni doprinosi i naknade (AOP 120 do 122) | C130: 119 | D130: =SUM(D131:D133) -> 0 | E130: =SUM(E131:E133) -> 0 | F130: -
A131: 6531 | B131: Komunalni doprinosi | C131: 120 | F131: -
A132: 6532 | B132: Komunalne naknade | C132: 121 | F132: -
A133: 6533 | B133: Naknade za priključak | C133: 122 | F133: -
A134: 66 | B134: Prihodi od prodaje proizvoda i robe te pruženih usluga i prihodi od donacija (AOP 124+127) | C134: 123 | D134: =D135+D138 -> 126805 | E134: =E135+E138 -> 166887 | F134: 131.6091637
A135: 661 | B135: Prihodi od prodaje proizvoda i robe te pruženih usluga (AOP 125+126) | C135: 124 | D135: =SUM(D136:D137) -> 126805 | E135: =SUM(E136:E137) -> 166887 | F135: 131.6091637
A136: 6614 | B136: Prihodi od prodaje proizvoda i robe | C136: 125 | F136: -
A137: 6615 | B137: Prihodi od pruženih usluga | C137: 126 | D137: 126805 | E137: 166887 | F137: 131.6091637
A138: 663 | B138: Donacije od pravnih i fizičkih osoba izvan općeg proračuna (AOP 128+129) | C138: 127 | D138: =SUM(D139:D140) -> 0 | E138: =SUM(E139:E140) -> 0 | F138: -
A139: 6631 | B139: Tekuće donacije | C139: 128 | F139: -
A140: 6632 | B140: Kapitalne donacije | C140: 129 | F140: -
A141: 67 | B141: Prihodi iz nadležnog proračuna i od HZZO-a na temelju ugovornih obveza (AOP 131+135) | C141: 130 | D141: =D142+D146 -> 860973 | E141: =E142+E146 -> 906869 | F141: 105.330713
A142: 671 | B142: Prihodi iz nadležnog proračuna za financiranje redovne djelatnosti proračunskih korisnika (AOP 132 do 134) | C142: 131 | D142: =SUM(D143:D145) -> 860973 | E142: =SUM(E143:E145) -> 906869 | F142: =IF(D142<>0,IF(E142/D142>=100,">>100",E142/D142*100),"-") -> 105.330713
A143: 6711 | B143: Prihodi iz nadležnog proračuna za financiranje rashoda poslovanja | C143: 132 | D143: 860973 | E143: 906869 | F143: 105.330713
A144: 6712 | B144: Prihodi iz nadležnog proračuna za financiranje rashoda za nabavu nefinancijske imovine | C144: 133 | F144: -
A145: 6714 | B145: Prihodi od nadležnog proračuna za financiranje izdataka za financijsku imovinu i otplatu zajmova | C145: 134 | F145: -
A146: 673 | B146: Prihodi od HZZO-a na temelju ugovornih obveza | C146: 135 | F146: -
A147: 68 | B147: Kazne, upravne mjere i ostali prihodi (AOP 137+147) | C147: 136 | D147: =D148+D158 -> 0 | E147: =E148+E158 -> 0 | F147: -
A148: 681 | B148: Kazne i upravne mjere (AOP 138 do 146) | C148: 137 | D148: =SUM(D149:D157) -> 0 | E148: =SUM(E149:E157) -> 0 | F148: -
A149: 6811 | B149: Kazne za carinske prekršaje | C149: 138 | F149: -
A150: 6812 | B150: Kazne za devizne prekršaje | C150: 139 | F150: -
A151: 6813 | B151: Kazne za porezne prekršaje | C151: 140 | F151: -
A152: 6814 | B152: Kazne za prekršaje trgovačkih društava - privredne prijestupe | C152: 141 | F152: -
A153: 6815 | B153: Kazne za prometne i ostale prekršaje u nadležnosti MUP-a | C153: 142 | F153: -
A154: 6816 | B154: Kazne i druge mjere u kaznenom postupku | C154: 143 | F154: -
A155: 6817 | B155: Kazne za prekršaje na kulturnim dobrima | C155: 144 | F155: -
A156: 6818 | B156: Upravne mjere | C156: 145 | F156: -
A157: 6819 | B157: Ostale kazne | C157: 146 | F157: -
A158: 683 | B158: Ostali prihodi | C158: 147 | F158: -
A159: 3 | B159: RASHODI POSLOVANJA (AOP 149+160+193+212+221+246+257) | C159: 148 | D159: =D160+D171+D204+D223+D232+D257+D268 -> 7344045 | E159: =E160+E171+E204+E223+E232+E257+E268 -> 7840643 | F159: 106.7619139
A160: 31 | B160: Rashodi za zaposlene (AOP 150+155+156) | C160: 149 | D160: =D161+D166+D167 -> 5955536 | E160: =E161+E166+E167 -> 6259741 | F160: 105.1079365
A161: 311 | B161: Plaće (bruto) (AOP 151 do 154) | C161: 150 | D161: =SUM(D162:D165) -> 4825040 | E161: =SUM(E162:E165) -> 5043876 | F161: 104.5354235
A162: 3111 | B162: Plaće za redovan rad | C162: 151 | D162: 4804533 | E162: 5023864 | F162: 104.5650847
A163: 3112 | B163: Plaće u naravi | C163: 152 | F163: -
A164: 3113 | B164: Plaće za prekovremeni rad | C164: 153 | D164: 20507 | E164: 20012 | F164: 97.58619008
A165: 3114 | B165: Plaće za posebne uvjete rada | C165: 154 | F165: -
A166: 312 | B166: Ostali rashodi za zaposlene | C166: 155 | D166: 306437 | E166: 359985 | F166: 117.4743911
A167: 313 | B167: Doprinosi na plaće (AOP 157 do 159) | C167: 156 | D167: =SUM(D168:D170) -> 824059 | E167: =SUM(E168:E170) -> 855880 | F167: 103.8614954
A168: 3131 | B168: Doprinosi za mirovinsko osiguranje | C168: 157 | F168: -
A169: 3132 | B169: Doprinosi za obvezno zdravstveno osiguranje | C169: 158 | D169: 742612 | E169: 771287 | F169: 103.8613704
A170: 3133 | B170: Doprinosi za obvezno osiguranje u slučaju nezaposlenosti | C170: 159 | D170: 81447 | E170: 84593 | F170: 103.8626346
A171: 32 | B171: Materijalni rashodi (AOP 161+166+174+184+185) | C171: 160 | D171: =D172+D177+D185+D195+D196 -> 1380197 | E171: =E172+E177+E185+E195+E196 -> 1543744 | F171: 111.8495403
A172: 321 | B172: Naknade troškova zaposlenima (AOP 162 do 165) | C172: 161 | D172: =SUM(D173:D176) -> 132122 | E172: =SUM(E173:E176) -> 151407 | F172: 114.5963579
A173: 3211 | B173: Službena putovanja | C173: 162 | D173: 25216 | E173: 38243 | F173: 151.6616434
A174: 3212 | B174: Naknade za prijevoz, za rad na terenu i odvojeni život | C174: 163 | D174: 104276 | E174: 107166 | F174: 102.771491
A175: 3213 | B175: Stručno usavršavanje zaposlenika | C175: 164 | D175: 1700 | E175: 430 | F175: 25.29411765
A176: 3214 | B176: Ostale naknade troškova zaposlenima | C176: 165 | D176: 930 | E176: 5568 | F176: 598.7096774
A177: 322 | B177: Rashodi za materijal i energiju (AOP 167 do 173) | C177: 166 | D177: =SUM(D178:D184) -> 1002953 | E177: =SUM(E178:E184) -> 1122074 | F177: 111.8770271
A178: 3221 | B178: Uredski materijal i ostali materijalni rashodi | C178: 167 | D178: 49700 | E178: 49453 | F178: 99.50301811
A179: 3222 | B179: Materijal i sirovine | C179: 168 | D179: 417950 | E179: 460815 | F179: 110.2560115
A180: 3223 | B180: Energija | C180: 169 | D180: 498015 | E180: 533639 | F180: 107.1531982
A181: 3224 | B181: Materijal i dijelovi za tekuće i investicijsko održavanje | C181: 170 | D181: 24137 | E181: 74652 | F181: 309.284501
A182: 3225 | B182: Sitni inventar i auto gume | C182: 171 | D182: 12851 | E182: 3515 | F182: 27.35195705
A183: 3226 | B183: Vojna sredstva za jednokratnu upotrebu | C183: 172 | F183: -
A184: 3227 | B184: Službena, radna i zaštitna odjeća i obuća | C184: 173 | D184: 300 | F184: 0
A185: 323 | B185: Rashodi za usluge (AOP 175 do 183) | C185: 174 | D185: =SUM(D186:D194) -> 220400 | E185: =SUM(E186:E194) -> 218158 | F185: 98.98275862
A186: 3231 | B186: Usluge telefona, pošte i prijevoza | C186: 175 | D186: 17936 | E186: 17328 | F186: 96.61016949
A187: 3232 | B187: Usluge tekućeg i investicijskog održavanja | C187: 176 | D187: 90018 | E187: 75007 | F187: 83.32444622
A188: 3233 | B188: Usluge promidžbe i informiranja | C188: 177 | D188: 2785 | E188: 3520 | F188: 126.3913824
A189: 3234 | B189: Komunalne usluge | C189: 178 | D189: 49383 | E189: 48063 | F189: 97.32701537
A190: 3235 | B190: Zakupnine i najamnine | C190: 179 | F190: -
A191: 3236 | B191: Zdravstvene i veterinarske usluge | C191: 180 | D191: 13638 | E191: 19414 | F191: 142.3522511
A192: 3237 | B192: Intelektualne i osobne usluge | C192: 181 | D192: 20957 | E192: 30883 | F192: 147.3636494
A193: 3238 | B193: Računalne usluge | C193: 182 | D193: 6000 | E193: 6562 | F193: 109.3666667
A194: 3239 | B194: Ostale usluge | C194: 183 | D194: 19683 | E194: 17381 | F194: 88.30462836
A195: 324 | B195: Naknade troškova osobama izvan radnog odnosa | C195: 184 | F195: -
A196: 329 | B196: Ostali nespomenuti rashodi poslovanja (AOP 186 do 192) | C196: 185 | D196: =SUM(D197:D203) -> 24722 | E196: =SUM(E197:E203) -> 52105 | F196: 210.7636923
A197: 3291 | B197: Naknade za rad predstavničkih i izvršnih tijela, povjerenstava i slično | C197: 186 | F197: -
A198: 3292 | B198: Premije osiguranja | C198: 187 | F198: -
A199: 3293 | B199: Reprezentacija | C199: 188 | D199: 4108 | E199: 7670 | F199: 186.7088608
A200: 3294 | B200: Članarine i norme | C200: 189 | E200: 1000 | F200: -
... 796 more rows

Sheet Bil
A1: <–––– Povratak na RefStr | C1: Kontrole Bilanca ––––>
A2: BILANCA | E2: Obrazac BIL VP 152
A3: ="na dan "&IF(RefStr!K10="","________________",TEXT(RefStr!K12,"d.mmmm yyyy.")) -> na dan 31.prosinac 2017.
A4: Obveznik: | B4: ="RKP: "&IF(RefStr!B6<>"",TEXT(INT(VALUE(RefStr!B6)),"00000"),"_____"&", "&"MB: "&IF(RefStr!B8<>"",TEXT(INT(VALUE(RefStr!B8)),"00000000"),"________")&" OIB: "&IF(RefStr!K14<>"",RefStr!K14,"___________")) -> RKP: 09431 | E4: =SUM(Skriveni!G977:G1286) -> 3550769.592
B5: ="Naziv: "&IF(RefStr!B10<>"",RefStr!B10,"_______________________________________") -> Naziv: OŠ MLADOST OSIJEK | E5: Kontrolni broj obrasca
B6: ="Razina: " & RefStr!B16 & ", Razdjel: " & TEXT(INT(VALUE(RefStr!B20)), "000") -> Razina: 31, Razdjel: 000
B7: ="Djelatnost: " & RefStr!B18 & " " & RefStr!C18 -> Djelatnost: 8520 Osnovno obrazovanje
F9: iznosi u kunama, bez lipa
A10: Račun iz rač. plana | B10: Opis stavke | C10: AOP | D10: Stanje 1. siječnja | E10: Stanje 31. prosinca | F10: Indeks (5/4)
A11: 1 | B11: 2 | C11: 3 | D11: 4 | E11: 5 | F11: 6
B12: IMOVINA (AOP 002+063) | C12: 1 | D12: =D13+D74 -> 834117 | E12: =E13+E74 -> 877835 | F12: =IF(D12>0,IF(E12/D12>=100,">>100",E12/D12*100),"-") -> 105.2412311
A13: 0 | B13: Nefinancijska imovina (AOP 003+007+046+047+051+058) | C13: 2 | D13: =D14+D18+D57+D58+D62+D69 -> 127017 | E13: =E14+E18+E57+E58+E62+E69 -> 157138 | F13: 123.7141485
A14: 01 | B14: Neproizvedena dugotrajna imovina (AOP 004+005-006) | C14: 3 | D14: =D15+D16-D17 -> 0 | E14: =E15+E16-E17 -> 0 | F14: -
A15: 011 | B15: Materijalna imovina - prirodna bogatstva | C15: 4 | F15: -
A16: 012 | B16: Nematerijalna imovina | C16: 5 | F16: -
A17: 019 | B17: Ispravak vrijednosti neproizvedene dugotrajne imovine | C17: 6 | F17: -
A18: 02 | B18: Proizvedena dugotrajna imovina (AOP 008+014+024+030+036+040) | C18: 7 | D18: =D19+D25+D35+D41+D47+D51 -> 127017 | E18: =E19+E25+E35+E41+E47+E51 -> 157138 | F18: 123.7141485
A19: 021 i 02921 | B19: Građevinski objekti (AOP 009 do 012 - 013) | C19: 8 | D19: =SUM(D20:D23)-D24 -> 0 | E19: =SUM(E20:E23)-E24 -> 0 | F19: -
A20: 0211 | B20: Stambeni objekti | C20: 9 | F20: -
A21: 0212 | B21: Poslovni objekti | C21: 10 | F21: -
A22: 0213 | B22: Ceste, željeznice i ostali prometni objekti | C22: 11 | F22: -
A23: 0214 | B23: Ostali građevinski objekti | C23: 12 | F23: -
A24: 02921 | B24: Ispravak vrijednosti građevinskih objekata | C24: 13 | F24: -
A25: 022 i 02922 | B25: Postrojenja i oprema (AOP 015 do 022 - 023) | C25: 14 | D25: =SUM(D26:D33)-D34 -> 111906 | E25: =SUM(E26:E33)-E34 -> 142223 | F25: 127.0914875
A26: 0221 | B26: Uredska oprema i namještaj | C26: 15 | D26: 1087640 | E26: 1115357 | F26: 102.5483616
A27: 0222 | B27: Komunikacijska oprema | C27: 16 | D27: 105994 | E27: 103295 | F27: 97.45362945
A28: 0223 | B28: Oprema za održavanje i zaštitu | C28: 17 | D28: 104960 | E28: 118519 | F28: 112.9182546
A29: 0224 | B29: Medicinska i laboratorijska oprema | C29: 18 | F29: -
A30: 0225 | B30: Instrumenti, uređaji i strojevi | C30: 19 | F30: -
A31: 0226 | B31: Sportska i glazbena oprema | C31: 20 | D31: 114373 | E31: 117762 | F31: 102.9631119
A32: 0227 | B32: Uređaji, strojevi i oprema za ostale namjene | C32: 21 | D32: 299916 | E32: 324393 | F32: 108.1612852
A33: 0228 | B33: Vojna oprema | C33: 22 | F33: -
A34: 02922 | B34: Ispravak vrijednosti postrojenja i opreme | C34: 23 | D34: 1600977 | E34: 1637103 | F34: 102.2564971
A35: 023 i 02923 | B35: Prijevozna sredstva (AOP 025 do 028 - 029) | C35: 24 | D35: =SUM(D36:D39)-D40 -> 0 | E35: =SUM(E36:E39)-E40 -> 0 | F35: -
A36: 0231 | B36: Prijevozna sredstva u cestovnom prometu | C36: 25 | F36: -
A37: 0232 | B37: Prijevozna sredstva u željezničkom prometu | C37: 26 | F37: -
A38: 0233 | B38: Prijevozna sredstva u pomorskom i riječnom prometu | C38: 27 | F38: -
A39: 0234 | B39: Prijevozna sredstva u zračnom prometu | C39: 28 | F39: -
A40: 02923 | B40: Ispravak vrijednosti prijevoznih sredstava | C40: 29 | F40: -
A41: 024 i 02924 | B41: Knjige, umjetnička djela i ostale izložbene vrijednosti (AOP 031 do 034 - 035) | C41: 30 | D41: =SUM(D42:D45)-D46 -> 13647 | E41: =SUM(E42:E45)-E46 -> 13451 | F41: 98.56378691
A42: 0241 | B42: Knjige | C42: 31 | D42: 298015 | E42: 298015 | F42: 100
A43: 0242 | B43: Umjetnička djela (izložena u galerijama, muzejima i slično) | C43: 32 | F43: -
A44: 0243 | B44: Muzejski izlošci i predmeti prirodnih rijetkosti | C44: 33 | F44: -
A45: 0244 | B45: Ostale nespomenute izložbene vrijednosti | C45: 34 | F45: -
A46: 02924 | B46: Ispravak vrijednosti knjiga, umjetničkih djela i ostalih izložbenih vrijednosti | C46: 35 | D46: 284368 | E46: 284564 | F46: 100.0689248
A47: 025 i 02925 | B47: Višegodišnji nasadi i osnovno stado (AOP 037+038-039) | C47: 36 | D47: =SUM(D48:D49)-D50 -> 0 | E47: =SUM(E48:E49)-E50 -> 0 | F47: -
A48: 0251 | B48: Višegodišnji nasadi | C48: 37 | F48: -
A49: 0252 | B49: Osnovno stado | C49: 38 | F49: -
A50: 02925 | B50: Ispravak vrijednosti višegodišnjih nasada i osnovnog stada | C50: 39 | F50: -
A51: 026 i 02926 | B51: Nematerijalna proizvedena imovina (AOP 041 do 044 - 045) | C51: 40 | D51: =SUM(D52:D55)-D56 -> 1464 | E51: =SUM(E52:E55)-E56 -> 1464 | F51: 100
A52: 0261 | B52: Istraživanje rudnih bogatstava | C52: 41 | F52: -
A53: 0262 | B53: Ulaganja u računalne programe | C53: 42 | D53: 1464 | E53: 1464 | F53: 100
A54: 0263 | B54: Umjetnička, literarna i znanstvena djela | C54: 43 | F54: -
A55: 0264 | B55: Ostala nematerijalna proizvedena imovina | C55: 44 | F55: -
A56: 02926 | B56: Ispravak vrijednosti nematerijalne proizvedene imovine | C56: 45 | F56: -
A57: 03 | B57: Plemeniti metali i ostale pohranjene vrijednosti | C57: 46 | F57: -
A58: 04 | B58: Sitni inventar (AOP 048+049-050) | C58: 47 | D58: =SUM(D59:D60)-D61 -> 0 | E58: =SUM(E59:E60)-E61 -> 0 | F58: -
A59: 041 | B59: Zalihe sitnog inventara | C59: 48 | F59: -
A60: 042 | B60: Sitni inventar u upotrebi | C60: 49 | D60: 185752 | E60: 181014 | F60: 97.44928722
A61: 049 | B61: Ispravak vrijednosti sitnog inventara | C61: 50 | D61: 185752 | E61: 181014 | F61: 97.44928722
A62: 05 | B62: Dugotrajna nefinancijska imovina u pripremi (AOP 052 do 057) | C62: 51 | D62: =SUM(D63:D68) -> 0 | E62: =SUM(E63:E68) -> 0 | F62: -
A63: 051 | B63: Građevinski objekti u pripremi | C63: 52 | F63: -
A64: 052 | B64: Postrojenja i oprema u pripremi | C64: 53 | F64: -
A65: 053 | B65: Prijevozna sredstva u pripremi | C65: 54 | F65: -
A66: 054 | B66: Višegodišnji nasadi i osnovno stado u pripremi | C66: 55 | F66: -
A67: 055 | B67: Ostala nematerijalna proizvedena imovina u pripremi | C67: 56 | F67: -
A68: 056 | B68: Ostala nefinancijska dugotrajna imovina u pripremi | C68: 57 | F68: -
A69: 06 | B69: Proizvedena kratkotrajna imovina (AOP 059 do 062) | C69: 58 | D69: =SUM(D70:D73) -> 0 | E69: =SUM(E70:E73) -> 0 | F69: -
A70: 061 | B70: Zalihe za obavljanje djelatnosti | C70: 59 | F70: -
A71: 062 | B71: Proizvodnja i proizvodi | C71: 60 | F71: -
A72: 063 | B72: Zalihe vojnih sredstava za jednokratnu upotrebu | C72: 61 | F72: -
A73: 064 | B73: Roba za daljnju prodaju | C73: 62 | F73: -
A74: 1 | B74: Financijska imovina (AOP 064+073+081+112+128+140+157+158) | C74: 63 | D74: =D75+D84+D92+D123+D139+D151+D168+D169 -> 707100 | E74: =E75+E84+E92+E123+E139+E151+E168+E169 -> 720697 | F74: 101.9229246
A75: 11 | B75: Novac u banci i blagajni (AOP 065+070 do 072) | C75: 64 | D75: =+D76+D81+D82+D83 -> 205268 | E75: =+E76+E81+E82+E83 -> 127487 | F75: 62.10758618
A76: 111 | B76: Novac u banci (AOP 066 do 069) | C76: 65 | D76: =SUM(D77:D80) -> 204905 | E76: =SUM(E77:E80) -> 126366 | F76: =IF(D76>0,IF(E76/D76>=100,">>100",E76/D76*100),"-") -> 61.67053025
A77: 1111 | B77: Novac na računu kod Hrvatske narodne banke | C77: 66 | F77: -
A78: 1112 | B78: Novac na računu kod tuzemnih poslovnih banaka | C78: 67 | D78: 204905 | E78: 126366 | F78: 61.67053025
A79: 1113 | B79: Novac na računu kod inozemnih poslovnih banaka | C79: 68 | F79: -
A80: 1114 | B80: Prijelazni račun | C80: 69 | D80: 0 | E80: 0 | F80: -
A81: 112 | B81: Izdvojena novčana sredstva | C81: 70 | F81: -
A82: 113 | B82: Novac u blagajni | C82: 71 | D82: 363 | E82: 1121 | F82: 308.815427
A83: 114 | B83: Vrijednosnice u blagajni | C83: 72 | F83: -
A84: 12 | B84: Depoziti, jamčevni polozi i potraživanja od zaposlenih te za više plaćene poreze i ostalo (AOP 074 + 077 do 080) | C84: 73 | D84: =+D85+SUM(D88:D91) -> 1540 | E84: =+E85+SUM(E88:E91) -> 22766 | F84: 1478.311688
A85: 121 | B85: Depoziti u kreditnim i ostalim financijskim institucijama (AOP 075+076) | C85: 74 | D85: =SUM(D86:D87) -> 0 | E85: =SUM(E86:E87) -> 0 | F85: -
A86: 1211 | B86: Depoziti u tuzemnim kreditnim i ostalim financijskim institucijama | C86: 75 | F86: -
A87: 1212 | B87: Depoziti u inozemnim kreditnim i ostalim financijskim institucijama | C87: 76 | F87: -
A88: 122 | B88: Jamčevni polozi | C88: 77 | F88: -
A89: 123 | B89: Potraživanja od zaposlenih | C89: 78 | D89: 0 | E89: 0 | F89: -
A90: 124 | B90: Potraživanja za više plaćene poreze i doprinose | C90: 79 | F90: -
A91: 129 | B91: Ostala potraživanja | C91: 80 | D91: 1540 | E91: 22766 | F91: 1478.311688
A92: 13 | B92: Potraživanja za dane zajmove (AOP 082+100-111) | C92: 81 | D92: =D93+D111-D122 -> 0 | E92: =E93+E111-E122 -> 0 | F92: -
B93: Zajmovi - tuzemni (AOP 083 do 099) | C93: 82 | D93: =SUM(D94:D110) -> 0 | E93: =SUM(E94:E110) -> 0 | F93: -
A94: 1321 | B94: Zajmovi neprofitnim organizacijama, građanima i kućanstvima u tuzemstvu | C94: 83 | F94: -
A95: 1332 | B95: Zajmovi kreditnim institucijama u javnom sektoru | C95: 84 | F95: -
A96: 1333 | B96: Zajmovi osiguravajućim društvima u javnom sektoru | C96: 85 | F96: -
A97: 1334 | B97: Zajmovi ostalim financijskim institucijama u javnom sektoru | C97: 86 | F97: -
A98: 1341 | B98: Zajmovi trgovačkim društvima u javnom sektoru | C98: 87 | F98: -
A99: 1353 | B99: Zajmovi tuzemnim kreditnim institucijama izvan javnog sektora | C99: 88 | F99: -
A100: 1354 | B100: Zajmovi tuzemnim osiguravajućim društvima izvan javnog sektora | C100: 89 | F100: -
A101: 1355 | B101: Zajmovi ostalim tuzemnim financijskim institucijama izvan javnog sektora | C101: 90 | F101: -
A102: 1363 | B102: Zajmovi tuzemnim trgovačkim društvima izvan javnog sektora | C102: 91 | F102: -
A103: 1364 | B103: Zajmovi tuzemnim obrtnicima | C103: 92 | F103: -
A104: 1371 | B104: Zajmovi državnom proračunu | C104: 93 | F104: -
A105: 1372 | B105: Zajmovi županijskim proračunima | C105: 94 | F105: -
A106: 1373 | B106: Zajmovi gradskim proračunima | C106: 95 | F106: -
A107: 1374 | B107: Zajmovi općinskim proračunima | C107: 96 | F107: -
A108: 1375 | B108: Zajmovi HZMO-u, HZZ-u, HZZO-u | C108: 97 | F108: -
A109: 1376 | B109: Zajmovi ostalim izvanproračunskim korisnicima državnog proračuna | C109: 98 | F109: -
A110: 1377 | B110: Zajmovi izvanproračunskim korisnicima županijskih, gradskih i općinskih proračuna | C110: 99 | F110: -
B111: Zajmovi - inozemni (AOP 101 do 110) | C111: 100 | D111: =SUM(D112:D121) -> 0 | E111: =SUM(E112:E121) -> 0 | F111: -
A112: 1313 | B112: Zajmovi međunarodnim organizacijama | C112: 101 | F112: -
A113: 1314 | B113: Zajmovi institucijama i tijelima EU | C113: 102 | F113: -
A114: 1315 | B114: Zajmovi inozemnim vladama u EU | C114: 103 | F114: -
A115: 1316 | B115: Zajmovi inozemnim vladama izvan EU | C115: 104 | F115: -
A116: 1322 | B116: Zajmovi neprofitnim organizacijama, građanima i kućanstvima u inozemstvu | C116: 105 | F116: -
A117: 1356 | B117: Zajmovi inozemnim kreditnim institucijama | C117: 106 | F117: -
A118: 1357 | B118: Zajmovi inozemnim osiguravajućim društvima | C118: 107 | F118: -
A119: 1358 | B119: Zajmovi ostalim inozemnim financijskim institucijama | C119: 108 | F119: -
A120: 1365 | B120: Zajmovi inozemnim trgovačkim društvima | C120: 109 | F120: -
A121: 1366 | B121: Zajmovi inozemnim obrtnicima | C121: 110 | F121: -
A122: 139 | B122: Ispravak vrijednosti danih zajmova | C122: 111 | F122: -
A123: 14 | B123: Vrijednosni papiri (AOP 113+120-127) | C123: 112 | D123: =D124+D131-D138 -> 0 | E123: =E124+E131-E138 -> 0 | F123: -
B124: Vrijednosni papiri - tuzemni (AOP 114 do 119) | C124: 113 | D124: =SUM(D125:D130) -> 0 | E124: =SUM(E125:E130) -> 0 | F124: -
A125: 1411 | B125: Čekovi | C125: 114 | F125: -
A126: 1421 | B126: Komercijalni i blagajnički zapisi | C126: 115 | F126: -
A127: 1431 | B127: Mjenice | C127: 116 | F127: -
A128: 1441 | B128: Obveznice | C128: 117 | F128: -
A129: 1451 | B129: Opcije i drugi financijski derivati | C129: 118 | F129: -
A130: 1461 | B130: Ostali vrijednosni papiri | C130: 119 | F130: -
B131: Vrijednosni papiri - inozemni (AOP 121 do 126) | C131: 120 | D131: =SUM(D132:D137) -> 0 | E131: =SUM(E132:E137) -> 0 | F131: -
A132: 1412 | B132: Čekovi | C132: 121 | F132: -
A133: 1422 | B133: Komercijalni i blagajnički zapisi | C133: 122 | F133: -
A134: 1432 | B134: Mjenice | C134: 123 | F134: -
A135: 1442 | B135: Obveznice | C135: 124 | F135: -
A136: 1452 | B136: Opcije i drugi financijski derivati | C136: 125 | F136: -
A137: 1462 | B137: Ostali vrijednosni papiri | C137: 126 | F137: -
A138: 149 | B138: Ispravak vrijednosti vrijednosnih papira | C138: 127 | F138: -
A139: 15 | B139: Dionice i udjeli u glavnici (AOP 129+136-139) | C139: 128 | D139: =D140+D147-D150 -> 0 | E139: =E140+E147-E150 -> 0 | F139: -
B140: Dionice i udjeli u glavnici - tuzemni (AOP 130 do 135) | C140: 129 | D140: =SUM(D141:D146) -> 0 | E140: =SUM(E141:E146) -> 0 | F140: =IF(D140>0,IF(E140/D140>=100,">>100",E140/D140*100),"-") -> -
A141: 1512 | B141: Dionice i udjeli u glavnici kreditnih institucija u javnom sektoru | C141: 130 | F141: -
A142: 1513 | B142: Dionice i udjeli u glavnici osiguravajućih društava u javnom sektoru | C142: 131 | F142: -
A143: 1514 | B143: Dionice i udjeli u glavnici ostalih financijskih institucija u javnom sektoru | C143: 132 | F143: -
A144: 1521 | B144: Dionice i udjeli u glavnici trgovačkih društava u javnom sektoru | C144: 133 | F144: -
A145: 1531 | B145: Dionice i udjeli u glavnici tuzemnih kreditnih i ostalih financijskih institucija izvan javnog sektora | C145: 134 | F145: -
A146: 1541 | B146: Dionice i udjeli u glavnici tuzemnih trgovačkih društava izvan javnog sektora | C146: 135 | F146: -
B147: Dionice i udjeli u glavnici - inozemni (AOP 137+138) | C147: 136 | D147: =SUM(D148:D149) -> 0 | E147: =SUM(E148:E149) -> 0 | F147: -
A148: 1532 | B148: Dionice i udjeli u glavnici inozemnih kreditnih i ostalih financijskih institucija | C148: 137 | F148: -
A149: 1542 | B149: Dionice i udjeli u glavnici inozemnih trgovačkih društava | C149: 138 | F149: -
A150: 159 | B150: Ispravak vrijednosti dionica i udjela u glavnici | C150: 139 | F150: -
A151: 16 | B151: Potraživanja za prihode poslovanja (AOP 141+142+143+151+152+153+154+155-156) | C151: 140 | D151: =SUM(D152:D154)+SUM(D162:D166)-D167 -> 7258 | E151: =SUM(E152:E154)+SUM(E162:E166)-E167 -> 8943 | F151: 123.2157619
A152: 161 | B152: Potraživanja za poreze | C152: 141 | F152: -
A153: 162 | B153: Potraživanja za doprinose | C153: 142 | F153: -
A154: 163 | B154: Potraživanja za pomoći iz inozemstva i od subjekata unutar općeg proračuna (AOP 144 do 150) | C154: 143 | D154: =SUM(D155:D161) -> 0 | E154: =SUM(E155:E161) -> 0 | F154: -
A155: 1631 | B155: Potraživanja za pomoći od inozemnih vlada | C155: 144 | F155: -
A156: 1632 | B156: Potraživanja za pomoći od međunarodnih organizacija te institucija i tijela EU | C156: 145 | F156: -
A157: 1633 | B157: Potraživanja za pomoći proračunu iz drugih proračuna | C157: 146 | F157: -
A158: 1634 | B158: Potraživanja za pomoći od izvanproračunskih korisnika | C158: 147 | F158: -
A159: 1635 | B159: Pomoći izravnanja za decentralizirane funkcije | C159: 148 | F159: -
A160: 1636 | B160: Potraživanja za pomoći proračunskim korisnicima iz proračuna koji im nije nadležan | C160: 149 | F160: -
A161: 1638 | B161: Potraživanja za pomoći iz državnog proračuna temeljem prijenosa EU sredstava | C161: 150 | F161: -
A162: 164 | B162: Potraživanja za prihode od imovine | C162: 151 | F162: -
A163: 165 | B163: Potraživanja za upravne i administrativne pristojbe, pristojbe po posebnim propisima i naknade | C163: 152 | F163: -
A164: 166 | B164: Potraživanja za prihode od prodaje proizvoda i robe te pruženih usluga | C164: 153 | D164: 7258 | E164: 8943 | F164: 123.2157619
A165: 167 | B165: Potraživanja za prihode iz proračuna | C165: 154 | F165: -
A166: 168 | B166: Potraživanja za kazne i upravne mjere te ostale prihode | C166: 155 | F166: -
A167: 169 | B167: Ispravak vrijednosti potraživanja | C167: 156 | F167: -
A168: 17 | B168: Potraživanja od prodaje nefinancijske imovine | C168: 157 | F168: -
A169: 19 | B169: Rashodi budućih razdoblja i nedospjela naplata prihoda (AOP 159 do 161) | C169: 158 | D169: =SUM(D170:D172) -> 493034 | E169: =SUM(E170:E172) -> 561501 | F169: 113.8868719
A170: 191 | B170: Unaprijed plaćeni rashodi budućih razdoblja | C170: 159 | F170: -
A171: 192 | B171: Nedospjela naplata prihoda | C171: 160 | F171: -
A172: 193 | B172: Kontinuirani rashodi budućih razdoblja | C172: 161 | D172: 493034 | E172: 561501 | F172: 113.8868719
B173: OBVEZE I VLASTITI IZVORI (AOP 163+223) | C173: 162 | D173: =D174+D234 -> 834116 | E173: =E174+E234 -> 877834 | F173: 105.2412374
A174: 2 | B174: Obveze (AOP 164+175+176+192+220) | C174: 163 | D174: =D175+D186+D187+D203+D231 -> 613897 | E174: =E175+E186+E187+E203+E231 -> 699199 | F174: 113.8951648
A175: 23 | B175: Obveze za rashode poslovanja (AOP 165 do 167 + 171 do 174) | C175: 164 | D175: =SUM(D176:D178)+SUM(D182:D185) -> 597788 | E175: =SUM(E176:E178)+SUM(E182:E185) -> 691521 | F175: 115.6799735
A176: 231 | B176: Obveze za zaposlene | C176: 165 | D176: 484295 | E176: 558273 | F176: 115.2754003
A177: 232 | B177: Obveze za materijalne rashode | C177: 166 | D177: 111158 | E177: 118222 | F177: 106.3549182
A178: 234 | B178: Obveze za financijske rashode (AOP 168 do 170) | C178: 167 | D178: =SUM(D179:D181) -> 795 | E178: =SUM(E179:E181) -> 125 | F178: 15.72327044
A179: 2341 | B179: Obveze za kamate za izdane vrijednosne papire | C179: 168 | F179: -
A180: 2342 | B180: Obveze za kamate na primljene kredite i zajmove | C180: 169 | F180: -
A181: 2343 | B181: Obveze za ostale financijske rashode | C181: 170 | D181: 795 | E181: 125 | F181: 15.72327044
A182: 235 | B182: Obveze za subvencije | C182: 171 | F182: -
A183: 237 | B183: Obveze za naknade građanima i kućanstvima | C183: 172 | F183: -
A184: 238 | B184: Obveze za kazne, naknade šteta i kapitalne pomoći | C184: 173 | F184: -
A185: 239 | B185: Ostale tekuće obveze | C185: 174 | D185: 1540 | E185: 14901 | F185: 967.5974026
A186: 24 | B186: Obveze za nabavu nefinancijske imovine | C186: 175 | D186: 0 | E186: 0 | F186: -
A187: 25 | B187: Obveze za vrijednosne papire (AOP 177+184-191) | C187: 176 | D187: =D188+D195-D202 -> 0 | E187: =E188+E195-E202 -> 0 | F187: -
B188: Obveze za vrijednosne papire - tuzemne (AOP 178 do 183) | C188: 177 | D188: =SUM(D189:D194) -> 0 | E188: =SUM(E189:E194) -> 0 | F188: -
A189: 2511 | B189: Obveze za čekove | C189: 178 | F189: -
A190: 2521 | B190: Obveze za trezorske zapise | C190: 179 | F190: -
A191: 2531 | B191: Obveze za mjenice | C191: 180 | F191: -
A192: 2541 | B192: Obveze za obveznice | C192: 181 | F192: -
A193: 2551 | B193: Obveze za opcije i druge financijske derivate | C193: 182 | F193: -
A194: 2561 | B194: Obveze za ostale vrijednosne papire | C194: 183 | F194: -
B195: Obveze za vrijednosne papire - inozemne (AOP 185 do 190) | C195: 184 | D195: =SUM(D196:D201) -> 0 | E195: =SUM(E196:E201) -> 0 | F195: -
A196: 2512 | B196: Obveze za čekove | C196: 185 | F196: -
A197: 2522 | B197: Obveze za trezorske zapise | C197: 186 | F197: -
A198: 2532 | B198: Obveze za mjenice | C198: 187 | F198: -
A199: 2542 | B199: Obveze za obveznice | C199: 188 | F199: -
A200: 2552 | B200: Obveze za opcije i druge financijske derivate | C200: 189 | F200: -
A201: 2562 | B201: Obveze za ostale vrijednosne papire | C201: 190 | F201: -
... 125 more rows

Sheet RasF
A1: <–––– Povratak na RefStr | C1: Kontrole RAS-funkcijski
A2: IZVJEŠTAJ O RASHODIMA PREMA FUNKCIJSKOJ KLASIFIKACIJI | E2: Obrazac RAS-funkcijski VP 154
A3: ="za razdoblje "&IF(RefStr!K10="","________________",TEXT(RefStr!K10,"d.mmmm yyyy.")&" do "&IF(RefStr!K12="","______________",TEXT(RefStr!K12,"d. mmmm yyyy."))) -> za razdoblje 1.siječanj 2017. do 31. prosinac 2017.
A4: Obveznik: | B4: ="RKP: "&IF(RefStr!B6<>"",TEXT(INT(VALUE(RefStr!B6)),"00000"),"_____"&", "&"MB: "&IF(RefStr!B8<>"",TEXT(INT(VALUE(RefStr!B8)),"00000000"),"________")&" OIB: "&IF(RefStr!K14<>"",RefStr!K14,"___________")) -> RKP: 09431 | E4: =SUM(Skriveni!G1287:G1423) -> 10764600.59
B5: ="Naziv: "&IF(RefStr!B10<>"",RefStr!B10,"_______________________________________") -> Naziv: OŠ MLADOST OSIJEK | E5: Kontrolni broj obrasca
B6: ="Razina: " & RefStr!B16 & ", Razdjel: " & TEXT(INT(VALUE(RefStr!B20)), "000") -> Razina: 31, Razdjel: 000
B7: ="Djelatnost: " & RefStr!B18 & " " & RefStr!C18 -> Djelatnost: 8520 Osnovno obrazovanje
F9: iznosi u kunama, bez lipa
A10: Brojč. ozn. funk. klas. | B10: Opis stavke | C10: AOP | D10: Ostvareno u prethodnoj godini | E10: Ostvareno u tekućoj godini | F10: Indeks (5/4)
A11: 1 | B11: 2 | C11: 3 | D11: 4 | E11: 5 | F11: 6
A12: 01 | B12: Opće javne usluge (AOP 002+006+009+013 do 017) | C12: 1 | D12: =D13+D17+D20+SUM(D24:D28) -> 0 | E12: =E13+E17+E20+SUM(E24:E28) -> 0 | F12: =IF(D12>0,IF(E12/D12>=100,">>100",E12/D12*100),"-") -> -
A13: 011 | B13: Izvršna i zakonodavna tijela, financijski i fiskalni poslovi, vanjski poslovi (AOP 003 do 005) | C13: 2 | D13: =SUM(D14:D16) -> 0 | E13: =SUM(E14:E16) -> 0 | F13: =IF(D13>0,IF(E13/D13>=100,">>100",E13/D13*100),"-") -> -
A14: 0111 | B14: Izvršna i zakonodavna tijela | C14: 3 | F14: =IF(D14>0,IF(E14/D14>=100,">>100",E14/D14*100),"-") -> -
A15: 0112 | B15: Financijski i fiskalni poslovi | C15: 4 | F15: -
A16: 0113 | B16: Vanjski poslovi | C16: 5 | F16: -
A17: 012 | B17: Inozemna ekonomska pomoć (AOP 007+008) | C17: 6 | D17: =SUM(D18:D19) -> 0 | E17: =SUM(E18:E19) -> 0 | F17: -
A18: 0121 | B18: Ekonomska pomoć zemljama u razvoju i zemljama u tranziciji | C18: 7 | F18: -
A19: 0122 | B19: Ekonomska pomoć usmjerena preko međunarodnih agencija | C19: 8 | F19: -
A20: 013 | B20: Opće usluge (AOP 010 do 012) | C20: 9 | D20: =SUM(D21:D23) -> 0 | E20: =SUM(E21:E23) -> 0 | F20: -
A21: 0131 | B21: Opće usluge vezane za službenike | C21: 10 | F21: -
A22: 0132 | B22: Sveukupno planiranje i statističke usluge | C22: 11 | F22: -
A23: 0133 | B23: Ostale opće usluge | C23: 12 | F23: -
A24: 014 | B24: Osnovna istraživanja | C24: 13 | F24: -
A25: 015 | B25: Istraživanje i razvoj: Opće javne usluge | C25: 14 | F25: -
A26: 016 | B26: Opće javne usluge koje nisu drugdje svrstane | C26: 15 | F26: -
A27: 017 | B27: Transakcije vezane za javni dug | C27: 16 | F27: -
A28: 018 | B28: Prijenosi općeg karaktera između različitih državnih razina | C28: 17 | F28: -
A29: 02 | B29: Obrana (AOP 019 do 023) | C29: 18 | D29: =SUM(D30:D34) -> 0 | E29: =SUM(E30:E34) -> 0 | F29: -
A30: 021 | B30: Vojna obrana | C30: 19 | F30: -
A31: 022 | B31: Civilna obrana | C31: 20 | F31: -
A32: 023 | B32: Inozemna vojna pomoć | C32: 21 | F32: -
A33: 024 | B33: Istraživanje i razvoj obrane | C33: 22 | F33: -
A34: 025 | B34: Rashodi za obranu koji nisu drugdje svrstani | C34: 23 | F34: -
A35: 03 | B35: Javni red i sigurnost (AOP 025 do 030) | C35: 24 | D35: =SUM(D36:D41) -> 0 | E35: =SUM(E36:E41) -> 0 | F35: -
A36: 031 | B36: Usluge policije | C36: 25 | F36: -
A37: 032 | B37: Usluge protupožarne zaštite | C37: 26 | F37: -
A38: 033 | B38: Sudovi | C38: 27 | F38: -
A39: 034 | B39: Zatvori | C39: 28 | F39: -
A40: 035 | B40: Istraživanje i razvoj: Javni red i sigurnost | C40: 29 | F40: -
A41: 036 | B41: Rashodi za javni red i sigurnost koji nisu drugdje svrstani | C41: 30 | F41: -
A42: 04 | B42: Ekonomski poslovi (AOP 032+035+039+046+050+056+057+062+070) | C42: 31 | D42: =D43+D46+D50+D57+D61+D67+D68+D73+D81 -> 0 | E42: =E43+E46+E50+E57+E61+E67+E68+E73+E81 -> 0 | F42: -
A43: 041 | B43: Opći ekonomski, trgovački i poslovi vezani uz rad (AOP 033+034) | C43: 32 | D43: =SUM(D44:D45) -> 0 | E43: =SUM(E44:E45) -> 0 | F43: -
A44: 0411 | B44: Opći ekonomski i trgovački poslovi | C44: 33 | F44: -
A45: 0412 | B45: Opći poslovi vezani uz rad | C45: 34 | F45: -
A46: 042 | B46: Poljoprivreda, šumarstvo, ribarstvo i lov (AOP 036 do 038) | C46: 35 | D46: =SUM(D47:D49) -> 0 | E46: =SUM(E47:E49) -> 0 | F46: -
A47: 0421 | B47: Poljoprivreda | C47: 36 | F47: -
A48: 0422 | B48: Šumarstvo | C48: 37 | F48: -
A49: 0423 | B49: Ribarstvo i lov | C49: 38 | F49: -
A50: 043 | B50: Gorivo i energija (AOP 040 do 045) | C50: 39 | D50: =SUM(D51:D56) -> 0 | E50: =SUM(E51:E56) -> 0 | F50: -
A51: 0431 | B51: Ugljen i ostala kruta mineralna goriva | C51: 40 | F51: -
A52: 0432 | B52: Nafta i prirodni plin | C52: 41 | F52: -
A53: 0433 | B53: Nuklearno gorivo | C53: 42 | F53: -
A54: 0434 | B54: Ostala goriva | C54: 43 | F54: -
A55: 0435 | B55: Električna energija | C55: 44 | F55: -
A56: 0436 | B56: Ostale vrste energije | C56: 45 | F56: -
A57: 044 | B57: Rudarstvo, proizvodnja i građevinarstvo (AOP 047 do 049) | C57: 46 | D57: =SUM(D58:D60) -> 0 | E57: =SUM(E58:E60) -> 0 | F57: -
A58: 0441 | B58: Rudarstvo, mineralni resursi i ostala mineralna goriva | C58: 47 | F58: -
A59: 0442 | B59: Proizvodnja | C59: 48 | F59: -
A60: 0443 | B60: Građevinarstvo | C60: 49 | F60: -
A61: 045 | B61: Promet (AOP 051 do 055) | C61: 50 | D61: =SUM(D62:D66) -> 0 | E61: =SUM(E62:E66) -> 0 | F61: -
A62: 0451 | B62: Cestovni promet | C62: 51 | F62: -
A63: 0452 | B63: Promet vodnim putovima | C63: 52 | F63: -
A64: 0453 | B64: Željeznički promet | C64: 53 | F64: -
A65: 0454 | B65: Zračni promet | C65: 54 | F65: -
A66: 0455 | B66: Promet cjevovodima i ostali promet | C66: 55 | F66: -
A67: 046 | B67: Komunikacije | C67: 56 | F67: -
A68: 047 | B68: Ostale industrije (AOP 058 do 061) | C68: 57 | D68: =SUM(D69:D72) -> 0 | E68: =SUM(E69:E72) -> 0 | F68: -
A69: 0471 | B69: Distribucija i skladištenje | C69: 58 | F69: -
A70: 0472 | B70: Hoteli i restorani | C70: 59 | F70: -
A71: 0473 | B71: Turizam | C71: 60 | F71: -
A72: 0474 | B72: Višenamjenski razvojni projekti | C72: 61 | F72: -
A73: 048 | B73: Istraživanje i razvoj: Ekonomski poslovi (AOP 063 do 069) | C73: 62 | D73: =SUM(D74:D80) -> 0 | E73: =SUM(E74:E80) -> 0 | F73: -
A74: 0481 | B74: Istraživanje i razvoj: Opći ekonomski, trgovački i poslovi vezani uz rad | C74: 63 | F74: -
A75: 0482 | B75: Istraživanje i razvoj: Poljoprivreda, šumarstvo, ribarstvo i lov | C75: 64 | F75: -
A76: 0483 | B76: Istraživanje i razvoj: Gorivo i energija | C76: 65 | F76: -
A77: 0484 | B77: Istraživanje i razvoj: Rudarstvo, proizvodnja i građevinarstvo | C77: 66 | F77: -
A78: 0485 | B78: Istraživanje i razvoj: Promet | C78: 67 | F78: =IF(D78>0,IF(E78/D78>=100,">>100",E78/D78*100),"-") -> -
A79: 0486 | B79: Istraživanje i razvoj: Komunikacije | C79: 68 | F79: -
A80: 0487 | B80: Istraživanje i razvoj: Ostale industrije | C80: 69 | F80: -
A81: 049 | B81: Ekonomski poslovi koji nisu drugdje svrstani | C81: 70 | F81: -
A82: 05 | B82: Zaštita okoliša (AOP 072 do 077) | C82: 71 | D82: =SUM(D83:D88) -> 0 | E82: =SUM(E83:E88) -> 0 | F82: -
A83: 051 | B83: Gospodarenje otpadom | C83: 72 | F83: -
A84: 052 | B84: Gospodarenje otpadnim vodama | C84: 73 | F84: -
A85: 053 | B85: Smanjenje zagađivanja | C85: 74 | F85: -
A86: 054 | B86: Zaštita bioraznolikosti i krajolika | C86: 75 | F86: -
A87: 055 | B87: Istraživanje i razvoj: Zaštita okoliša | C87: 76 | F87: -
A88: 056 | B88: Poslovi i usluge zaštite okoliša koji nisu drugdje svrstani | C88: 77 | F88: -
A89: 06 | B89: Usluge unapređenja stanovanja i zajednice (AOP 079 do 084) | C89: 78 | D89: =SUM(D90:D95) -> 0 | E89: =SUM(E90:E95) -> 0 | F89: -
A90: 061 | B90: Razvoj stanovanja | C90: 79 | F90: -
A91: 062 | B91: Razvoj zajednice | C91: 80 | F91: -
A92: 063 | B92: Opskrba vodom | C92: 81 | F92: -
A93: 064 | B93: Ulična rasvjeta | C93: 82 | F93: -
A94: 065 | B94: Istraživanje i razvoj stanovanja i komunalnih pogodnosti | C94: 83 | F94: -
A95: 066 | B95: Rashodi vezani za stanovanje i kom. pogodnosti koji nisu drugdje svrstani | C95: 84 | F95: -
A96: 07 | B96: Zdravstvo (AOP 086+090+095+100+101+102) | C96: 85 | D96: =D97+D101+D106+D111+D112+D113 -> 0 | E96: =E97+E101+E106+E111+E112+E113 -> 0 | F96: -
A97: 071 | B97: Medicinski proizvodi, pribor i oprema (AOP 087 do 089) | C97: 86 | D97: =SUM(D98:D100) -> 0 | E97: =SUM(E98:E100) -> 0 | F97: -
A98: 0711 | B98: Farmaceutski proizvodi | C98: 87 | F98: -
A99: 0712 | B99: Ostali medicinski proizvodi | C99: 88 | F99: -
A100: 0713 | B100: Terapeutski pribor i oprema | C100: 89 | F100: -
A101: 072 | B101: Službe za vanjske pacijente (AOP 091 do 094) | C101: 90 | D101: =SUM(D102:D105) -> 0 | E101: =SUM(E102:E105) -> 0 | F101: -
A102: 0721 | B102: Opće medicinske usluge | C102: 91 | F102: -
A103: 0722 | B103: Specijalističke medicinske usluge | C103: 92 | F103: -
A104: 0723 | B104: Zubarske usluge | C104: 93 | F104: -
A105: 0724 | B105: Paramedicinske usluge | C105: 94 | F105: -
A106: 073 | B106: Bolničke službe (AOP 096 do 099) | C106: 95 | D106: =SUM(D107:D110) -> 0 | E106: =SUM(E107:E110) -> 0 | F106: -
A107: 0731 | B107: Usluge općih bolnica | C107: 96 | F107: -
A108: 0732 | B108: Usluge specijalističkih bolnica | C108: 97 | F108: -
A109: 0733 | B109: Usluge medicinskih centara i centara za majčinstvo | C109: 98 | F109: -
A110: 0734 | B110: Usluge centara za njegu i oporavak | C110: 99 | F110: -
A111: 074 | B111: Službe javnog zdravstva | C111: 100 | F111: -
A112: 075 | B112: Istraživanje i razvoj zdravstva | C112: 101 | F112: -
A113: 076 | B113: Poslovi i usluge zdravstva koji nisu drugdje svrstani | C113: 102 | F113: -
A114: 08 | B114: Rekreacija, kultura i religija (AOP 104 do 109) | C114: 103 | D114: =SUM(D115:D120) -> 0 | E114: =SUM(E115:E120) -> 0 | F114: -
A115: 081 | B115: Službe rekreacije i sporta | C115: 104 | F115: -
A116: 082 | B116: Službe kulture | C116: 105 | F116: -
A117: 083 | B117: Službe emitiranja i izdavanja | C117: 106 | F117: -
A118: 084 | B118: Religijske i druge službe zajednice | C118: 107 | F118: -
A119: 085 | B119: Istraživanje i razvoj rekreacije, kulture i religije | C119: 108 | F119: -
A120: 086 | B120: Rashodi za rekreaciju, kulturu i religiju koji nisu drugdje svrstani | C120: 109 | F120: -
A121: 09 | B121: Obrazovanje (AOP 111+114+117+118+121 do 124) | C121: 110 | D121: =D122+D125+D128+D129+SUM(D132:D135) -> 7358507 | E121: =E122+E125+E128+E129+SUM(E132:E135) -> 7894608 | F121: 107.2854589
A122: 091 | B122: Predškolsko i osnovno obrazovanje (AOP 112+113) | C122: 111 | D122: =SUM(D123:D124) -> 6940557 | E122: =SUM(E123:E124) -> 7433792 | F122: 107.1065622
A123: 0911 | B123: Predškolsko obrazovanje | C123: 112 | F123: -
A124: 0912 | B124: Osnovno obrazovanje | C124: 113 | D124: 6940557 | E124: 7433792 | F124: 107.1065622
A125: 092 | B125: Srednjoškolsko obrazovanje (AOP 115+116) | C125: 114 | D125: =SUM(D126:D127) -> 0 | E125: =SUM(E126:E127) -> 0 | F125: -
A126: 0921 | B126: Niže srednjoškolsko obrazovanje | C126: 115 | F126: -
A127: 0922 | B127: Više srednjoškolsko obrazovanje | C127: 116 | F127: -
A128: 093 | B128: Poslije srednjoškolsko, ali ne visoko obrazovanje | C128: 117 | F128: -
A129: 094 | B129: Visoka naobrazba (AOP 119+120) | C129: 118 | D129: =SUM(D130:D131) -> 0 | E129: =SUM(E130:E131) -> 0 | F129: -
A130: 0941 | B130: Prvi stupanj visoke naobrazbe | C130: 119 | F130: -
A131: 0942 | B131: Drugi stupanj visoke naobrazbe | C131: 120 | F131: -
A132: 095 | B132: Obrazovanje koje se ne može definirati po stupnju | C132: 121 | D132: 417950 | E132: 460816 | F132: 110.2562507
A133: 096 | B133: Dodatne usluge u obrazovanju | C133: 122 | F133: -
A134: 097 | B134: Istraživanje i razvoj obrazovanja | C134: 123 | F134: -
A135: 098 | B135: Usluge obrazovanja koje nisu drugdje svrstane | C135: 124 | F135: -
A136: 10 | B136: Socijalna zaštita (AOP 126+129 do 136) | C136: 125 | D136: =D137+D140+SUM(D141:D147) -> 0 | E136: =E137+E140+SUM(E141:E147) -> 0 | F136: -
A137: 101 | B137: Bolest i invaliditet (AOP 127+128) | C137: 126 | D137: =SUM(D138:D139) -> 0 | E137: =SUM(E138:E139) -> 0 | F137: -
A138: 1011 | B138: Bolest | C138: 127 | F138: -
A139: 1012 | B139: Invaliditet | C139: 128 | F139: -
A140: 102 | B140: Starost | C140: 129 | F140: -
A141: 103 | B141: Slijednici | C141: 130 | F141: =IF(D141>0,IF(E141/D141>=100,">>100",E141/D141*100),"-") -> -
A142: 104 | B142: Obitelj i djeca | C142: 131 | F142: =IF(D142>0,IF(E142/D142>=100,">>100",E142/D142*100),"-") -> -
A143: 105 | B143: Nezaposlenost | C143: 132 | F143: -
A144: 106 | B144: Stanovanje | C144: 133 | F144: -
A145: 107 | B145: Socijalna pomoć stanovništvu koje nije obuhvaćeno redovnim socijalnim programima | C145: 134 | F145: -
A146: 108 | B146: Istraživanje i razvoj socijalne zaštite | C146: 135 | F146: -
A147: 109 | B147: Aktivnosti socijalne zaštite koje nisu drugdje svrstane | C147: 136 | F147: -
B148: Kontrolni zbroj (AOP 001+018+024+031+071+078+085+103+110+125) | C148: 137 | D148: =D12+D29+D35+D42+D82+D89+D96+D114+D121+D136 -> 7358507 | E148: =E12+E29+E35+E42+E82+E89+E96+E114+E121+E136 -> 7894608 | F148: 107.2854589
A150: U _________________________________________, dana: ____.____.________. | D150: Odgoovorna osoba (potpis)
A151: =IF(RefStr!H25<>"", "Osoba za kontaktiranje: " & RefStr!H25,"Osoba za kontaktiranje: _________________________________________") -> Osoba za kontaktiranje: Robertina Filić
A152: =IF(RefStr!H27="","Telefon za kontakt: _________________","Telefon za kontakt: " & RefStr!H27) -> Telefon za kontakt: 031496682
A153: =IF(RefStr!H33="","Odgovorna osoba: _____________________________","Odgovorna osoba: " & RefStr!H33) -> Odgovorna osoba: JOSIP JUKIĆ

Sheet PVRIO
A1: <–––– Povratak na RefStr | C1: Kontrole obrasca P-VRIO ––––>
A2: IZVJEŠTAJ O PROMJENAMA U VRIJEDNOSTI I OBUJMU IMOVINE I OBVEZA | D2: Obrazac P-VRIO (VP 156)
A3: ="za razdoblje "&IF(RefStr!K10="","________________",TEXT(RefStr!K10,"d.mmmm yyyy.")&" do "&IF(RefStr!K12="","______________",TEXT(RefStr!K12,"d. mmmm yyyy."))) -> za razdoblje 1.siječanj 2017. do 31. prosinac 2017.
A4: Obveznik: | B4: ="RKP: "&IF(RefStr!B6<>"",TEXT(INT(VALUE(RefStr!B6)),"00000"),"_____"&", "&"MB: "&IF(RefStr!B8<>"",TEXT(INT(VALUE(RefStr!B8)),"00000000"),"________")&" OIB: "&IF(RefStr!K14<>"",RefStr!K14,"___________")) -> RKP: 09431 | D4: =SUM(Skriveni!G1424:G1467) -> 4167.098
B5: ="Naziv: "&IF(RefStr!B10<>"",RefStr!B10,"_______________________________________") -> Naziv: OŠ MLADOST OSIJEK | D5: Kontrolni broj obrasca
B6: ="Razina: " & RefStr!B16 & ", Razdjel: " & TEXT(INT(VALUE(RefStr!B20)), "000") -> Razina: 31, Razdjel: 000
B7: ="Djelatnost: " & RefStr!B18 & " " & RefStr!C18 -> Djelatnost: 8520 Osnovno obrazovanje
A10: Račun iz rač. plana | B10: NAZIV | C10: AOP | D10: Iznos povećanja | E10: Iznos smanjenja
A11: 1 | B11: 2 | C11: 3 | D11: 4 | E11: 5
A12: 9151 | B12: Promjene u vrijednosti i obujmu imovine (AOP 002+018) | C12: 1 | D12: =D13+D29 -> 0 | E12: =E13+E29 -> 35027
A13: 91511 | B13: Promjene u vrijednosti (revalorizacija) imovine (AOP 003+010) | C13: 2 | D13: =D14+D21 -> 0 | E13: =E14+E21 -> 0
B14: Promjene u vrijednosti (revalorizacija) nefinancijske imovine (AOP 004 do 009) | C14: 3 | D14: =SUM(D15:D20) -> 0 | E14: =SUM(E15:E20) -> 0
B15: Neproizvedena dugotrajna imovina | C15: 4
B16: Proizvedena dugotrajna imovina | C16: 5
B17: Plemeniti metali i ostale pohranjene vrijednosti | C17: 6
B18: Sitni inventar | C18: 7
B19: Dugotrajna nefinancijska imovina u pripremi | C19: 8
B20: Proizvedena kratkotrajna imovina | C20: 9
B21: Promjene u vrijednosti (revalorizacija) financijske imovine (AOP 011 do 017) | C21: 10 | D21: =SUM(D22:D28) -> 0 | E21: =SUM(E22:E28) -> 0
B22: Novac u banci i blagajni | C22: 11
B23: Depoziti, jamčevni polozi i potraživanja od zaposlenih te za više plaćene poreze i ostalo | C23: 12
B24: Potraživanja za dane zajmove | C24: 13
B25: Vrijednosni papiri | C25: 14
B26: Dionice i udjeli u glavnici | C26: 15
B27: Potraživanja za prihode poslovanja | C27: 16
B28: Potraživanja od prodaje nefinancijske imovine | C28: 17
A29: 91512 | B29: Promjene u obujmu imovine (AOP 019+026) | C29: 18 | D29: =D30+D37 -> 0 | E29: =E30+E37 -> 35027
B30: Promjene u obujmu nefinancijske imovine (AOP 020 do 025) | C30: 19 | D30: =SUM(D31:D36) -> 0 | E30: =SUM(E31:E36) -> 35027
B31: Neproizvedena dugotrajna imovina | C31: 20
B32: Proizvedena dugotrajna imovina | C32: 21 | E32: 26549
B33: Plemeniti metali i ostale pohranjene vrijednosti | C33: 22
B34: Sitni inventar | C34: 23 | E34: 8478
B35: Dugotrajna nefinancijska imovina u pripremi | C35: 24
B36: Proizvedena kratkotrajna imovina | C36: 25
B37: Promjene u obujmu financijske imovine (AOP 027 do 033) | C37: 26 | D37: =SUM(D38:D44) -> 0 | E37: =SUM(E38:E44) -> 0
B38: Novac u banci i blagajni | C38: 27
B39: Depoziti, jamčevni polozi i potraživanja od zaposlenih te za više plaćene poreze i ostalo | C39: 28
B40: Potraživanja za dane zajmove | C40: 29
B41: Vrijednosni papiri | C41: 30
B42: Dionice i udjeli u glavnici | C42: 31
B43: Potraživanja za prihode poslovanja | C43: 32
B44: Potraživanja od prodaje nefinancijske imovine | C44: 33
A45: 9152 | B45: Promjene u vrijednosti (revalorizacija) i obujmu obveza (AOP 035+040) | C45: 34 | D45: =D46+D51 -> 0 | E45: =E46+E51 -> 0
A46: 91521 | B46: Promjene u vrijednosti (revalorizacija) obveza (AOP 036 do 039) | C46: 35 | D46: =SUM(D47:D50) -> 0 | E46: =SUM(E47:E50) -> 0
B47: Obveze za rashode poslovanja | C47: 36
B48: Obveze za nabavu nefinancijske imovine | C48: 37
B49: Obveze za vrijednosne papire | C49: 38
B50: Obveze za kredite i zajmove | C50: 39
A51: 91522 | B51: Promjene u obujmu obveza (AOP 041 do 044) | C51: 40 | D51: =SUM(D52:D55) -> 0 | E51: =SUM(E52:E55) -> 0
B52: Obveze za rashode poslovanja | C52: 41
B53: Obveze za nabavu nefinancijske imovine | C53: 42
B54: Obveze za vrijednosne papire | C54: 43
B55: Obveze za kredite i zajmove | C55: 44
A58: U _________________________________________, dana: ____.____.________. | D58: Odgoovorna osoba (potpis)
A59: =IF(RefStr!H25<>"", "Osoba za kontaktiranje: " & RefStr!H25,"Osoba za kontaktiranje: _________________________________________") -> Osoba za kontaktiranje: Robertina Filić
A60: =IF(RefStr!H27="","Telefon za kontakt: _________________","Telefon za kontakt: " & RefStr!H27) -> Telefon za kontakt: 031496682
A61: =IF(RefStr!H33="","Odgovorna osoba: _____________________________","Odgovorna osoba: " & RefStr!H33) -> Odgovorna osoba: JOSIP JUKIĆ

Sheet Obv
A1: <–––– Povratak na RefStr | C1: Kontrole ––––>
A2: IZVJEŠTAJ O OBVEZAMA | C2: Obveze (VP 159)
A3: ="za razdoblje "&IF(RefStr!K10="","________________",TEXT(RefStr!K10,"d.mmmm yyyy.")&" do "&IF(RefStr!K12="","______________",TEXT(RefStr!K12,"d. mmmm yyyy."))) -> za razdoblje 1.siječanj 2017. do 31. prosinac 2017.
A4: Obveznik: | B4: ="RKP: "&IF(RefStr!B6<>"",TEXT(INT(VALUE(RefStr!B6)),"00000"),"_____"&", "&"MB: "&IF(RefStr!B8<>"",TEXT(INT(VALUE(RefStr!B8)),"00000000"),"________")&" OIB: "&IF(RefStr!K14<>"",RefStr!K14,"___________")) -> RKP: 09431 | C4: =SUM(Skriveni!G1468:G1561) -> 725610.953
B5: ="Naziv: "&IF(RefStr!B10<>"",RefStr!B10,"_______________________________________") -> Naziv: OŠ MLADOST OSIJEK | C5: Kontrolni broj obrasca
B6: ="Razina: " & RefStr!B16 & ", Razdjel: " & TEXT(INT(VALUE(RefStr!B20)), "000") -> Razina: 31, Razdjel: 000
B7: ="Djelatnost: " & RefStr!B18 & " " & RefStr!C18 -> Djelatnost: 8520 Osnovno obrazovanje
D9: iznosi u kunama, bez lipa
A10: Račun iz rač. plana | B10: OPIS | C10: AOP | D10: Iznos
A11: 1 | B11: 2 | C11: 3 | D11: 4
B12: Stanje obveza 1. siječnja (=AOP 036* iz Izvještaja o obvezama za prethodnu godinu) | C12: 1 | D12: 597788
B13: Povećanje obveza u izvještajnom razdoblju (AOP 003+004+012+013) | C13: 2 | D13: =D14+D15+D23+D24 -> 7940231
B14: Međusobne obveze proračunskih korisnika | C14: 3 | D14: 43354
A15: 23 | B15: Obveze za rashode poslovanja (AOP 005 do 011) | C15: 4 | D15: =SUM(D16:D22) -> 7842913
A16: 231 | B16: Obveze za zaposlene | C16: 5 | D16: 6380729
A17: 232 | B17: Obveze za materijalne rashode | C17: 6 | D17: 1425026
A18: 234 | B18: Obveze za financijske rashode | C18: 7 | D18: 37158
A19: 235 | B19: Obveze za subvencije | C19: 8
A20: 237 | B20: Obveze za naknade građanima i kućanstvima | C20: 9
A21: 238 | B21: Obveze za kazne, naknade šteta i kapitalne pomoći | C21: 10
A22: 239 | B22: Ostale tekuće obveze | C22: 11
A23: 24 | B23: Obveze za nabavu nefinancijske imovine | C23: 12 | D23: 53964
A24: dio 25,26 | B24: Obveze za financijsku imovinu (AOP 014 do 018) | C24: 13 | D24: =SUM(D25:D29) -> 0
A25: 251.253 | B25: Obveze za čekove i mjenice | C25: 14
A26: 254 | B26: Obveze za obveznice | C26: 15
A27: 256 | B27: Obveze za ostale vrijednosne papire | C27: 16
A28: 262,263,2643,2644, 2645,2653,2654,267 | B28: Obveze za tuzemne kredite i zajmove | C28: 17
A29: 261,2646,2647, 2648,2655,2656 | B29: Obveze za inozemne kredite i zajmove | C29: 18
B30: Podmirene obveze u izvještajnom razdoblju (AOP 020+021+029+030) | C30: 19 | D30: =D31+D32+D40+D41 -> 7846498
B31: Međusobne obveze proračunskih korisnika | C31: 20 | D31: 29994
A32: 23 | B32: Obveze za rashode poslovanja (AOP 022 do 028) | C32: 21 | D32: =SUM(D33:D39) -> 7762540
A33: 231 | B33: Obveze za zaposlene | C33: 22 | D33: 6306750
A34: 232 | B34: Obveze za materijalne rashode | C34: 23 | D34: 1417962
A35: 234 | B35: Obveze za financijske rashode | C35: 24 | D35: 37828
A36: 235 | B36: Obveze za subvencije | C36: 25
A37: 237 | B37: Obveze za naknade građanima i kućanstvima | C37: 26
A38: 238 | B38: Obveze za kazne, naknade šteta i kapitalne pomoći | C38: 27
A39: 239 | B39: Ostale tekuće obveze | C39: 28
A40: 24 | B40: Obveze za nabavu nefinancijske imovine | C40: 29 | D40: 53964
A41: dio 25,26 | B41: Obveze za financijsku imovinu (AOP 031 do 035) | C41: 30 | D41: =SUM(D42:D46) -> 0
A42: 251.253 | B42: Obveze za čekove i mjenice | C42: 31
A43: 254 | B43: Obveze za obveznice | C43: 32
A44: 256 | B44: Obveze za ostale vrijednosne papire | C44: 33
A45: 262,263,2643,2644, 2645,2653,2654,267 | B45: Obveze za tuzemne kredite i zajmove | C45: 34
A46: 261,2646,2647, 2648,2655,2656 | B46: Obveze za inozemne kredite i zajmove | C46: 35
B47: Stanje obveza na kraju izvještajnog razdoblja (AOP 001+002-019) i (AOP 037+090) | C47: 36 | D47: =D12+D13-D30 -> 691521
B48: Stanje dospjelih obveza na kraju izvještajnog razdoblja (AOP 038+043+079+084) | C48: 37 | D48: =D49+D54+D90+D95 -> 14900
B49: Međusobne obveze proračunskih korisnika (AOP 039 do 042) | C49: 38 | D49: =SUM(D50:D53) -> 14900
B50: a) Prekoračenje 1 do 60 dana | C50: 39 | D50: 14900
B51: b) Prekoračenje 61 do 180 dana | C51: 40
B52: c) Prekoračenje 181 do 360 dana | C52: 41
B53: d) Prekoračenje preko 360 dana | C53: 42
A54: 23 | B54: Ukupno obveze za rashode poslovanja (AOP 044+049+054+059+064+069+074) | C54: 43 | D54: =D55+D60+D65+D70+D75+D80+D85 -> 0
A55: 231 | B55: Obveze za zaposlene (AOP 045 do 048) | C55: 44 | D55: =SUM(D56:D59) -> 0
B56: a) Prekoračenje 1 do 60 dana | C56: 45
B57: b) Prekoračenje 61 do 180 dana | C57: 46
B58: c) Prekoračenje 181 do 360 dana | C58: 47
B59: d) Prekoračenje preko 360 dana | C59: 48
A60: 232 | B60: Obveze za materijalne rashode (AOP 050 do 053) | C60: 49 | D60: =SUM(D61:D64) -> 0
B61: a) Prekoračenje 1 do 60 dana | C61: 50
B62: b) Prekoračenje 61 do 180 dana | C62: 51
B63: c) Prekoračenje 181 do 360 dana | C63: 52
B64: d) Prekoračenje preko 360 dana | C64: 53
A65: 234 | B65: Obveze za financijske rashode (AOP 055 do 058) | C65: 54 | D65: =SUM(D66:D69) -> 0
B66: a) Prekoračenje 1 do 60 dana | C66: 55
B67: b) Prekoračenje 61 do 180 dana | C67: 56
B68: c) Prekoračenje 181 do 360 dana | C68: 57
B69: d) Prekoračenje preko 360 dana | C69: 58
A70: 235 | B70: Obveze za subvencije (AOP 060 do 063) | C70: 59 | D70: =SUM(D71:D74) -> 0
B71: a) Prekoračenje 1 do 60 dana | C71: 60
B72: b) Prekoračenje 61 do 180 dana | C72: 61
B73: c) Prekoračenje 181 do 360 dana | C73: 62
B74: d) Prekoračenje preko 360 dana | C74: 63
A75: 237 | B75: Obveze za naknade građanima i kućanstvima (AOP 065 do 068) | C75: 64 | D75: =SUM(D76:D79) -> 0
B76: a) Prekoračenje 1 do 60 dana | C76: 65
B77: b) Prekoračenje 61 do 180 dana | C77: 66
B78: c) Prekoračenje 181 do 360 dana | C78: 67
B79: d) Prekoračenje preko 360 dana | C79: 68
A80: 238 | B80: Obveze za kazne, naknade šteta i kapitalne pomoći (AOP 070 do 073) | C80: 69 | D80: =SUM(D81:D84) -> 0
B81: a) Prekoračenje 1 do 60 dana | C81: 70
B82: b) Prekoračenje 61 do 180 dana | C82: 71
B83: c) Prekoračenje 181 do 360 dana | C83: 72
B84: d) Prekoračenje preko 360 dana | C84: 73
A85: 239 | B85: Ostale tekuće obveze (AOP 075 do 078) | C85: 74 | D85: =SUM(D86:D89) -> 0
B86: a) Prekoračenje 1 do 60 dana | C86: 75
B87: b) Prekoračenje 61 do 180 dana | C87: 76
B88: c) Prekoračenje 181 do 360 dana | C88: 77
B89: d) Prekoračenje preko 360 dana | C89: 78
A90: 24 | B90: Obveze za nabavu nefinancijske imovine (AOP 080 do 083) | C90: 79 | D90: =SUM(D91:D94) -> 0
B91: a) Prekoračenje 1 do 60 dana | C91: 80
B92: b) Prekoračenje 61 do 180 dana | C92: 81
B93: c) Prekoračenje 181 do 360 dana | C93: 82
B94: d) Prekoračenje preko 360 dana | C94: 83
A95: dio 25,26 | B95: Obveze za financijsku imovinu (AOP 085 do 089) | C95: 84 | D95: =SUM(D96:D100) -> 0
A96: 251.253 | B96: Obveze za čekove i mjenice | C96: 85
A97: 254 | B97: Obveze za obveznice | C97: 86
A98: 256 | B98: Obveze za ostale vrijednosne papire | C98: 87
A99: 262,263,2643,2644, 2645,2653,2654,267 | B99: Obveze za tuzemne kredite i zajmove | C99: 88
A100: 261,2646,2647, 2648,2655,2656 | B100: Obveze za inozemne kredite i zajmove | C100: 89
B101: Stanje nedospjelih obveza na kraju izvještajnog razdoblja (AOP 091 do 094) | C101: 90 | D101: =SUM(D102:D105) -> 676621
B102: Međusobne obveze proračunskih korisnika | C102: 91
A103: 23 | B103: Obveze za rashode poslovanja | C103: 92 | D103: 676621
A104: 24 | B104: Obveze za nabavu nefinancijske imovine | C104: 93
A105: dio 25,26 | B105: Obveze za financijsku imovinu | C105: 94
A106: * U 2017. godini, pozicija se odnosi na AOP 038 iz izvještaja za 2016. godinu kada je broj AOP pozicija bio drugačiji
A108: U _________________________________________, dana: ____.____.________. | C108: Odgoovorna osoba (potpis)
A109: =IF(RefStr!H25<>"", "Osoba za kontaktiranje: " & RefStr!H25,"Osoba za kontaktiranje: _________________________________________") -> Osoba za kontaktiranje: Robertina Filić
A110: =IF(RefStr!H27="","Telefon za kontakt: _________________","Telefon za kontakt: " & RefStr!H27) -> Telefon za kontakt: 031496682
A111: =IF(RefStr!H33="","Odgovorna osoba: _____________________________","Odgovorna osoba: " & RefStr!H33) -> Odgovorna osoba: JOSIP JUKIĆ

Sheet Kont
A1: BR | B1: TOCAN | C1: OPIS | E1: REZ
A2: <–––– Povratak na RefStr | D2: NISTA | E2: KONTROLE | F2: UPOZORENJA | G2: GODINA | H2: MJESEC | I2: RAZINA | J2: PR-RAS | K2: RASF | L2: PVRIO | M2: BIL | N2: OBV | O2: RKP | P2: RAZDJEL | Q2: KAO_KONS
A3: Rbr. | B3: Rezultat kontrole | C3: Opis dodatne kontrole | E3: =E4+E18+E23+E261+E288+E292+E297 -> 0 | F3: =F4+F18+F23+F261+F288+F292+F297 -> 0 | G3: =IF(RefStr!F6<>"",INT(VALUE(MID(RefStr!F6,1,4))),0) -> 2017 | H3: =IF(RefStr!F6<>"",INT(VALUE(MID(RefStr!F6,6,2))),0) -> 12 | I3: =RefStr!B16 -> 31 | J3: =RefStr!B25 -> DA | K3: =RefStr!B29 -> DA | L3: =RefStr!B31 -> DA | M3: =RefStr!B27 -> DA | N3: =RefStr!B33 -> DA | O3: =RefStr!B6 -> 9431 | P3: =RefStr!B20 -> 0 | Q3: =RefStr!I8 -> NE
A4: OPĆE KONTROLE - Kontrole podataka iz zaglavlja i kontrole popunjenosti obrazaca | E4: =SUM(E5:E17) -> 0 | F4: =SUM(F5:F17) -> 0
A5: 1 | B5: =IF(E5=1,"Pogreška",IF(F5=1,"Provjera","O.K.")) -> O.K. | C5: Oznaku razdjela upisuju samo obveznici razine 11 i 12, dok sve ostale razine u polje razdjel upisuju nulu. Kontrola javlja pogrešku ako za razinu 11 ili 12 razdjel nije upisan ili ako je upisan za bilo koju drugu razinu. | E5: =MAX(G5:L5) -> 0 | F5: 0 | G5: =IF(AND(OR(I3=11,I3=12),P3=0),1,0) -> 0 | H5: =IF(AND(I3<>11,I3<>12,P3<>0),1,0) -> 0
A6: =1+A5 -> 2 | B6: =IF(E6=1,"Pogreška",IF(F6=1,"Provjera","O.K.")) -> O.K. | C6: Kod tromjesečnih i devetomjesečnih izvještaja ne predaju se konsolidirani izvještaji razine 23. Kontrola javlja pogrešku ako ste za jedno od tih razdoblja upisali oznaku razine 23. Za razinu 12 moguće je predati samo obrazac Obveze. | E6: =MAX(G6:L6) -> 0 | F6: 0 | G6: =IF(AND(OR($H$3=3,$H$3=9),$I$3=23),1,0) -> 0 | H6: =IF(AND(OR($H$3=3,$H$3=9),$I$3=12,OR(J3<>"NE",K3<>"NE",L3<>"NE",M3<>"NE",N3<>"DA")),1,0) -> 0 | U6: =IF(LOOKUP(O3,U7:U295,U7:U295)=O3,1,0) -> 0
A7: =1+A6 -> 3 | B7: =IF(E7=1,"Pogreška",IF(F7=1,"Provjera","O.K.")) -> O.K. | C7: Samo razina 11 i 22 mogu pored opcije "Izvještaj vrijedi i kao konsolidirani" upisati "DA" (razina 22 za polugodište i godinu, a razina 11 dodatno i za kvartale). Ovo "DA" znači da obveznik nema koga konsolidirati pa je konsolidirani izvještaj identičan nekonsolidiranom. Svi ostali obveznici ovdje upisuju "NE". Ako kontrola javlja pogrešku, znači da ovo polje nije popunjeno ili obveznik ne spada u grupu onih koji mogu predati identičan konsolidiran i nekonsolidiran izvještaj. | E7: =MAX(G7:K7) -> 0 | F7: =MAX(L7:Q7) -> 0 | G7: =IF(AND(Q3<>"NE",Q3<>"DA"),1,0) -> 0 | H7: =IF(AND(Q3="DA",I3<>11,I3<>22),1,0) -> 0 | I7: =IF(AND(Q3="DA",I3=22,OR(H3=3,H3=9)),1,0) -> 0 | J7: =IF(AND(Q3="DA",U6=0),1,0) -> 0 | L7: =IF(Q3="DA",1,0) -> 0 | U7: 0
A8: 4 | B8: =IF(E8=1,"Pogreška",IF(F8=1,"Provjera","O.K.")) -> O.K. | C8: Popunjenost zaglavlja referentne stranice. Svi podaci u zaglavlju čiji opis je u tamnoplavoj boji moraju biti popunjeni, za one koji nemaju razdjel neka upišu nulu, polje ne smije ostati prazno. Ako ova kontrola javlja pogrešku znači da niste popunili sva neophodna polja u zaglavlju. Takav obrazac neće moći biti zaprimljen. Provjerite još jednom i popunite sva polja na referentnoj stranici. | E8: =MAX(G8) -> 0 | F8: 0 | G8: =IF(AND(Skriveni!L28<>0,OR(RefStr!B6=0,RefStr!B8=0,RefStr!F6="",LEN(RefStr!B10)<3,RefStr!B12=0,LEN(RefStr!C12)<2,LEN(RefStr!B14)<5,LEN(RefStr!H29)<5,RefStr!B16=0,RefStr!B18="",RefStr!B20="",RefStr!B22=0,RefStr!K10="",RefStr!K12="",LEN(RefStr!K14)<6,LEN(RefStr!K14)>11)),1,0) -> 0 | I8: 3 i 9 mjesec | J8: 6. mjesec | K8: 12. mjeseci | U8: 19
A9: 5 | B9: =IF(E9=1,"Pogreška",IF(F9=1,"Provjera","O.K.")) -> O.K. | C9: Razina 11 (od 2016. godine) - za kvartale te za polugodište (I.-III., I.-VI., I.-IX.) predaje PR-RAS obrazac i Obveze - za kraj godine predaje SVE obrasce: PR-RAS, BIL, P-VRIO, RAS-funkcijski i Obveze. Ova kontrola javlja pogrešku ako je popunjen obrazac koji se za upisano razdoblje i razinu ne treba popuniti, ili ako nije popunjen neki koji se treba popuniti. | E9: =MAX(G9:K9) -> 0 | F9: 0 | I9: =IF(AND($I$3=11,OR($H$3=3,$H$3=9),OR($J$3<>"DA",$K$3<>"NE",$L$3<>"NE",$M$3<>"NE",$N$3<>"DA")),1,0) -> 0 | J9: =IF(AND($I$3=11,$H$3=6,OR($J$3<>"DA",$K$3<>"NE",$L$3<>"NE",$M$3<>"NE",$N$3<>"DA")),1,0) -> 0 | K9: =IF(AND($I$3=11,$H$3=12,OR($J$3<>"DA",$K$3<>"DA",$L$3<>"DA",$M$3<>"DA",$N$3<>"DA")),1,0) -> 0 | U9: 35
A10: 6 | B10: O.K. | C10: Razina 12 (od 2016. godine) - za kvartale (I.-III., I.-IX.) predaje samo obrazac Obveze, - za polugodište predaje obrazac PR-RAS te obrazac Obveze - za kraj godine predaje SVE obrasce: PR-RAS, BIL, P-VRIO, RAS-funkcijski i Obveze. Ova kontrola javlja pogrešku ako je popunjen obrazac koji se za upisano razdoblje i razinu ne treba popuniti, ili ako nije popunjen neki koji se treba popuniti. | E10: =MAX(G10:K10) -> 0 | F10: 0 | I10: =IF(AND($I$3=12,OR($H$3=3,$H$3=9),OR($J$3<>"NE",$K$3<>"NE",$L$3<>"NE",$M$3<>"NE",$N$3<>"DA")),1,0) -> 0 | J10: =IF(AND($I$3=12,$H$3=6,OR($J$3<>"DA",$K$3<>"NE",$L$3<>"NE",$M$3<>"NE",$N$3<>"DA")),1,0) -> 0 | K10: =IF(AND($I$3=12,$H$3=12,OR(J3<>"DA",K3<>"DA",L3<>"DA",M3<>"DA",N3<>"DA")),1,0) -> 0 | U10: 174
A11: 7 | B11: O.K. | C11: Razina 13, opća država (od 2016. godine) - za kvartale te za polugodište (I.-III., I.-VI., I.-IX.) predaje samo obrazac PR-RAS - za kraj godine predaje obrasce: PR-RAS, BIL, P-VRIO i RAS-funkcijski. Ova kontrola javlja pogrešku ako je popunjen obrazac koji se za upisano razdoblje i razinu ne treba popuniti, ili ako nije popunjen neki koji se treba popuniti. | E11: =MAX(G11:K11) -> 0 | F11: 0 | I11: =IF(AND($I$3=13,OR($H$3=3,$H$3=9),OR($J$3<>"DA",$K$3<>"NE",$L$3<>"NE",$M$3<>"NE",$N$3<>"NE")),1,0) -> 0 | J11: =IF(AND($I$3=13,$H$3=6,OR($J$3<>"DA",$K$3<>"NE",$L$3<>"NE",$M$3<>"NE",$N$3<>"NE")),1,0) -> 0 | K11: =IF(AND($I$3=13,$H$3=12,OR($J$3<>"DA",$K$3<>"DA",$L$3<>"DA",$M$3<>"DA",$N$3<>"NE")),1,0) -> 0 | U11: 721
A12: 8 | B12: O.K. | C12: Razina 21 (od 2016. godine) - za kvartale (prvi i treći kvartal) predaje samo obrazac PR-RAS - za polugodište predaje obrasce PR-RAS i Obveze, - na godišnjoj razini predaje sve obrasce: PR-RAS, BIL, RAS-funkcijski, P-VRIO i Obveze. Ova kontrola javlja pogrešku ako je popunjen obrazac koji se za upisano razdoblje i razinu ne treba popuniti, ili ako nije popunjen neki koji se treba popuniti. | E12: 0 | F12: 0 | I12: =IF(AND($I$3=21,OR($H$3=3,$H$3=9),OR($J$3<>"DA",$K$3<>"NE",$L$3<>"NE",$M$3<>"NE",$N$3<>"NE")),1,0) -> 0 | J12: =IF(AND($I$3=21,$H$3=6,OR($J$3<>"DA",$K$3<>"NE",$L$3<>"NE",$M$3<>"NE",$N$3<>"DA")),1,0) -> 0 | K12: =IF(AND($I$3=21,$H$3=12,OR($J$3<>"DA",$K$3<>"DA",$L$3<>"DA",$M$3<>"DA",$N$3<>"DA")),1,0) -> 0 | U12: 6031
A13: 9 | B13: O.K. | C13: Razina 22 (od 2016. godine) - za kvartale te za polugodište (I.-III., I.-VI., I.-IX.) predaje PR-RAS obrazac i Obveze - za kraj godine predaje SVE obrasce: PR-RAS, BIL, P-VRIO, RAS-funkcijski i Obveze. Ova kontrola javlja pogrešku ako je popunjen obrazac koji se za upisano razdoblje i razinu ne treba popuniti, ili ako nije popunjen neki koji se treba popuniti. | E13: 0 | F13: 0 | I13: =IF(AND($I$3=22,OR($H$3=3,$H$3=9),OR($J$3<>"DA",$K$3<>"NE",$L$3<>"NE",$M$3<>"NE",$N$3<>"DA")),1,0) -> 0 | J13: =IF(AND($I$3=22,$H$3=6,OR($J$3<>"DA",$K$3<>"NE",$L$3<>"NE",$M$3<>"NE",$N$3<>"DA")),1,0) -> 0 | K13: =IF(AND($I$3=22,$H$3=12,OR($J$3<>"DA",$K$3<>"DA",$L$3<>"DA",$M$3<>"DA",$N$3<>"DA")),1,0) -> 0 | U13: 6040
A14: 10 | B14: O.K. | C14: Razina 23 (od 2016. godine) - za kvartale ne predaje ništa, nema konsolidacije, - za polugodište (I.-VI.) predaje obrasce PR-RAS i Obveze - za kraj godine predaje SVE obrasce: PR-RAS, BIL, P-VRIO, RAS-funkcijski i Obveze. Ova kontrola javlja pogrešku ako je popunjen obrazac koji se za upisano razdoblje i razinu ne treba popuniti, ili ako nije popunjen neki koji se treba popuniti. | E14: 0 | F14: 0 | I14: =IF(AND($I$3=23,OR($H$3=3,$H$3=9)),1,0) -> 0 | J14: =IF(AND($I$3=23,$H$3=6,OR($J$3<>"DA",$K$3<>"NE",$L$3<>"NE",$M$3<>"NE",$N$3<>"DA")),1,0) -> 0 | K14: =IF(AND($I$3=23,$H$3=12,OR($J$3<>"DA",$K$3<>"DA",$L$3<>"DA",$M$3<>"DA",$N$3<>"DA")),1,0) -> 0 | U14: 6099
A15: 11 | B15: O.K. | C15: Razine 31 (od 2016. godine) - za kvartale (prvi i treći kvartal) predaje samo obrazac PR-RAS - za polugodište predaje obrasce PR-RAS i Obveze - na godišnjoj razini predaje sve obrasce: PR-RAS, BIL, RAS-funkcijski, P-VRIO i Obveze. Ova kontrola javlja pogrešku ako je popunjen obrazac koji se za upisano razdoblje i razinu ne treba popuniti, ili ako nije popunjen neki koji se treba popuniti. | E15: 0 | F15: 0 | I15: =IF(AND($I$3=31,OR($H$3=3,$H$3=9),OR($J$3<>"DA",$K$3<>"NE",$L$3<>"NE",$M$3<>"NE",$N$3<>"NE")),1,0) -> 0 | J15: =IF(AND($I$3=31,$H$3=6,OR($J$3<>"DA",$K$3<>"NE",$L$3<>"NE",$M$3<>"NE",$N$3<>"DA")),1,0) -> 0 | K15: =IF(AND($I$3=31,$H$3=12,OR($J$3<>"DA",$K$3<>"DA",$L$3<>"DA",$M$3<>"DA",$N$3<>"DA")),1,0) -> 0 | U15: 6138
A16: 12 | B16: O.K. | C16: Razina 41 (od 2016. godine) - za kvartale i polugodište (I.-III., I.-VI. i I.-IX.) predaje obrasce PR-RAS i Obveze - na godišnjoj razini predaje sve obrasce: PR-RAS, BIL, RAS-funkcijski, P-VRIO i Obveze. Ova kontrola javlja pogrešku ako je popunjen obrazac koji se za upisano razdoblje i razinu ne treba popuniti, ili ako nije popunjen neki koji se treba popuniti. | E16: 0 | F16: 0 | I16: =IF(AND($I$3=41,OR($H$3=3,$H$3=9),OR($J$3<>"DA",$K$3<>"NE",$L$3<>"NE",$M$3<>"NE",$N$3<>"DA")),1,0) -> 0 | J16: =IF(AND($I$3=41,$H$3=6,OR($J$3<>"DA",$K$3<>"NE",$L$3<>"NE",$M$3<>"NE",$N$3<>"DA")),1,0) -> 0 | K16: =IF(AND($I$3=41,$H$3=12,OR($J$3<>"DA",$K$3<>"DA",$L$3<>"DA",$M$3<>"DA",$N$3<>"DA")),1,0) -> 0 | U16: 20833
A17: 13 | B17: O.K. | C17: Razine 42 (od 2016. godine) - za kvartale (prvi i treći kvartal) predaje samo obrazac PR-RAS - za polugodište predaje obrasce PR-RAS i Obveze - na godišnjoj razini predaje sve obrasce: PR-RAS, BIL, RAS-funkcijski, P-VRIO i Obveze. Ova kontrola javlja pogrešku ako je popunjen obrazac koji se za upisano razdoblje i razinu ne treba popuniti, ili ako nije popunjen neki koji se treba popuniti. | E17: 0 | F17: 0 | I17: =IF(AND($I$3=42,OR($H$3=3,$H$3=9),OR($J$3<>"DA",$K$3<>"NE",$L$3<>"NE",$M$3<>"NE",$N$3<>"NE")),1,0) -> 0 | J17: =IF(AND($I$3=42,$H$3=6,OR($J$3<>"DA",$K$3<>"NE",$L$3<>"NE",$M$3<>"NE",$N$3<>"DA")),1,0) -> 0 | K17: =IF(AND($I$3=42,$H$3=12,OR($J$3<>"DA",$K$3<>"DA",$L$3<>"DA",$M$3<>"DA",$N$3<>"DA")),1,0) -> 0 | U17: 21828
A18: Kontrole između dva različita obrasca | E18: =SUM(E19:E22) -> 0 | F18: =SUM(F19:F22) -> 0 | U18: 23987
A19: =1+A17 -> 14 | B19: O.K. | C19: Na godišnjoj razini, AOP oznaka 158 u obrascu Bilanca mora biti jednaka AOP-u 637 u obrascu PR-RAS. Ova kontrola je obvezujuća za razine 11, 21, 22, 31, 41, 42, a upozoravajuća za razine 12, 13 i 23. Zbog zaokruživanja vrijednosti, dopušteno je odstupanje od 1 kn. Ova kontrola vrijedi u obje kolone podataka, osim za obveznike kod kojih početak razdoblja nije ujedno i početak poslovne godine (obveznik je počeo s radom tokom godine). Za takve obveznike kontrola vrijedi samo za kolonu tekuće godine (ne i prethodne). | E19: =MAX(G19:K19) -> 0 | F19: =MAX(L19:P19) -> 0 | G19: =IF(AND(J3="DA",M3="DA",OR(I3=11,I3=21,I3=22, I3 =31,I3=41,I3=42), A1=1,ABS(Bil!D169-PRRAS!D650)>1,Q19=1),1,0) -> 0 | H19: =IF(AND(J3="DA",M3="DA",OR(I3=11,I3=21,I3=22, I3 =31,I3=41,I3=42), A1=1,ABS(Bil!E169-PRRAS!E650)>1),1,0) -> 0 | L19: =IF(AND(J3="DA",M3="DA",OR(I3=11,I3=21,I3=22, I3 =31,I3=41,I3=42), A1=1,ABS(Bil!D169-PRRAS!D650)>1,Q19=1),1,0) -> 0 | M19: =IF(AND(J3="DA",M3="DA",OR(I3=11,I3=21,I3=22, I3 =31,I3=41,I3=42), A1=1,ABS(Bil!E169-PRRAS!E650)>1),1,0) -> 0 | Q19: =IF(MAX(PRRAS!D11:D981) >0,1,0) -> 1 | U19: 24027
A20: =1+A19 -> 15 | B20: O.K. | C20: Na godišnjoj razini, AOP oznaka 064 u obrascu Bilanca mora biti jednaka AOP-u 641 u obrascu PR-RAS. Ova kontrola je obvezujuća za razine 11, 21, 22, 31, 41 i 42, a upozoravajuća za razine 12, 13, 23. Zbog zaokruživanja vrijednosti, Dopušteno je odstupanje od 1 kn. Ova kontrola vrijedi u obje kolone podataka. | E20: =MAX(G20:K20) -> 0 | F20: =MAX(L20:P20) -> 0 | G20: =IF(AND(J3="DA",M3="DA",OR(I3=11,I3=21,I3=22, I3 =31,I3=41,I3=42), A1=1,ABS(Bil!D75-PRRAS!D655)>1,Q19=1),1,0) -> 0 | H20: =IF(AND(J3="DA",M3="DA",OR(I3=11,I3=21,I3=22, I3 =31,I3=41,I3=42), A1=1,ABS(Bil!E75-PRRAS!E655)>1,Q19=1),1,0) -> 0 | L20: =IF(AND(J3="DA",M3="DA",OR(I3=12,I3=13,I3=23), A1=1,ABS(Bil!D75-PRRAS!D655)>1,Q19=1),1,0) -> 0 | M20: =IF(AND(J3="DA",M3="DA",OR(I3=12,I3=13,I3=23), A1=1,ABS(Bil!E75-PRRAS!E655)>1,Q19=1),1,0) -> 0 | U20: 24060
A21: =1+A20 -> 16 | B21: O.K. | C21: Na godišnjoj razini, ako je u Bilanci AOP 232 > 236, tada AOP 635 u PR-RAS-u mora biti jednak AOP 232-236 u Bilanci, a AOP 636 mora biti nula. Ako je u Bilanci AOP 236 > 232 tada AOP 636 u PR-RAS-u mora biti jednak AOP 236 - 232 u Bilanci, a AOP 635 u PR-RAS-u mora biti nula. Ova kontrola vrijedi za obje godine osim u slučaju kada je u PR-RAS obrascu kolana prethodne godine nepopunjena. Pri tome je dopuštena razlika od 1 kn zbog zaokruživanja. | E21: =MAX(G21:L21) -> 0 | F21: 0 | G21: =IF(AND($J$3="DA",$M$3="DA",MAX(PRRAS!D12:D972)>0,Bil!D243>=Bil!D247,OR(ABS(Bil!D243-Bil!D247-PRRAS!D648)>1,PRRAS!D649<>0)),1,0) -> 0 | H21: =IF(AND($J$3="DA",$M$3="DA",Bil!E243>=Bil!E247,OR(ABS(Bil!E243-Bil!E247-PRRAS!E648)>1,PRRAS!E649<>0)),1,0) -> 0 | I21: =IF(AND($J$3="DA",$M$3="DA",MAX(PRRAS!D12:D972)>0,Bil!D247>=Bil!D243,OR(ABS(Bil!D247-Bil!D243-PRRAS!D649)>1,PRRAS!D648<>0)),1,0) -> 0 | J21: =IF(AND($J$3="DA",$M$3="DA",Bil!E247>=Bil!E243,OR(ABS(Bil!E247-Bil!E243-PRRAS!E649)>1,PRRAS!E648<>0)),1,0) -> 0 | U21: 24094
A22: =1+A21 -> 17 | B22: O.K. | C22: Ako je obrazac RAS-funkcijski popunjen, tada razlika AOP oznaka 404 i 234 (AOP 404-234) u obrascu PR-RAS treba biti jednaka zbroju svih rashoda po vrstama, tj. AOP-u 137 u obrascu RAS-funkcijski. Zbog zaokruživanja vrijednosti, Dopušteno je odstupanje od 1 kn. Kontrola vrijedi za obje kolone podataka. | E22: =MAX(G22:L22) -> 0 | F22: 0 | G22: =IF(AND(H3=12,J3="DA",K3="DA",I3<>12,I3<>23,ABS(PRRAS!D416-PRRAS!D245-RasF!D148)>1),1,0) -> 0 | H22: =IF(AND(H3=12,J3="DA",K3="DA",I3<>12,I3<>23,ABS(PRRAS!E416-PRRAS!E245-RasF!E148)>1),1,0) -> 0 | U22: 25353
A23: Kontrole na obrascu PR-RAS | E23: =SUM(E24:E260) -> 0 | F23: =SUM(F24:F260) -> 0 | U23: 25860
A24: =1+A22 -> 18 | B24: O.K. | C24: Ako su u nekom stupcu na AOP-ima 642 do 645 (brojevi zaposlenih) podaci veći od nule, tada u toj istom stupcu mora biti postojati podatak veći od nule i na AOP-u 149 (rashodi za zaposlene). Isto tako, ako postoje zaposleni, moraju postojati i rashodi za zaposlene. | E24: =MAX(G24:L24) -> 0 | F24: 0 | G24: =IF(OR(AND(PRRAS!D160=0,MAX(PRRAS!D656:D659)>0),AND(PRRAS!E160=0,MAX(PRRAS!E656:E659)>0)),1,0) -> 0 | H24: =IF(OR(AND(PRRAS!D160<>0,MAX(PRRAS!D656:D659)=0),AND(PRRAS!E160<>0,MAX(PRRAS!E656:E659)=0)),1,0) -> 0 | U24: 26049
A25: =1+A24 -> 19 | B25: O.K. | C25: Ako je u nekom stupcu na AOP-u 642 broj veći od nule, tada i na AOP-u 644 mora biti broj veći od nule i obrnuto. | E25: =MAX(G25:L25) -> 0 | F25: 0 | G25: =IF(OR(AND(PRRAS!D656=0,PRRAS!D658<>0),AND(PRRAS!D656<>0,PRRAS!D658=0)),1,0) -> 0 | U25: 26161
A26: 20 | B26: O.K. | C26: Ako je u nekom stupcu na AOP-u 643 broj veći od nule, tada i na AOP-u 645 mora biti broj veći od nule i obrnuto. | E26: =MAX(G26:L26) -> 0 | F26: 0 | G26: =IF(OR(AND(PRRAS!D657=0,PRRAS!D659<>0),AND(PRRAS!D657<>0,PRRAS!D659=0)),1,0) -> 0 | U26: 26196
A27: 21 | B27: O.K. | C27: AOP 647 je samo dio AOP-a 019 i mora biti manji ili jednak njemu u oba stupca podataka | E27: =MAX(G27:L27) -> 0 | F27: 0 | G27: =IF(PRRAS!D661>PRRAS!D30,1,0) -> 0 | H27: =IF(PRRAS!E661>PRRAS!E30,1,0) -> 0 | U27: 26207
A28: 22 | B28: O.K. | C28: Zbroj AOP-a: 648+649 je samo dio AOP-a 028 i mora biti manji ili jednak njemu u oba stupca podataka | E28: =MAX(G28:L28) -> 0 | F28: 0 | G28: =IF(PRRAS!D662+PRRAS!D663>PRRAS!D39,1,0) -> 0 | H28: =IF(PRRAS!E662+PRRAS!E663>PRRAS!E39,1,0) -> 0 | U28: 26215
A29: 23 | B29: O.K. | C29: AOP 055 mora biti jednak zbroju AOP-a: 650 do 653 u oba stupca podataka. Zbog zaokruživanja je dopuštena razlika od 1. | E29: =MAX(G29:L29) -> 0 | F29: 0 | G29: =IF(ABS(PRRAS!D66-SUM(PRRAS!D664:D667))>1,1,0) -> 0 | H29: =IF(ABS(PRRAS!E66-SUM(PRRAS!E664:E667))>1,1,0) -> 0 | U29: 26223
A30: 24 | B30: O.K. | C30: AOP 056 mora biti jednak zbroju AOP-a: 654 do 657 u oba stupca podataka. Zbog zaokruživanja je dopuštena razlika od 1. | E30: 0 | F30: 0 | G30: =IF(ABS(PRRAS!D67-SUM(PRRAS!D668:'PRRAS'!D671))>1,1,0) -> 0 | H30: =IF(ABS(PRRAS!E67-SUM(PRRAS!E668:'PRRAS'!E671))>1,1,0) -> 0 | U30: 26240
A31: 25 | B31: O.K. | C31: AOP 058 mora biti jednak zbroju AOP-a: 658 do 660 u oba stupca podataka. Zbog zaokruživanja je dopuštena razlika od 1. | E31: 0 | F31: 0 | G31: =IF(ABS(PRRAS!D69-SUM(PRRAS!D672:D674))>1,1,0) -> 0 | H31: =IF(ABS(PRRAS!E69-SUM(PRRAS!E672:E674))>1,1,0) -> 0 | U31: 26725
A32: 26 | B32: O.K. | C32: AOP 059 mora biti jednak zbroju AOP-a: 661 do 663 u oba stupca podataka | E32: 0 | F32: 0 | G32: =IF(ABS(PRRAS!D70-SUM(PRRAS!D675:D677))>1,1,0) -> 0 | H32: =IF(ABS(PRRAS!E70-SUM(PRRAS!E675:E677))>1,1,0) -> 0 | U32: 26733
A33: 27 | B33: O.K. | C33: AOP 064 mora biti jednak zbroju AOP-a: 664 i 665 u oba stupca podataka | E33: =MAX(G33:L33) -> 0 | F33: 0 | G33: =IF(ABS(PRRAS!D75-PRRAS!D678-PRRAS!D679)>1,1,0) -> 0 | H33: =IF(ABS(PRRAS!E75-PRRAS!E678-PRRAS!E679)>1,1,0) -> 0 | U33: 26969
A34: 28 | B34: O.K. | C34: AOP 065 mora biti jednak zbroju AOP-a: 666 i 667 u oba stupca podataka | E34: =MAX(G34:L34) -> 0 | F34: 0 | G34: =IF(ABS(PRRAS!D76-PRRAS!D680-PRRAS!D681)>1,1,0) -> 0 | H34: =IF(ABS(PRRAS!E76-PRRAS!E680-PRRAS!E681)>1,1,0) -> 0 | U34: 26977
A35: 29 | B35: O.K. | C35: AOP 067 mora biti jednak zbroju AOP-a: 668 do 671 u oba stupca podataka | E35: =MAX(G35:L35) -> 0 | F35: 0 | G35: =IF(ABS(PRRAS!D78-SUM(PRRAS!D682:D685))>1,1,0) -> 0 | H35: =IF(ABS(PRRAS!E78-SUM(PRRAS!E682:E685))>1,1,0) -> 0 | U35: 26985
A36: 30 | B36: O.K. | C36: AOP 068 mora biti jednak zbroju AOP-a: 672 do 675 u oba stupca podataka | E36: =MAX(G36:L36) -> 0 | F36: 0 | G36: =IF(ABS(PRRAS!D79-SUM(PRRAS!D686:D689))>1,1,0) -> 0 | H36: =IF(ABS(PRRAS!E79-SUM(PRRAS!E686:E689))>1,1,0) -> 0 | U36: 26993
A37: 31 | B37: O.K. | C37: AOP 676 je samo dio AOP-a 082 i mora biti manji ili jednak njemu u oba stupca podataka | E37: 0 | F37: 0 | G37: =IF(PRRAS!D690>PRRAS!D93,1,0) -> 0 | H37: =IF(PRRAS!E690>PRRAS!E93,1,0) -> 0 | U37: 27038
A38: 32 | B38: O.K. | C38: AOP 097 mora biti jednak zbroju AOP-a: 677 do 683 u oba stupca podataka. Zbog zaokruživanja je dopuštena razlika od 1. | E38: 0 | F38: 0 | G38: =IF(ABS(PRRAS!D108-SUM(PRRAS!D691:D697))>1,1,0) -> 0 | H38: =IF(ABS(PRRAS!E108-SUM(PRRAS!E691:E697))>1,1,0) -> 0 | U38: 27054
A39: 33 | B39: O.K. | C39: Zbroj AOP-a 684 do 686 je samo dio AOP-a 116 i mora biti manji ili jednak njemu u oba stupca podataka. | E39: 0 | F39: 0 | G39: =IF(SUM(PRRAS!D698:D700)>PRRAS!D127,1,0) -> 0 | H39: =IF(SUM(PRRAS!E698:E700)>PRRAS!E127,1,0) -> 0 | U39: 27062
A40: 34 | B40: O.K. | C40: Zbroj AOP-a 687 i 688 je samo dio AOP-a 155 i mora biti manji ili jednak njemu u oba stupca podataka | E40: 0 | F40: 0 | G40: =IF(PRRAS!D701+PRRAS!D702>PRRAS!D166,1,0) -> 0 | H40: =IF(PRRAS!E701+PRRAS!E702>PRRAS!E166,1,0) -> 0 | U40: 27095
A41: 35 | B41: O.K. | C41: AOP 689 je samo dio AOP-a 163 i mora biti manji ili jednak njemu u oba stupca podataka | E41: =MAX(G41:L41) -> 0 | F41: 0 | G41: =IF(PRRAS!D703>PRRAS!D174,1,0) -> 0 | H41: =IF(PRRAS!E703>PRRAS!E174,1,0) -> 0 | U41: 27100
A42: 36 | B42: O.K. | C42: AOP 690 je samo dio AOP-a 179 i mora biti manji ili jednak njemu u oba stupca podataka | E42: 0 | F42: 0 | G42: =IF(PRRAS!D704>PRRAS!D190,1,0) -> 0 | H42: =IF(PRRAS!E704>PRRAS!E190,1,0) -> 0 | U42: 27302
A43: 37 | B43: O.K. | C43: AOP 691 je samo dio AOP-a 180 i mora biti manji ili jednak njemu u oba stupca podataka | E43: 0 | F43: 0 | G43: =IF(PRRAS!D705>PRRAS!D191,1,0) -> 0 | H43: =IF(PRRAS!E705>PRRAS!E191,1,0) -> 0 | U43: 27319
A44: 38 | B44: O.K. | C44: Zbroj AOP-a 692 do 694 je samo dio AOP-a 181 i mora biti manji ili jednaki njemu u oba stupca podataka | E44: 0 | F44: 0 | G44: =IF(SUM(PRRAS!D706:D708)>PRRAS!D192,1,0) -> 0 | H44: =IF(SUM(PRRAS!E706:E708)>PRRAS!E192,1,0) -> 0 | U44: 27327
A45: 39 | B45: O.K. | C45: AOP 695 je samo dio AOP-a 183 i mora biti manji ili jednak njemu u oba stupca podataka | E45: =MAX(G45:L45) -> 0 | F45: 0 | G45: =IF(PRRAS!D709>PRRAS!D194,1,0) -> 0 | H45: =IF(PRRAS!E709>PRRAS!E194,1,0) -> 0 | U45: 27360
A46: 40 | B46: O.K. | C46: AOP 696 je samo dio AOP-a 186 i mora biti manji ili jednak njemu u oba stupca podataka | E46: 0 | F46: 0 | G46: =IF(PRRAS!D710>PRRAS!D197,1,0) -> 0 | H46: =IF(PRRAS!E710>PRRAS!E197,1,0) -> 0 | U46: 27394
A47: 41 | B47: O.K. | C47: AOP 697 je samo dio AOP-a 187 i mora biti manji ili jednak njemu u oba stupca podataka | E47: 0 | F47: 0 | G47: =IF(PRRAS!D711>PRRAS!D198,1,0) -> 0 | H47: =IF(PRRAS!E711>PRRAS!E198,1,0) -> 0 | U47: 27409
A48: 42 | B48: O.K. | C48: AOP 195 mora biti jednak zbroju AOP-a: 698+699 u oba stupca podataka. Dopušteno je odstupanje od 1kn zbog zaokruživanja. | E48: 0 | F48: 0 | G48: =IF(ABS(PRRAS!D712+PRRAS!D713-PRRAS!D206)>1,1,0) -> 0 | H48: =IF(ABS(PRRAS!E712+PRRAS!E713-PRRAS!E206)>1,1,0) -> 0 | U48: 27417
A49: 43 | B49: O.K. | C49: AOP 196 mora biti jednak zbroju AOP-a: 700+701 u oba stupca podataka. Dopušteno je odstupanje od 1kn zbog zaokruživanja. | E49: 0 | F49: 0 | G49: =IF(ABS(PRRAS!D714+PRRAS!D715-PRRAS!D207)>1,1,0) -> 0 | H49: =IF(ABS(PRRAS!E714+PRRAS!E715-PRRAS!E207)>1,1,0) -> 0 | U49: 27425
A50: 44 | B50: O.K. | C50: AOP 197 mora biti jednak zbroju AOP-a: 702+703 u oba stupca podataka. Dopušteno je odstupanje od 1kn zbog zaokruživanja. | E50: 0 | F50: 0 | G50: =IF(ABS(PRRAS!D716+PRRAS!D717-PRRAS!D208)>1,1,0) -> 0 | H50: =IF(ABS(PRRAS!E716+PRRAS!E717-PRRAS!E208)>1,1,0) -> 0 | U50: 27513
A51: 45 | B51: O.K. | C51: AOP 198 mora biti jednak zbroju AOP-a: 704+705 u oba stupca podataka. Dopušteno je odstupanje od 1kn zbog zaokruživanja. | E51: 0 | F51: 0 | G51: =IF(ABS(PRRAS!D718+PRRAS!D719-PRRAS!D209)>1,1,0) -> 0 | H51: =IF(ABS(PRRAS!E718+PRRAS!E719-PRRAS!E209)>1,1,0) -> 0 | U51: 27521
A52: 46 | B52: O.K. | C52: AOP 200 mora biti jednak zbroju AOP-a: 706 do 709 u oba stupca podataka. Dopušteno je odstupanje od 1kn zbog zaokruživanja. | E52: 0 | F52: 0 | G52: =IF(ABS(PRRAS!D211-SUM(PRRAS!D720:D723))>1,1,0) -> 0 | H52: =IF(ABS(PRRAS!E211-SUM(PRRAS!E720:E723))>1,1,0) -> 0 | U52: 27530
A53: 47 | B53: O.K. | C53: AOP 201 mora biti jednak zbroju AOP-a: 710 do 712 u oba stupca podataka. Dopušteno je odstupanje od 1kn zbog zaokruživanja. | E53: 0 | F53: 0 | G53: =IF(ABS(PRRAS!D212-SUM(PRRAS!D724:D726))>1,1,0) -> 0 | H53: =IF(ABS(PRRAS!E212-SUM(PRRAS!E724:E726))>1,1,0) -> 0 | U53: 27572
A54: 48 | B54: O.K. | C54: AOP 202 mora biti jednak zbroju AOP-a: 713 do 718 u oba stupca podataka. Dopušteno je odstupanje od 1kn zbog zaokruživanja. | E54: 0 | F54: 0 | G54: =IF(ABS(PRRAS!D213-SUM(PRRAS!D727:D732))>1,1,0) -> 0 | H54: =IF(ABS(PRRAS!E213-SUM(PRRAS!E727:E732))>1,1,0) -> 0 | U54: 27597
A55: 49 | B55: O.K. | C55: Zbroj AOP-a 719 do 721 je samo dio AOP-a 205 i mora biti manji ili jednak njemu u oba stupca podataka | E55: 0 | F55: 0 | G55: =IF(SUM(PRRAS!D733:D735)>PRRAS!D216,1,0) -> 0 | H55: =IF(SUM(PRRAS!E733:E735)>PRRAS!E216,1,0) -> 0 | U55: 27716
A56: 50 | B56: O.K. | C56: AOP 206 mora biti jednak zbroju AOP-a: 722 do 728 u oba stupca podataka. Dopušteno je odstupanje od 1kn zbog zaokruživanja. | E56: 0 | F56: 0 | G56: =IF(ABS(PRRAS!D217-SUM(PRRAS!D736:D742))>1,1,0) -> 0 | H56: =IF(ABS(PRRAS!E217-SUM(PRRAS!E736:E742))>1,1,0) -> 0 | U56: 27804
A57: 51 | B57: O.K. | C57: AOP 729 je samo dio AOP-a 211 i mora biti manji ili jednak njemu u oba stupca podataka | E57: 0 | F57: 0 | G57: =IF(PRRAS!D743>PRRAS!D222,1,0) -> 0 | H57: =IF(PRRAS!E743>PRRAS!E222,1,0) -> 0 | U57: 27888
A58: 52 | B58: O.K. | C58: AOP 219 mora biti jednak zbroju AOP-a: 730+731 u oba stupca podataka. Dopušteno je odstupanje od 1kn zbog zaokruživanja. | E58: 0 | F58: 0 | G58: =IF(ABS(PRRAS!D230-PRRAS!D744-PRRAS!D745)>1,1,0) -> 0 | H58: =IF(ABS(PRRAS!E230-PRRAS!E744-PRRAS!E745)>1,1,0) -> 0 | U58: 27907
A59: 53 | B59: O.K. | C59: AOP 229 mora biti jednak zbroju AOP-a: 732 do 738 u oba stupca podataka. Dopušteno je odstupanje od 1kn zbog zaokruživanja. | E59: 0 | F59: 0 | G59: =IF(ABS(PRRAS!D240-SUM(PRRAS!D746:D752))>1,1,0) -> 0 | H59: =IF(ABS(PRRAS!E240-SUM(PRRAS!E746:E752))>1,1,0) -> 0 | U59: 27931
A60: 54 | B60: O.K. | C60: AOP 230 mora biti jednak zbroju AOP-a: 739 do 745 u oba stupca podataka. Dopušteno je odstupanje od 1kn zbog zaokruživanja. | E60: 0 | F60: 0 | G60: =IF(ABS(PRRAS!D241-SUM(PRRAS!D753:D759))>1,1,0) -> 0 | H60: =IF(ABS(PRRAS!E241-SUM(PRRAS!E753:E759))>1,1,0) -> 0 | U60: 28006
A61: 55 | B61: O.K. | C61: AOP 239 mora biti jednak zbroju AOP-a: 746 do 754 u oba stupca podataka. Dopušteno je odstupanje od 1kn zbog zaokruživanja. | E61: 0 | F61: 0 | G61: =IF(ABS(PRRAS!D250-SUM(PRRAS!D760:D768))>1,1,0) -> 0 | H61: =IF(ABS(PRRAS!E250-SUM(PRRAS!E760:E768))>1,1,0) -> 0 | U61: 28014
A62: 56 | B62: O.K. | C62: AOP 240 mora biti jednak zbroju AOP-a: 755 do 763 u oba stupca podataka. Dopušteno je odstupanje od 1kn zbog zaokruživanja. | E62: 0 | F62: 0 | G62: =IF(ABS(PRRAS!D251-SUM(PRRAS!D769:D777))>1,1,0) -> 0 | H62: =IF(ABS(PRRAS!E251-SUM(PRRAS!E769:E777))>1,1,0) -> 0 | U62: 28143
A63: 57 | B63: O.K. | C63: AOP 250 mora biti jednak zbroju AOP-a: 764 do 766 u oba stupca podataka. Dopušteno je odstupanje od 1kn zbog zaokruživanja. | E63: 0 | F63: 0 | G63: =IF(ABS(PRRAS!D261-SUM(PRRAS!D778:D780))>1,1,0) -> 0 | H63: =IF(ABS(PRRAS!E261-SUM(PRRAS!E778:E780))>1,1,0) -> 0 | U63: 28151
A64: 58 | B64: O.K. | C64: AOP 251 mora biti jednak zbroju AOP-a: 767 do 770 u oba stupca podataka. Dopušteno je odstupanje od 1kn zbog zaokruživanja. | E64: 0 | F64: 0 | G64: =IF(ABS(PRRAS!D262-SUM(PRRAS!D781:D784))>1,1,0) -> 0 | H64: =IF(ABS(PRRAS!E262-SUM(PRRAS!E781:E784))>1,1,0) -> 0 | U64: 28160
A65: 59 | B65: O.K. | C65: AOP 254 mora biti jednak zbroju AOP-a: 771 do 779 u oba stupca podataka. Dopušteno je odstupanje od 1kn zbog zaokruživanja. | E65: 0 | F65: 0 | G65: =IF(ABS(PRRAS!D265-SUM(PRRAS!D785:D793))>1,1,0) -> 0 | H65: =IF(ABS(PRRAS!E265-SUM(PRRAS!E785:E793))>1,1,0) -> 0 | U65: 28178
A66: 60 | B66: O.K. | C66: AOP 255 mora biti jednak zbroju AOP-a: 780 do 784 u oba stupca podataka. Dopušteno je odstupanje od 1kn zbog zaokruživanja. | E66: 0 | F66: 0 | G66: =IF(ABS(PRRAS!D266-SUM(PRRAS!D794:D798))>1,1,0) -> 0 | H66: =IF(ABS(PRRAS!E266-SUM(PRRAS!E794:E798))>1,1,0) -> 0 | U66: 28186
A67: 61 | B67: O.K. | C67: AOP 785 je samo dio AOP-a 259 i mora biti manji ili jednak njemu u oba stupca podataka | E67: 0 | F67: 0 | G67: =IF(PRRAS!D799>PRRAS!D270,1,0) -> 0 | H67: =IF(PRRAS!E799>PRRAS!E270,1,0) -> 0 | U67: 28194
A68: 62 | B68: O.K. | C68: AOP 273 mora biti jednak zbroju AOP-a: 786 do 789 u oba stupca podataka. Dopušteno je odstupanje od 1kn zbog zaokruživanja. | E68: 0 | F68: 0 | G68: =IF(ABS(PRRAS!D284-SUM(PRRAS!D800:D803))>1,1,0) -> 0 | H68: =IF(ABS(PRRAS!E284-SUM(PRRAS!E800:E803))>1,1,0) -> 0 | U68: 28284
A69: 63 | B69: O.K. | C69: AOP 274 mora biti jednak zbroju AOP-a: 790 do 794 u oba stupca podataka. Dopušteno je odstupanje od 1kn zbog zaokruživanja. | E69: 0 | F69: 0 | G69: =IF(ABS(PRRAS!D285-SUM(PRRAS!D804:D808))>1,1,0) -> 0 | H69: =IF(ABS(PRRAS!E285-SUM(PRRAS!E804:E808))>1,1,0) -> 0 | U69: 28330
A70: 64 | B70: O.K. | C70: AOP 275 mora biti jednak zbroju AOP-a: 795+796 u oba stupca podataka. Dopušteno je odstupanje od 1kn zbog zaokruživanja. | E70: 0 | F70: 0 | G70: =IF(ABS(PRRAS!D286-SUM(PRRAS!D809:D810))>1,1,0) -> 0 | H70: =IF(ABS(PRRAS!E286-SUM(PRRAS!E809:E810))>1,1,0) -> 0 | U70: 28348
A71: 65 | B71: O.K. | C71: AOP 276 mora biti jednak zbroju AOP-a: 797+798 u oba stupca podataka. Dopušteno je odstupanje od 1kn zbog zaokruživanja. | E71: =MAX(G71:L71) -> 0 | F71: 0 | G71: =IF(ABS(PRRAS!D287-SUM(PRRAS!D811:D812))>1,1,0) -> 0 | H71: =IF(ABS(PRRAS!E287-SUM(PRRAS!E811:E812))>1,1,0) -> 0 | U71: 28356
A72: 66 | B72: O.K. | C72: Zbroj AOP-a: 799+800 je samo dio AOP-a 418 i mora biti manji ili jednak njemu u oba stupca podataka | E72: 0 | F72: 0 | G72: =IF(PRRAS!D813+PRRAS!D814>PRRAS!D431,1,0) -> 0 | H72: =IF(PRRAS!E813+PRRAS!E814>PRRAS!E431,1,0) -> 0 | U72: 28364
A73: 67 | B73: =IF(E73=1,"Pogreška",IF(F73=1,"Provjera","O.K.")) -> O.K. | C73: Zbroj AOP-a: 801+801 je samo dio AOP-a 421 i mora biti manji ili jednak njemu u oba stupca podataka | E73: 0 | F73: 0 | G73: =IF(PRRAS!D815+PRRAS!D816>PRRAS!D434,1,0) -> 0 | H73: =IF(PRRAS!E815+PRRAS!E816>PRRAS!E434,1,0) -> 0 | U73: 28397
A74: 68 | B74: O.K. | C74: Zbroj AOP-a: 803+804 je samo dio AOP-a 422 i mora biti manji ili jednak njemu u oba stupca podataka | E74: 0 | F74: 0 | G74: =IF(PRRAS!D817+PRRAS!D818>PRRAS!D435,1,0) -> 0 | H74: =IF(PRRAS!E817+PRRAS!E818>PRRAS!E435,1,0) -> 0 | U74: 28573
A75: 69 | B75: O.K. | C75: Zbroj AOP-a: 805+806 je samo dio AOP-a 423 i mora biti manji ili jednak njemu u oba stupca podataka | E75: 0 | F75: 0 | G75: =IF(PRRAS!D819+PRRAS!D820>PRRAS!D436,1,0) -> 0 | H75: =IF(PRRAS!E819+PRRAS!E820>PRRAS!E436,1,0) -> 0 | U75: 28637
A76: 70 | B76: O.K. | C76: AOP 424 mora biti jednak zbroju AOP-a 807 do 809 u oba stupca podataka. Dopušteno je odstupanje od 1 kn zbog zaokruživanja | E76: 0 | F76: 0 | G76: =IF(ABS(PRRAS!D437-SUM(PRRAS!D821:D823))>1,1,0) -> 0 | H76: =IF(ABS(PRRAS!E437-SUM(PRRAS!E821:E823))>1,1,0) -> 0 | U76: 28670
A77: 71 | B77: O.K. | C77: Zbroj AOP-a: 810+811 je samo dio AOP-a 426 i mora biti manji ili jednak njemu u oba stupca podataka | E77: 0 | F77: 0 | G77: =IF(PRRAS!D824+PRRAS!D825>PRRAS!D439,1,0) -> 0 | H77: =IF(PRRAS!E824+PRRAS!E825>PRRAS!E439,1,0) -> 0 | U77: 28707
A78: 72 | B78: O.K. | C78: Zbroj AOP-a: 812+813 je samo dio AOP-a 427 i mora biti manji ili jednak njemu u oba stupca podataka | E78: 0 | F78: 0 | G78: =IF(PRRAS!D826+PRRAS!D827>PRRAS!D440,1,0) -> 0 | H78: =IF(PRRAS!E826+PRRAS!E827>PRRAS!E440,1,0) -> 0 | U78: 28959
A79: 73 | B79: O.K. | C79: Zbroj AOP-a: 814+815 je samo dio AOP-a 428 i mora biti manji ili jednak njemu u oba stupca podataka | E79: 0 | F79: 0 | G79: =IF(PRRAS!D828+PRRAS!D829>PRRAS!D441,1,0) -> 0 | H79: =IF(PRRAS!E828+PRRAS!E829>PRRAS!E441,1,0) -> 0 | U79: 29285
A80: 74 | B80: O.K. | C80: AOP 433 mora biti jednak zbroju AOP-a: 816 do 818 u oba stupca podataka. Dopušteno je odstupanje od 1 kn zbog zaokruživanja | E80: 0 | F80: 0 | G80: =IF(ABS(PRRAS!D446-SUM(PRRAS!D830:D832))>1,1,0) -> 0 | H80: =IF(ABS(PRRAS!E446-SUM(PRRAS!E830:E832))>1,1,0) -> 0 | U80: 29293
A81: 75 | B81: O.K. | C81: AOP 433 mora biti jednak zbroju AOP-a: 819 do 821 u oba stupca podataka. Dopušteno je odstupanje od 1 kn zbog zaokruživanja | E81: 0 | F81: 0 | G81: =IF(ABS(PRRAS!D447-SUM(PRRAS!D833:D835))>1,1,0) -> 0 | H81: =IF(ABS(PRRAS!E447-SUM(PRRAS!E833:E835))>1,1,0) -> 0 | U81: 29308
A82: 76 | B82: O.K. | C82: AOP 438 mora biti jednak zbroju AOP-a: 822+823 u oba stupca podataka. Dopušteno je odstupanje od 1 kn zbog zaokruživanja | E82: 0 | F82: 0 | G82: =IF(ABS(PRRAS!D451-SUM(PRRAS!D836:D837))>1,1,0) -> 0 | H82: =IF(ABS(PRRAS!E451-SUM(PRRAS!E836:E837))>1,1,0) -> 0 | U82: 29316
A83: 77 | B83: O.K. | C83: AOP 439 mora biti jednak zbroju AOP-a: 824 do 826 u oba stupca podataka. Dopušteno je odstupanje od 1 kn zbog zaokruživanja | E83: 0 | F83: 0 | G83: =IF(ABS(PRRAS!D452-SUM(PRRAS!D838:D840))>1,1,0) -> 0 | H83: =IF(ABS(PRRAS!E452-SUM(PRRAS!E838:E840))>1,1,0) -> 0 | U83: 29531
A84: 78 | B84: O.K. | C84: AOP 440 mora biti jednak zbroju AOP-a: 827 do 829 u oba stupca podataka. Dopušteno je odstupanje od 1 kn zbog zaokruživanja | E84: 0 | F84: 0 | G84: =IF(ABS(PRRAS!D453-SUM(PRRAS!D841:D843))>1,1,0) -> 0 | H84: =IF(ABS(PRRAS!E453-SUM(PRRAS!E841:E843))>1,1,0) -> 0 | U84: 29566
A85: 79 | B85: O.K. | C85: AOP 441 mora biti jednak zbroju AOP-a: 830 do 832 u oba stupca podataka. Dopušteno je odstupanje od 1 kn zbog zaokruživanja | E85: 0 | F85: 0 | G85: =IF(ABS(PRRAS!D454-SUM(PRRAS!D844:D846))>1,1,0) -> 0 | H85: =IF(ABS(PRRAS!E454-SUM(PRRAS!E844:E846))>1,1,0) -> 0 | U85: 29927
A86: 80 | B86: O.K. | C86: AOP 442 mora biti jednak zbroju AOP-a: 833 do 835 u oba stupca podataka. Dopušteno je odstupanje od 1 kn zbog zaokruživanja | E86: 0 | F86: 0 | G86: =IF(ABS(PRRAS!D455-SUM(PRRAS!D847:D849))>1,1,0) -> 0 | H86: =IF(ABS(PRRAS!E455-SUM(PRRAS!E847:E849))>1,1,0) -> 0 | U86: 29943
A87: 81 | B87: O.K. | C87: AOP 443 mora biti jednak zbroju AOP-a: 836 do 838 u oba stupca podataka. Dopušteno je odstupanje od 1 kn zbog zaokruživanja | E87: 0 | F87: 0 | G87: =IF(ABS(PRRAS!D456-SUM(PRRAS!D850:D852))>1,1,0) -> 0 | H87: =IF(ABS(PRRAS!E456-SUM(PRRAS!E850:E852))>1,1,0) -> 0 | U87: 30099
A88: 82 | B88: O.K. | C88: AOP 444 mora biti jednak zbroju AOP-a: 839 do 841 u oba stupca podataka. Dopušteno je odstupanje od 1 kn zbog zaokruživanja | E88: 0 | F88: 0 | G88: =IF(ABS(PRRAS!D457-SUM(PRRAS!D853:D855))>1,1,0) -> 0 | H88: =IF(ABS(PRRAS!E457-SUM(PRRAS!E853:E855))>1,1,0) -> 0 | U88: 30103
A89: 83 | B89: O.K. | C89: AOP 842 je samo dio AOP-a 460 i mora biti manji ili jednak njemu u oba stupca podataka | E89: 0 | F89: 0 | G89: =IF(PRRAS!D856>PRRAS!D473,1,0) -> 0 | H89: =IF(PRRAS!E856>PRRAS!E473,1,0) -> 0 | U89: 30111
A90: 84 | B90: O.K. | C90: AOP 843 je samo dio AOP-a 476 i mora biti manji ili jednak njemu u oba stupca podataka | E90: 0 | F90: 0 | G90: =IF(PRRAS!D857>PRRAS!D489,1,0) -> 0 | H90: =IF(PRRAS!E857>PRRAS!E489,1,0) -> 0 | U90: 30120
A91: 85 | B91: O.K. | C91: AOP 844 je samo dio AOP-a 477 i mora biti manji ili jednak njemu u oba stupca podataka | E91: 0 | F91: 0 | G91: =IF(PRRAS!D858>PRRAS!D490,1,0) -> 0 | H91: =IF(PRRAS!E858>PRRAS!E490,1,0) -> 0 | U91: 30138
A92: 86 | B92: O.K. | C92: AOP 845 je samo dio AOP-a 478 i mora biti manji ili jednak njemu u oba stupca podataka | E92: 0 | F92: 0 | G92: =IF(PRRAS!D859>PRRAS!D491,1,0) -> 0 | H92: =IF(PRRAS!E859>PRRAS!E491,1,0) -> 0 | U92: 30339
A93: 87 | B93: O.K. | C93: AOP 846 je samo dio AOP-a 479 i mora biti manji ili jednak njemu u oba stupca podataka | E93: 0 | F93: 0 | G93: =IF(PRRAS!D860>PRRAS!D492,1,0) -> 0 | H93: =IF(PRRAS!E860>PRRAS!E492,1,0) -> 0 | U93: 30371
A94: 88 | B94: O.K. | C94: Zbroj AOP-a: 847 do 849 je samo dio AOP-a 481 i mora biti manji ili jednak njemu u oba stupca podataka | E94: 0 | F94: 0 | G94: =IF(SUM(PRRAS!D861:D863)>PRRAS!D494,1,0) -> 0 | H94: =IF(SUM(PRRAS!E861:E863)>PRRAS!E494,1,0) -> 0 | U94: 30402
A95: 89 | B95: O.K. | C95: AOP 850 je samo dio AOP-a 482 i mora biti manji ili jednak njemu u oba stupca podataka | E95: 0 | F95: 0 | G95: =IF(PRRAS!D864>PRRAS!D495,1,0) -> 0 | H95: =IF(PRRAS!E864>PRRAS!E495,1,0) -> 0 | U95: 30451
A96: 90 | B96: O.K. | C96: Zbroj AOP-a: 851+852 je samo dio AOP-a 483 i mora biti manji ili jednak njemu u oba stupca podataka | E96: 0 | F96: 0 | G96: =IF(SUM(PRRAS!D865:D866)>PRRAS!D496,1,0) -> 0 | H96: =IF(SUM(PRRAS!E865:E866)>PRRAS!E496,1,0) -> 0 | U96: 30525
A97: 91 | B97: O.K. | C97: AOP 853 je samo dio AOP-a 484 i mora biti manji ili jednak njemu u oba stupca podataka | E97: 0 | F97: 0 | G97: =IF(PRRAS!D867>PRRAS!D497,1,0) -> 0 | H97: =IF(PRRAS!E867>PRRAS!E497,1,0) -> 0 | U97: 30630
A98: 92 | B98: O.K. | C98: Zbroj AOP-a: 854 do 856 je samo dio AOP-a 486 i mora biti manji ili jednak njemu u oba stupca podataka | E98: =MAX(G98:L98) -> 0 | F98: 0 | G98: =IF(SUM(PRRAS!D868:D870)>PRRAS!D499,1,0) -> 0 | H98: =IF(SUM(PRRAS!E868:E870)>PRRAS!E499,1,0) -> 0 | U98: 30832
A99: 93 | B99: O.K. | C99: AOP 857 je samo dio AOP-a 487 i mora biti manji ili jednak njemu u oba stupca podataka | E99: 0 | F99: 0 | G99: =IF(PRRAS!D871>PRRAS!D500,1,0) -> 0 | H99: =IF(PRRAS!E871>PRRAS!E500,1,0) -> 0 | U99: 30849
A100: 94 | B100: O.K. | C100: Zbroj AOP-a: 858+859 je samo dio AOP-a 488 i mora biti manji ili jednak njemu u oba stupca podataka | E100: 0 | F100: 0 | G100: =IF(SUM(PRRAS!D872:D873)>PRRAS!D501,1,0) -> 0 | H100: =IF(SUM(PRRAS!E872:E873)>PRRAS!E501,1,0) -> 0 | U100: 30865
A101: 95 | B101: O.K. | C101: Zbroj AOP-a: 860 do 862 je samo dio AOP-a 489 i mora biti manji ili jednak njemu u oba stupca podataka | E101: 0 | F101: 0 | G101: =IF(SUM(PRRAS!D874:D876)>PRRAS!D502,1,0) -> 0 | H101: =IF(SUM(PRRAS!E874:E876)>PRRAS!E502,1,0) -> 0 | U101: 30912
A102: 96 | B102: O.K. | C102: AOP 863 je samo dio AOP-a 490 i mora biti manji ili jednak njemu u oba stupca podataka | E102: 0 | F102: 0 | G102: =IF(PRRAS!D877>PRRAS!D503,1,0) -> 0 | H102: =IF(PRRAS!E877>PRRAS!E503,1,0) -> 0 | U102: 30929
A103: 97 | B103: O.K. | C103: Zbroj AOP-a: 864+865 je samo dio AOP-a 491 i mora biti manji ili jednak njemu u oba stupca podataka | E103: 0 | F103: 0 | G103: =IF(SUM(PRRAS!D878:D879)>PRRAS!D504,1,0) -> 0 | H103: =IF(SUM(PRRAS!E878:E879)>PRRAS!E504,1,0) -> 0 | U103: 30953
A104: 98 | B104: O.K. | C104: AOP 866 je samo dio AOP-a 493 i mora biti manji ili jednak njemu u oba stupca podataka | E104: 0 | F104: 0 | G104: =IF(PRRAS!D880>PRRAS!D506,1,0) -> 0 | H104: =IF(PRRAS!E880>PRRAS!E506,1,0) -> 0 | U104: 31042
A105: 99 | B105: O.K. | C105: AOP 867 je samo dio AOP-a 494 i mora biti manji ili jednak njemu u oba stupca podataka | E105: 0 | F105: 0 | G105: =IF(PRRAS!D881>PRRAS!D507,1,0) -> 0 | H105: =IF(PRRAS!E881>PRRAS!E507,1,0) -> 0 | U105: 31147
A106: 100 | B106: O.K. | C106: AOP 868 je samo dio AOP-a 495 i mora biti manji ili jednak njemu u oba stupca podataka | E106: 0 | F106: 0 | G106: =IF(PRRAS!D882>PRRAS!D508,1,0) -> 0 | H106: =IF(PRRAS!E882>PRRAS!E508,1,0) -> 0 | U106: 31202
A107: 101 | B107: O.K. | C107: AOP 498 mora biti jednak zbroju AOP-a: 869+870 u oba stupca podataka. Dopušteno je odstupanje od 1kn zbog zaokruživanja. | E107: 0 | F107: 0 | G107: =IF(ABS(PRRAS!D511-PRRAS!D883-PRRAS!D884)>1,1,0) -> 0 | H107: =IF(ABS(PRRAS!E511-PRRAS!E883-PRRAS!E884)>1,1,0) -> 0 | U107: 31278
A108: 102 | B108: O.K. | C108: AOP 499 mora biti jednak zbroju AOP-a: 871+872 u oba stupca podataka. Dopušteno je odstupanje od 1kn zbog zaokruživanja. | E108: 0 | F108: 0 | G108: =IF(ABS(PRRAS!D512-PRRAS!D885-PRRAS!D886)>1,1,0) -> 0 | H108: =IF(ABS(PRRAS!E512-PRRAS!E885-PRRAS!E886)>1,1,0) -> 0 | U108: 31286
A109: 103 | B109: O.K. | C109: AOP 500 mora biti jednak zbroju AOP-a: 873+874 u oba stupca podataka. Dopušteno je odstupanje od 1kn zbog zaokruživanja. | E109: 0 | F109: 0 | G109: =IF(ABS(PRRAS!D513-PRRAS!D887-PRRAS!D888)>1,1,0) -> 0 | H109: =IF(ABS(PRRAS!E513-PRRAS!E887-PRRAS!E888)>1,1,0) -> 0 | U109: 31317
A110: 104 | B110: O.K. | C110: AOP 501 mora biti jednak zbroju AOP-a: 875+876 u oba stupca podataka. Dopušteno je odstupanje od 1kn zbog zaokruživanja. | E110: 0 | F110: 0 | G110: =IF(ABS(PRRAS!D514-PRRAS!D889-PRRAS!D890)>1,1,0) -> 0 | H110: =IF(ABS(PRRAS!E514-PRRAS!E889-PRRAS!E890)>1,1,0) -> 0 | U110: 31413
A111: 105 | B111: O.K. | C111: AOP 502 mora biti jednak zbroju AOP-a: 877+878 u oba stupca podataka. Dopušteno je odstupanje od 1kn zbog zaokruživanja. | E111: 0 | F111: 0 | G111: =IF(ABS(PRRAS!D515-PRRAS!D891-PRRAS!D892)>1,1,0) -> 0 | H111: =IF(ABS(PRRAS!E515-PRRAS!E891-PRRAS!E892)>1,1,0) -> 0 | U111: 31421
A112: 106 | B112: O.K. | C112: AOP 503 mora biti jednak zbroju AOP-a: 879+880 u oba stupca podataka. Dopušteno je odstupanje od 1kn zbog zaokruživanja. | E112: 0 | F112: 0 | G112: =IF(ABS(PRRAS!D516-PRRAS!D893-PRRAS!D894)>1,1,0) -> 0 | H112: =IF(ABS(PRRAS!E516-PRRAS!E893-PRRAS!E894)>1,1,0) -> 0 | U112: 31430
A113: 107 | B113: O.K. | C113: AOP 504 mora biti jednak zbroju AOP-a: 881+882 u oba stupca podataka. Dopušteno je odstupanje od 1kn zbog zaokruživanja. | E113: 0 | F113: 0 | G113: =IF(ABS(PRRAS!D517-PRRAS!D895-PRRAS!D896)>1,1,0) -> 0 | H113: =IF(ABS(PRRAS!E517-PRRAS!E895-PRRAS!E896)>1,1,0) -> 0 | U113: 31448
A114: 108 | B114: O.K. | C114: AOP 883 je samo dio AOP-a 516 i mora biti manji ili jednak njemu u oba stupca podataka | E114: 0 | F114: 0 | G114: =IF(PRRAS!D897>PRRAS!D529,1,0) -> 0 | H114: =IF(PRRAS!E897>PRRAS!E529,1,0) -> 0 | U114: 31456
A115: 109 | B115: O.K. | C115: Zbroj AOP-a: 884+885 je samo dio AOP-a 526 i mora biti manji ili jednak njemu u oba stupca podataka | E115: 0 | F115: 0 | G115: =IF(PRRAS!D898+PRRAS!D899>PRRAS!D539,1,0) -> 0 | H115: =IF(PRRAS!E898+PRRAS!E899>PRRAS!E539,1,0) -> 0 | U115: 31497
A116: 110 | B116: O.K. | C116: Zbroj AOP-a: 886+887 je samo dio AOP-a 529 i mora biti manji ili jednak njemu u oba stupca podataka | E116: 0 | F116: 0 | G116: =IF(PRRAS!D900+PRRAS!D901>PRRAS!D542,1,0) -> 0 | H116: =IF(PRRAS!E900+PRRAS!E901>PRRAS!E542,1,0) -> 0 | U116: 31536
A117: 111 | B117: O.K. | C117: Zbroj AOP-a: 888+889 je samo dio AOP-a 530 i mora biti manji ili jednak njemu u oba stupca podataka | E117: 0 | F117: 0 | G117: =IF(PRRAS!D902+PRRAS!D903>PRRAS!D543,1,0) -> 0 | H117: =IF(PRRAS!E902+PRRAS!E903>PRRAS!E543,1,0) -> 0 | U117: 31729
A118: 112 | B118: O.K. | C118: Zbroj AOP-a: 890+891 je samo dio AOP-a 531 i mora biti manji ili jednak njemu u oba stupca podataka | E118: 0 | F118: 0 | G118: =IF(PRRAS!D904+PRRAS!D905>PRRAS!D544,1,0) -> 0 | H118: =IF(PRRAS!E904+PRRAS!E905>PRRAS!E544,1,0) -> 0 | U118: 31737
A119: 113 | B119: O.K. | C119: AOP 532 mora biti jednak zbroju AOP-a: 892 do 894 u oba stupca podataka. Dopušteno je odstupanje od 1kn zbog zaokruživanja. | E119: 0 | F119: 0 | G119: =IF(ABS(PRRAS!D545-SUM(PRRAS!D906:D908))>1,1,0) -> 0 | H119: =IF(ABS(PRRAS!E545-SUM(PRRAS!E906:E908))>1,1,0) -> 0 | U119: 31753
A120: 114 | B120: O.K. | C120: Zbroj AOP-a: 895+896 je samo dio AOP-a 534 i mora biti manji ili jednak njemu u oba stupca podataka | E120: 0 | F120: 0 | G120: =IF(SUM(PRRAS!D909:D910)>PRRAS!D547,1,0) -> 0 | H120: =IF(SUM(PRRAS!E909:E910)>PRRAS!E547,1,0) -> 0 | U120: 31761
A121: 115 | B121: O.K. | C121: Zbroj AOP-a: 897+898 je samo dio AOP-a 535 i mora biti manji ili jednak njemu u oba stupca podataka | E121: 0 | F121: 0 | G121: =IF(SUM(PRRAS!D911:D912)>PRRAS!D548,1,0) -> 0 | H121: =IF(SUM(PRRAS!E911:E912)>PRRAS!E548,1,0) -> 0 | U121: 31770
A122: 116 | B122: O.K. | C122: Zbroj AOP-a: 899+900 je samo dio AOP-a 536 i mora biti manji ili jednak njemu u oba stupca podataka | E122: 0 | F122: 0 | G122: =IF(SUM(PRRAS!D913:D914)>PRRAS!D549,1,0) -> 0 | H122: =IF(SUM(PRRAS!E913:E914)>PRRAS!E549,1,0) -> 0 | U122: 31788
A123: 117 | B123: O.K. | C123: AOP 541 mora biti jednak zbroju AOP-a: 900 do 903 u oba stupca podataka. Dopušteno je odstupanje od 1kn zbog zaokruživanja. | E123: 0 | F123: 0 | G123: =IF(ABS(PRRAS!D554-SUM(PRRAS!D915:D917))>1,1,0) -> 0 | H123: =IF(ABS(PRRAS!E554-SUM(PRRAS!E915:E917))>1,1,0) -> 0 | U123: 31796
A124: 118 | B124: O.K. | C124: AOP 542 mora biti jednak zbroju AOP-a: 904 do 906 u oba stupca podataka. Dopušteno je odstupanje od 1kn zbog zaokruživanja. | E124: 0 | F124: 0 | G124: =IF(ABS(PRRAS!D555-SUM(PRRAS!D918:D920))>1,1,0) -> 0 | H124: =IF(ABS(PRRAS!E555-SUM(PRRAS!E918:E920))>1,1,0) -> 0 | U124: 31920
A125: 119 | B125: O.K. | C125: AOP 546 mora biti jednak zbroju AOP-a: 907+908 u oba stupca podataka. Dopušteno je odstupanje od 1kn zbog zaokruživanja. | E125: 0 | F125: 0 | G125: =IF(ABS(PRRAS!D559-SUM(PRRAS!D921:D922))>1,1,0) -> 0 | H125: =IF(ABS(PRRAS!E559-SUM(PRRAS!E921:E922))>1,1,0) -> 0 | U125: 31995
A126: 120 | B126: O.K. | C126: AOP 547 mora biti jednak zbroju AOP-a: 909 do 911 u oba stupca podataka. Dopušteno je odstupanje od 1kn zbog zaokruživanja. | E126: 0 | F126: 0 | G126: =IF(ABS(PRRAS!D560-SUM(PRRAS!D923:D925))>1,1,0) -> 0 | H126: =IF(ABS(PRRAS!E560-SUM(PRRAS!E923:E925))>1,1,0) -> 0 | U126: 32002
A127: 121 | B127: O.K. | C127: AOP 548 mora biti jednak zbroju AOP-a: 912 do 914 u oba stupca podataka. Dopušteno je odstupanje od 1kn zbog zaokruživanja. | E127: 0 | F127: 0 | G127: =IF(ABS(PRRAS!D561-SUM(PRRAS!D926:D928))>1,1,0) -> 0 | H127: =IF(ABS(PRRAS!E561-SUM(PRRAS!E926:E928))>1,1,0) -> 0 | U127: 32133
A128: 122 | B128: O.K. | C128: AOP 549 mora biti jednak zbroju AOP-a: 915 do 917 u oba stupca podataka. Dopušteno je odstupanje od 1kn zbog zaokruživanja. | E128: 0 | F128: 0 | G128: =IF(ABS(PRRAS!D562-SUM(PRRAS!D929:D931))>1,1,0) -> 0 | H128: =IF(ABS(PRRAS!E562-SUM(PRRAS!E929:E931))>1,1,0) -> 0 | U128: 32168
A129: 123 | B129: O.K. | C129: AOP 550 mora biti jednak zbroju AOP-a: 918 do 920 u oba stupca podataka. Dopušteno je odstupanje od 1kn zbog zaokruživanja. | E129: 0 | F129: 0 | G129: =IF(ABS(PRRAS!D563-SUM(PRRAS!D932:D934))>1,1,0) -> 0 | H129: =IF(ABS(PRRAS!E563-SUM(PRRAS!E932:E934))>1,1,0) -> 0 | U129: 32176
A130: 124 | B130: O.K. | C130: AOP 551 mora biti jednak zbroju AOP-a: 921 do 923 u oba stupca podataka. Dopušteno je odstupanje od 1kn zbog zaokruživanja. | E130: 0 | F130: 0 | G130: =IF(ABS(PRRAS!D564-SUM(PRRAS!D935:D937))>1,1,0) -> 0 | H130: =IF(ABS(PRRAS!E564-SUM(PRRAS!E935:E937))>1,1,0) -> 0 | U130: 32184
A131: 125 | B131: O.K. | C131: AOP 552 mora biti jednak zbroju AOP-a: 924 do 926 u oba stupca podataka. Dopušteno je odstupanje od 1kn zbog zaokruživanja. | E131: 0 | F131: 0 | G131: =IF(ABS(PRRAS!D565-SUM(PRRAS!D938:D940))>1,1,0) -> 0 | H131: =IF(ABS(PRRAS!E565-SUM(PRRAS!E938:E940))>1,1,0) -> 0 | U131: 32221
A132: 126 | B132: O.K. | C132: AOP 927 je samo dio AOP-a 585 i mora biti manji ili jednak njemu u oba stupca podataka | E132: 0 | F132: 0 | G132: =IF(PRRAS!D941>PRRAS!D598,1,0) -> 0 | H132: =IF(PRRAS!E941>PRRAS!E598,1,0) -> 0 | U132: 32272
A133: 127 | B133: O.K. | C133: AOP 928 je samo dio AOP-a 586 i mora biti manji ili jednak njemu u oba stupca podataka | E133: 0 | F133: 0 | G133: =IF(PRRAS!D942>PRRAS!D599,1,0) -> 0 | H133: =IF(PRRAS!E942>PRRAS!E599,1,0) -> 0 | U133: 32490
A134: 128 | B134: O.K. | C134: AOP 929 je samo dio AOP-a 587 i mora biti manji ili jednak njemu u oba stupca podataka | E134: 0 | F134: 0 | G134: =IF(PRRAS!D943>PRRAS!D600,1,0) -> 0 | H134: =IF(PRRAS!E943>PRRAS!E600,1,0) -> 0 | U134: 32504
A135: 129 | B135: O.K. | C135: AOP 930 je samo dio AOP-a 588 i mora biti manji ili jednak njemu u oba stupca podataka | E135: 0 | F135: 0 | G135: =IF(PRRAS!D944>PRRAS!D601,1,0) -> 0 | H135: =IF(PRRAS!E944>PRRAS!E601,1,0) -> 0 | U135: 32529
A136: 130 | B136: O.K. | C136: Zbroj AOP-a: 931 do 933 je samo dio AOP-a 590 i mora biti manji ili jednak njemu u oba stupca podataka | E136: 0 | F136: 0 | G136: =IF(SUM(PRRAS!D945:D947)>PRRAS!D603,1,0) -> 0 | H136: =IF(SUM(PRRAS!E945:E947)>PRRAS!E603,1,0) -> 0 | U136: 32553
A137: 131 | B137: =IF(E137=1,"Pogreška",IF(F137=1,"Provjera","O.K.")) -> O.K. | C137: AOP 934 je samo dio AOP-a 591 i mora biti manji ili jednak njemu u oba stupca podataka | E137: 0 | F137: 0 | G137: =IF(PRRAS!D948>PRRAS!D604,1,0) -> 0 | H137: =IF(PRRAS!E948>PRRAS!E604,1,0) -> 0 | U137: 32615
A138: 132 | B138: O.K. | C138: Zbroj AOP-a: 935+936 je samo dio AOP-a 592 i mora biti manji ili jednak njemu u oba stupca podataka | E138: 0 | F138: 0 | G138: =IF(PRRAS!D949+PRRAS!D950>PRRAS!D605,1,0) -> 0 | H138: =IF(PRRAS!E949+PRRAS!E950>PRRAS!E605,1,0) -> 0 | U138: 32867
A139: 133 | B139: O.K. | C139: AOP 937 je samo dio AOP-a 593 i mora biti manji ili jednak njemu u oba stupca podataka | E139: 0 | F139: 0 | G139: =IF(PRRAS!D951>PRRAS!D606,1,0) -> 0 | H139: =IF(PRRAS!E951>PRRAS!E606,1,0) -> 0 | U139: 32875
A140: 134 | B140: O.K. | C140: Zbroj AOP-a: 938 do 940 je samo dio AOP-a 596 i mora biti manji ili jednak njemu u oba stupca podataka | E140: 0 | F140: 0 | G140: =IF(SUM(PRRAS!D952:D954)>PRRAS!D609,1,0) -> 0 | H140: =IF(SUM(PRRAS!E952:E954)>PRRAS!E609,1,0) -> 0 | U140: 32980
A141: 135 | B141: O.K. | C141: AOP 941 je samo dio AOP-a 597 i mora biti manji ili jednak njemu u oba stupca podataka | E141: 0 | F141: 0 | G141: =IF(PRRAS!D955>PRRAS!D610,1,0) -> 0 | H141: =IF(PRRAS!E955>PRRAS!E610,1,0) -> 0 | U141: 32998
A142: 136 | B142: O.K. | C142: Zbroj AOP-a: 942+943 je samo dio AOP-a 598 i mora biti manji ili jednak njemu u oba stupca podataka | E142: 0 | F142: 0 | G142: =IF(SUM(PRRAS!D956:D957)>PRRAS!D611,1,0) -> 0 | H142: =IF(SUM(PRRAS!E956:E957)>PRRAS!E611,1,0) -> 0 | U142: 33005
A143: 137 | B143: O.K. | C143: Zbroj AOP-a: 944 do 946 je samo dio AOP-a 599 i mora biti manji ili jednak njemu u oba stupca podataka | E143: 0 | F143: 0 | G143: =IF(SUM(PRRAS!D958:D960)>PRRAS!D612,1,0) -> 0 | H143: =IF(SUM(PRRAS!E958:E960)>PRRAS!E612,1,0) -> 0 | U143: 33013
A144: 138 | B144: O.K. | C144: AOP 947 je samo dio AOP-a 600 i mora biti manji ili jednak njemu u oba stupca podataka | E144: 0 | F144: 0 | G144: =IF(PRRAS!D961>PRRAS!D613,1,0) -> 0 | H144: =IF(PRRAS!E961>PRRAS!E613,1,0) -> 0 | U144: 33021
A145: 139 | B145: O.K. | C145: Zbroj AOP-a: 948+949 je samo dio AOP-a 601 i mora biti manji ili jednak njemu u oba stupca podataka | E145: 0 | F145: 0 | G145: =IF(SUM(PRRAS!D962:D963)>PRRAS!D614,1,0) -> 0 | H145: =IF(SUM(PRRAS!E962:E963)>PRRAS!E614,1,0) -> 0 | U145: 33030
A146: 140 | B146: O.K. | C146: AOP 950 je samo dio AOP-a 603 i mora biti manji ili jednak njemu u oba stupca podataka | E146: 0 | F146: 0 | G146: =IF(PRRAS!D964>PRRAS!D616,1,0) -> 0 | H146: =IF(PRRAS!E964>PRRAS!E616,1,0) -> 0 | U146: 33048
A147: 141 | B147: O.K. | C147: AOP 951 je samo dio AOP-a 604 i mora biti manji ili jednak njemu u oba stupca podataka | E147: 0 | F147: 0 | G147: =IF(PRRAS!D965>PRRAS!D617,1,0) -> 0 | H147: =IF(PRRAS!E965>PRRAS!E617,1,0) -> 0 | U147: 33097
A148: 142 | B148: O.K. | C148: AOP 952 je samo dio AOP-a 605 i mora biti manji ili jednak njemu u oba stupca podataka | E148: 0 | F148: 0 | G148: =IF(PRRAS!D966>PRRAS!D618,1,0) -> 0 | H148: =IF(PRRAS!E966>PRRAS!E618,1,0) -> 0 | U148: 33101
A149: 143 | B149: O.K. | C149: AOP 608 mora biti jednak zbroju AOP-a: 953+954 u oba stupca podataka. Dopušteno je odstupanje od 1kn zbog zaokruživanja. | E149: 0 | F149: 0 | G149: =IF(ABS(PRRAS!D621-SUM(PRRAS!D967:D968))>1,1,0) -> 0 | H149: =IF(ABS(PRRAS!E621-SUM(PRRAS!E967:E968))>1,1,0) -> 0 | U149: 33169
A150: =1+A149 -> 144 | B150: O.K. | C150: AOP 609 mora biti jednak zbroju AOP-a: 955+956 u oba stupca podataka. Dopušteno je odstupanje od 1kn zbog zaokruživanja. | E150: 0 | F150: 0 | G150: =IF(ABS(PRRAS!D622-SUM(PRRAS!D969:D970))>1,1,0) -> 0 | H150: =IF(ABS(PRRAS!E622-SUM(PRRAS!E969:E970))>1,1,0) -> 0 | U150: 33193
A151: 145 | B151: O.K. | C151: AOP 610 mora biti jednak zbroju AOP-a: 957+958 u oba stupca podataka. Dopušteno je odstupanje od 1kn zbog zaokruživanja. | E151: 0 | F151: 0 | G151: =IF(ABS(PRRAS!D623-SUM(PRRAS!D971:D972))>1,1,0) -> 0 | H151: =IF(ABS(PRRAS!E623-SUM(PRRAS!E971:E972))>1,1,0) -> 0 | U151: 33312
A152: 146 | B152: O.K. | C152: AOP 611 mora biti jednak zbroju AOP-a: 959+960 u oba stupca podataka. Dopušteno je odstupanje od 1kn zbog zaokruživanja. | E152: 0 | F152: 0 | G152: =IF(ABS(PRRAS!D624-SUM(PRRAS!D973:D974))>1,1,0) -> 0 | H152: =IF(ABS(PRRAS!E624-SUM(PRRAS!E973:E974))>1,1,0) -> 0 | U152: 33329
A153: 147 | B153: O.K. | C153: AOP 612 mora biti jednak zbroju AOP-a: 961+962 u oba stupca podataka. Dopušteno je odstupanje od 1kn zbog zaokruživanja. | E153: 0 | F153: 0 | G153: =IF(ABS(PRRAS!D625-SUM(PRRAS!D975:D976))>1,1,0) -> 0 | H153: =IF(ABS(PRRAS!E625-SUM(PRRAS!E975:E976))>1,1,0) -> 0 | U153: 33337
A154: 148 | B154: O.K. | C154: AOP 613 mora biti jednak zbroju AOP-a: 963+964 u oba stupca podataka. Dopušteno je odstupanje od 1kn zbog zaokruživanja. | E154: 0 | F154: 0 | G154: =IF(ABS(PRRAS!D626-SUM(PRRAS!D977:D978))>1,1,0) -> 0 | H154: =IF(ABS(PRRAS!E626-SUM(PRRAS!E977:E978))>1,1,0) -> 0 | U154: 33361
A155: 149 | B155: O.K. | C155: AOP 614 mora biti jednak zbroju AOP-a: 965+966 u oba stupca podataka. Dopušteno je odstupanje od 1kn zbog zaokruživanja. | E155: 0 | F155: 0 | G155: =IF(ABS(PRRAS!D627-SUM(PRRAS!D979:D980))>1,1,0) -> 0 | H155: =IF(ABS(PRRAS!E627-SUM(PRRAS!E979:E980))>1,1,0) -> 0 | U155: 33370
A156: 150 | B156: O.K. | C156: AOP 967 je samo dio AOP-a 623 i mora biti manji ili jednak njemu u oba stupca podataka | E156: 0 | F156: 0 | G156: =IF(PRRAS!D981>PRRAS!D636,1,0) -> 0 | H156: =IF(PRRAS!E981>PRRAS!E636,1,0) -> 0 | U156: 33407
A157: =1+A156 -> 151 | B157: O.K. | C157: Samo na AOP oznakama 003 i 012 u iznimnim slučajevima iznosi mogu biti negativni, iznosi svih ostalih AOP-a moraju biti pozitivni. Ako je iznos ijednog drugog AOP-a negativan ova kontrola javlja pogrešku. | E157: 0 | F157: 0 | G157: =IF(MIN(Skriveni!C2:D3,Skriveni!C5:D12,Skriveni!C14:D976)<0,1,0) -> 0 | U157: 33458
A158: 152 | B158: O.K. | C158: Vrijednosti svih AOP oznaka moraju biti zaokružene, cjelobrojne vrijednosti, ako je vrijednost neke AOP oznake upisana s decimalama kontrola javlja pogrešku i takav obrazac je neispravan. | E158: 0 | F158: 0 | G158: =IF(H158=0,0,1) -> 0 | H158: =SUM(Skriveni!H2:H976) -> 0 | T158: =IF(LOOKUP(O3,T159:T186,T159:T186)=O3,1,0) -> 0 | U158: 33499
A159: 153 | B159: O.K. | C159: Obveznici razine 11 ne mogu imati popunjene AOP oznake: 003 do 010. Iznimka od tog pravila je obveznik s RKP-om 47123. Ako ova kontrola javlja pogrešku znači da je za obrazac razine 11 unesen iznos na neku od ovih pozicija. | E159: 0 | F159: 0 | G159: =IF(AND(I3=11,O3<>47123,OR(MAX(PRRAS!D14:E21)>0,MIN(PRRAS!D14:E21)<0)),1,0) -> 0 | T159: 0 | U159: 33520
A160: 154 | B160: O.K. | C160: Obveznici razine 11 ne mogu imati popunjene AOP oznake: 024 i 031. Iznimka od ovog pravila su neki obveznici koji iznimno mogu. Ako ova kontrola javlja pogrešku, znači da su ove pozicije popunjene ali se ne radi o obvezniku koji ih može imati popunjene. | E160: =MAX(G160:L160) -> 0 | F160: 0 | G160: =IF(AND(I3=11,MAX(PRRAS!D35:E35,PRRAS!D42:E42)>0,T158=0),1,0) -> 0 | T160: 51 | U160: 33538
A161: 155 | B161: O.K. | C161: Obveznici razine 11 ne mogu imati popunjene AOP oznake: 011 do 023, 025 do 030, 032 do 034, 040 do 044, 138, 200, 234 do 237 i 248. Ako je na bilo kojoj od ovih AOP oznaka upisan iznos, a obrazac je razine 11, kontrola javlja grešku i obrazac je neispravan. | E161: =MAX(G161:L161) -> 0 | F161: 0 | G161: =IF(AND(I3=11,MAX(PRRAS!D22:E34,PRRAS!D36:E41,PRRAS!D43:E45,PRRAS!D51:E55,PRRAS!D149:E149,PRRAS!D211:E211,PRRAS!D245:E248,PRRAS!D259:E259)>0),1,0) -> 0 | T161: 721 | U161: 33579
A162: 156 | B162: O.K. | C162: Obveznici razine 11 ne mogu imati popunjenu AOP oznaku 249 osim obveznika s RKP-om: 47107. Ako ova kontrola javlja pogrešku znači da je za obrazac razine 11 unesen iznos na AOP poziciju 249. | E162: =MAX(G162:L162) -> 0 | F162: 0 | G162: =IF(AND(I3=11,O3<>47107,MAX(PRRAS!D260:E260)>0),1,0) -> 0 | H162: =IF(AND(I5=11,O5<>47107,MIN(PRRAS!D260:E260)<0),1,0) -> 0 | T162: 756 | U162: 33600
A163: 157 | B163: O.K. | C163: Razina 11 ne smije imati popunjene AOP oznake: 414 do 416, 429 do 431, 435, 436, 451, 452, 455 do 458, 461, 470, 473, 475 do 479, 490 i 491. Ako je na bilo kojoj od ovih AOP oznaka upisan iznos, a obrazac je razine 11, kontrola javlja grešku i obrazac je neispravan. | E163: 0 | F163: 0 | G163: =IF(AND(I3=11,MAX(PRRAS!D427:E429,PRRAS!D442:E444,PRRAS!D448:E449,PRRAS!D464:E465,PRRAS!D468:E471,PRRAS!D474:E474,PRRAS!D483:E483,PRRAS!D486:E486,PRRAS!D488:E492,PRRAS!D503:E504)>0),1,0) -> 0 | H163: =IF(AND(I5=11,MIN(PRRAS!D427:E429,PRRAS!D442:E444,PRRAS!D448:E449,PRRAS!D464:E465,PRRAS!D468:E471,PRRAS!D474:E474,PRRAS!D483:E483,PRRAS!D486:E486,PRRAS!D488:E492,PRRAS!D503:E504)<0),1,0) -> 0 | T163: 1222 | U163: 33618
A164: 158 | B164: O.K. | C164: Obveznici razine 11 ne mogu imati popunjenu AOP oznaku 495 i 605 osim obveznika s RKP-om 721. Ako je na bilo kojoj od ovih AOP oznaka upisan iznos, a obrazac je razine 11, kontrola javlja grešku i obrazac je neispravan. | E164: =MAX(G164:L164) -> 0 | F164: 0 | G164: =IF(AND(I3=11,O3<>721,OR(MAX(PRRAS!D508:E508,PRRAS!D618:E618)>0,MIN(PRRAS!D508:E508,PRRAS!D618:E618)<0)),1,0) -> 0 | T164: 3130 | U164: 33860
A165: 159 | B165: O.K. | C165: Razina 11 ne smije imati popunjene AOP oznake: 496, 508, 511, 517, 520 do 524, 537 do 539, 543, 544, 560, 563, 568 I 569. Ako je na bilo kojoj od ovih AOP oznaka upisan iznos, a obrazac je razine 11, kontrola javlja grešku i obrazac je neispravan. | E165: 0 | F165: 0 | G165: =IF(AND(I3=11,O3<>721,MAX(PRRAS!D509:E509,PRRAS!D521:E521,PRRAS!D524:E524,PRRAS!D530:E530,PRRAS!D533:E537,PRRAS!D550:E552,PRRAS!D556:E557,PRRAS!D573:E573,PRRAS!D576:E576,PRRAS!D581:E582)>0),1,0) -> 0 | T165: 3156 | U165: 33878
A166: 160 | B166: O.K. | C166: Obveznici razine 11 ne mogu imati popunjenu AOP oznaku 579 osim obveznika s RKP-om: 46237. Ako ova kontrola javlja pogrešku znači da je za obrazac razine 11 unesen iznos na AOP poziciju 579. | E166: 0 | F166: 0 | G166: =IF(AND(I3=11,O3<>46237,OR(MAX(PRRAS!D592:E592)>0,MIN(PRRAS!D592:E592)<0)),1,0) -> 0 | T166: 3164 | U166: 33886
A167: 161 | B167: O.K. | C167: Obveznici razine 11 ne mogu imati popunjenu AOP oznaku 584 i 585 osim obveznika s RKP-om: 174. Ako ova kontrola javlja pogrešku znači da je za obrazac razine 11 unesen iznos na jednu od ovih AOP pozicija. | E167: 0 | F167: 0 | G167: =IF(AND(I3=11,O3<>174,OR(MAX(PRRAS!D597:E598)>0,MIN(PRRAS!D597:E598)<0)),1,0) -> 0 | T167: 3197 | U167: 33894
A168: 162 | B168: O.K. | C168: Razina 11 ne smije imati popunjene AOP oznake: 582, 586 do 588, 600, 601, 606, 616, 618, 621, 624, 685, 676, 699, 703, 705. Ako je na bilo kojoj od ovih AOP oznaka upisan iznos, a obrazac je razine 11, kontrola javlja grešku i obrazac je neispravan. | E168: 0 | F168: 0 | G168: =IF(AND(I3=11,MAX(PRRAS!D595:E595,PRRAS!D599:E601,PRRAS!D613:E614,PRRAS!D619:E619,PRRAS!D629:E631,PRRAS!D634:E634,PRRAS!D637:E637,PRRAS!D690:E690,PRRAS!D699:E699,PRRAS!D713:E713,PRRAS!D717:E717,PRRAS!D719:E719)>0),1,0) -> 0 | T168: 3210 | U168: 33925
A169: 163 | B169: O.K. | C169: Obveznici razine 12 ne mogu imati popunjene AOP oznake: 003 do 010. Iznimka od tog pravila je obveznik s RKP-om 47123. Ako ova kontrola javlja pogrešku znači da je za obrazac razine 11 unesen iznos na neku od ovih pozicija. | E169: 0 | F169: 0 | G169: =IF(AND(OR(I3=12,AND(I3=11,Q3="DA")),O3<>47123,OR(MAX(PRRAS!D14:E21)>0,MIN(PRRAS!D14:E21)<0)),1,0) -> 0 | T169: 3228 | U169: 34282
A170: =1+A169 -> 164 | B170: =IF(E170=1,"Pogreška",IF(F170=1,"Provjera","O.K.")) -> O.K. | C170: Obveznici razine 12 ne mogu imati popunjene AOP oznake: 024 i 031. Iznimka od ovog pravila su neki obveznici koji iznimno mogu. Ako ova kontrola javlja pogrešku, znači da su ove pozicije popunjene ali se ne radi o obvezniku koji ih može imati popunjene. | E170: =MAX(G170:L170) -> 0 | F170: 0 | G170: =IF(AND(OR(I3=12,AND(I3=11,Q3="DA")),MAX(PRRAS!D35:E35,PRRAS!D42:E42)>0,T158=0),1,0) -> 0 | T170: 3236 | U170: 34387
A171: =1+A170 -> 165 | B171: =IF(E171=1,"Pogreška",IF(F171=1,"Provjera","O.K.")) -> O.K. | C171: Razina 12 ne smije imati popunjene AOP oznake: 011 do 023, 025 do 030, 032 do 034, 138, 234 do 237. Ako je na bilo kojoj od ovih AOP oznaka upisan iznos, a obrazac je razine 12, kontrola javlja grešku i obrazac je neispravan. | E171: 0 | F171: 0 | G171: =IF(AND(OR(I3=12,AND(I3=11,Q3="DA")),MAX(PRRAS!D22:E34,PRRAS!D36:E41,PRRAS!D43:E45,PRRAS!D149:E149,PRRAS!D245:E248)>0),1,0) -> 0 | T171: 3285 | U171: 34418
A172: 166 | B172: O.K. | C172: Razina 12 ne smije imati popunjene AOP oznake: 414 do 416, 429 do 431, 435 do 436, 450 do 452, 455 do 458, 461, 477 do 479, 508, 511, 517, 520 do 524, 537 do 539, 543, 544. Ako je na bilo kojoj od ovih AOP oznaka upisan iznos za razinu 12 obrazac je neispravan. | E172: 0 | F172: 0 | G172: =IF(AND(OR(I3=12,AND(I3=11,Q3="DA")),MAX(PRRAS!D427:E429,PRRAS!D442:E444,PRRAS!D448:E449,PRRAS!D463:E465,PRRAS!D468:E471,PRRAS!D474:E474,PRRAS!D490:E492,PRRAS!D521:E521,PRRAS!D524:E524,PRRAS!D530:E530,PRRAS!D533:E537,PRRAS!D550:E552,PRRAS!D556:E557)>0),1,0) -> 0 | T172: 3308 | U172: 34426
A173: 167 | B173: O.K. | C173: Razina 12 ne smije imati popunjene AOP oznake: 560, 563, 567 do 569, 579, 582, 586 do 588, 616 do 618, 621, 624, 699, 701, 703, 705. Ako je na bilo kojoj od ovih AOP oznaka upisan iznos, a obrazac je razine 12 obrazac je neispravan. | E173: 0 | F173: 0 | G173: =IF(AND(OR(I3=12,AND(I3=11,Q3="DA")),MAX(PRRAS!D573:E573,PRRAS!D576:E576,PRRAS!D580:E582,PRRAS!D592:E592,PRRAS!D595:E595,PRRAS!D599:E601,PRRAS!D629:E631,PRRAS!D634:E634,PRRAS!D637:E637,PRRAS!D713:E713,PRRAS!D715:E715,PRRAS!D717:E717,PRRAS!D719:E719)>0),1,0) -> 0 | T173: 3316 | U173: 34434
A174: 168 | B174: O.K. | C174: Razina 13 ne smije imati popunjene AOP oznake: 131 do 134. Ako je na bilo kojoj od ovih AOP oznaka upisan iznos, a obrazac je razine 13, kontrola javlja grešku i obrazac je neispravan. | E174: 0 | F174: 0 | G174: =IF(AND(I3=13,MAX(PRRAS!D142:E145)>0),1,0) -> 0 | T174: 3349 | U174: 34555
A175: 169 | B175: O.K. | C175: Razina 21 ne smije imati popunjene AOP oznake: 003 do 034, 040 do 044, 138, 172, 200, 222 do 227, 234 do 237 i 247 do 251, 340 i 368. Ako je na bilo kojoj od ovih AOP oznaka upisan iznos, a obrazac je razine 21 obrazac je neispravan. | E175: 0 | F175: 0 | G175: =IF(AND(I3=21,MAX(PRRAS!D14:E45,PRRAS!D51:E55,PRRAS!D149:E149,PRRAS!D183:E183,PRRAS!D211:E211,PRRAS!D233:E238,PRRAS!D245:E248,PRRAS!D258:E262,PRRAS!D352:E352,PRRAS!D380:E380)>0),1,0) -> 0 | T175: 20727 | U175: 34571
A176: 170 | B176: O.K. | C176: Razina 21 ne smije imati popunjene AOP oznake: 392, 412 do 416, 419, 429 do 431, 435, 436, 450 do 452, 455 do 458, 461, 470, 473, 475 do 479. Ako je na bilo kojoj od ovih AOP oznaka upisan iznos, a obrazac je razine 21 obrazac je neispravan. | E176: 0 | F176: 0 | G176: =IF(AND(I3=21,MAX(PRRAS!D404:E404,PRRAS!D425:E429,PRRAS!D432:E432,PRRAS!D442:E444,PRRAS!D448:E449,PRRAS!D463:E465,PRRAS!D468:E471,PRRAS!D474:E474,PRRAS!D483:E483,PRRAS!D486:E486,PRRAS!D488:E492)>0),1,0) -> 0 | T176: 21668 | U176: 34651
A177: 171 | B177: O.K. | C177: Razina 21 ne smije imati popunjene AOP oznake: 489 do 491, 495, 496, 508, 511 do 514, 517, 520 do 524, 527, 537 do 539, 543, 544, 560, 563, 564 do 569, 579 i 582. Ako je na bilo kojoj od ovih AOP oznaka upisan iznos za razinu 21 obrazac je neispravan. | E177: 0 | F177: 0 | G177: =IF(AND(I3=21,MAX(PRRAS!D502:E504,PRRAS!D508:E509,PRRAS!D521:E521,PRRAS!D524:E527,PRRAS!D530:E530,PRRAS!D533:E537,PRRAS!D540:E540,PRRAS!D550:E552,PRRAS!D556:E557,PRRAS!D573:E573,PRRAS!D576:E582,PRRAS!D592:E592,PRRAS!D595:E595)>0),1,0) -> 0 | T177: 22275 | U177: 34725
A178: 172 | B178: O.K. | C178: Razina 21 ne smije imati popunjene AOP oznake: 584 do 588, 599 do 601, 605, 606, 616 do 618, 621, 624, 685, 699, 701, 703, 705. Ako je na bilo kojoj od ovih AOP oznaka upisan iznos za razinu 21, obrazac je neispravan. | E178: 0 | F178: 0 | G178: =IF(AND(I3=21,MAX(PRRAS!D597:E601,PRRAS!D612:E614,PRRAS!D618:E619,PRRAS!D629:E631,PRRAS!D634:E634,PRRAS!D637:E637,PRRAS!D699:E699,PRRAS!D713:E713,PRRAS!D715:E715,PRRAS!D717:E717,PRRAS!D719:E719)>0),1,0) -> 0 | T178: 26346 | U178: 34872
A179: =1+A178 -> 173 | B179: O.K. | C179: Razine 22 ne smiju imati popunjene AOP oznake: 012 do 017, 021, 025, 027, 032 do 034, 040 do 044, 131 do 135, 138, 172, 200, 247 do 252. Ako je na bilo kojoj od ovih AOP oznaka upisan iznos, a obrazac je razine 22 obrazac je neispravan. | E179: 0 | F179: 0 | G179: =IF(AND(I3=22,MAX(PRRAS!D23:E28,PRRAS!D32:E32,PRRAS!D36:E36,PRRAS!D38:E38,PRRAS!D43:E45,PRRAS!D51:E55,PRRAS!D142:E146,PRRAS!D149:E149,PRRAS!D183:E183,PRRAS!D211:E211,PRRAS!D258:E263)>0),1,0) -> 0 | T179: 47037 | U179: 34969
A180: 174 | B180: O.K. | C180: Razine 22 ne smiju imati popunjene AOP oznake: 340, 368, 392, 412 do 416, 419, 429 do 431, 435, 436, 450 do 452, 455 do 458, 461, 470, 473, 475 do 479. Ako je na bilo kojoj od ovih AOP oznaka upisan iznos, a obrazac je razine 22 obrazac je neispravan. | E180: 0 | F180: 0 | G180: =IF(AND(I3=22,MAX(PRRAS!D352:E352,PRRAS!D380:E380,PRRAS!D404:E404,PRRAS!D425:E429,PRRAS!D432:E432,PRRAS!D442:E444,PRRAS!D448:E449,PRRAS!D463:E465,PRRAS!D468:E471,PRRAS!D474:E474,PRRAS!D483:E483,PRRAS!D486:E486,PRRAS!D488:E492)>0),1,0) -> 0 | T180: 47045 | U180: 34993
A181: 175 | B181: O.K. | C181: Razine 22 ne smiju imati popunjene AOP oznake: 489 do 491, 495, 496, 508, 511 do 514, 517, 520 do 524, 527, 537 do 539, 543, 544, 560, 563 do 569, 579, 582. Ako je na bilo kojoj od ovih AOP oznaka upisan iznos, a obrazac je razine 22 obrazac je neispravan. | E181: 0 | F181: 0 | G181: =IF(AND(I3=22,MAX(PRRAS!D502:E504,PRRAS!D508:E509,PRRAS!D521:E521,PRRAS!D524:E527,PRRAS!D530:E530,PRRAS!D533:E537,PRRAS!D540:E540,PRRAS!D550:E552,PRRAS!D556:E557,PRRAS!D573:E573,PRRAS!D576:E582,PRRAS!D592:E592,PRRAS!D595:E595)>0),1,0) -> 0 | T181: 47107 | U181: 35062
A182: 176 | B182: O.K. | C182: Razine 22 ne smiju imati popunjene AOP oznake: 584 do 588, 599 do 601, 605, 606, 616 do 618, 621, 624, 685, 699, 701, 703, 705. Ako je na bilo kojoj od ovih AOP oznaka upisan iznos, a obrazac je razine 22 obrazac je neispravan. | E182: 0 | F182: 0 | G182: =IF(AND(I3=22,MAX(PRRAS!D597:E601,PRRAS!D612:E614,PRRAS!D618:E619,PRRAS!D629:E631,PRRAS!D634:E634,PRRAS!D637:E637,PRRAS!D699:E699,PRRAS!D713:E713,PRRAS!D715:E715,PRRAS!D717:E717,PRRAS!D719:E719)>0),1,0) -> 0 | T182: 47115 | U182: 35100
A183: 177 | B183: O.K. | C183: Razine 23 ne smiju imati popunjene AOP oznake: 012 do 017, 021, 025, 027, 032 do 034, 040 do 044, 069 do 073, 131 do 134, 138,172,200, 234 do 237, 241 do 245, 247 do 252, 340, 368 i 392. Ako je bilo koja od ovih AOP pozicija popunjena obrazac je neispravan. | E183: 0 | F183: 0 | G183: =IF(AND(I3=23,MAX(PRRAS!D23:E28,PRRAS!D32:E32,PRRAS!D36:E36,PRRAS!D38:E38,PRRAS!D43:E45,PRRAS!D51:E55,PRRAS!D80:D84,PRRAS!D142:E145,PRRAS!D183:E183,PRRAS!D211:E211,PRRAS!D245:E248,PRRAS!D252:E256,PRRAS!D258:E263,PRRAS!D352:E352,PRRAS!D380:E380,PRRAS!D404:E404)>0),1,0) -> 0 | T183: 47439 | U183: 35126
A184: 178 | B184: O.K. | C184: Razine 23 ne smiju imati popunjene AOP oznake: 412 do 416, 419, 429 do 431,435,436,450 do 452, 455 do 458, 461, 470, 473, 475 do 479, 489 do 491, 495 i 496. Ako je na bilo kojoj od ovih AOP oznaka upisan iznos za razinu 23 obrazac je neispravan. | E184: 0 | F184: 0 | G184: =IF(AND(I3=23,MAX(PRRAS!D425:E429,PRRAS!D432:E432,PRRAS!D442:E444,PRRAS!D448:E449,PRRAS!D463:E465,PRRAS!D468:E471,PRRAS!D474:E474,PRRAS!D483:E483,PRRAS!D486:E486,PRRAS!D488:E492,PRRAS!D502:E504,PRRAS!D508:E509)>0),1,0) -> 0 | T184: 48808 | U184: 35159
A185: 179 | B185: O.K. | C185: Razine 23 ne smiju imati popunjene AOP oznake: 508, 511 do 514, 517, 520 do 524, 527, 537 do 539, 543, 544, 560, 563 do 569, 579, 582, 584 do 588. Ako je na bilo kojoj od ovih AOP oznaka upisan iznos za razinu 23 obrazac je neispravan. | E185: 0 | F185: 0 | G185: =IF(AND(I3=23,MAX(PRRAS!D521:E521,PRRAS!D524:E527,PRRAS!D530:E530,PRRAS!D533:E537,PRRAS!D540:E540,PRRAS!D550:E552,PRRAS!D556:E557,PRRAS!D573:E573,PRRAS!D576:E582,PRRAS!D592:E592,PRRAS!D595:E595,PRRAS!D597:E601)>0),1,0) -> 0 | T185: 49593 | U185: 35191
A186: 180 | B186: O.K. | C186: Razine 23 ne smiju imati popunjene AOP oznake: 599 do 601, 605, 606, 616 do 618, 621, 624, 685, 699, 701, 703, 705. Ako je na bilo kojoj od ovih AOP oznaka upisan iznos za razinu 23 obrazac je neispravan. | E186: 0 | F186: 0 | G186: =IF(AND(I3=23,MAX(PRRAS!D612:E614,PRRAS!D618:E619,PRRAS!D629:E631,PRRAS!D634:E634,PRRAS!D637:E637,PRRAS!D699:E699,PRRAS!D713:E713,PRRAS!D715:E715,PRRAS!D717:E717,PRRAS!D719:E719)>0),1,0) -> 0 | T186: 99999 | U186: 35206
A187: 181 | B187: O.K. | C187: Razina 31 ne smije imati popunjene AOP oznake: 003 do 034, 040 do 044, 138, 172, 200, 222 do 227, 234 do 237, 247 do 252, 340, 368, 392. Ako je na bilo kojoj od ovih AOP oznaka upisan iznos za razinu 31 obrazac je neispravan. | E187: 0 | F187: 0 | G187: =IF(AND(I3=31,MAX(PRRAS!D14:E45,PRRAS!D51:E55,PRRAS!D149:E149,PRRAS!D183:E183,PRRAS!D211:E211,PRRAS!D233:E238,PRRAS!D245:E248,PRRAS!D258:E263,PRRAS!D352:E352,PRRAS!D380:E380,PRRAS!D404:E404)>0),1,0) -> 0 | U187: 35214
A188: =1+A187 -> 182 | B188: O.K. | C188: Razina 31 ne smije imati popunjene AOP oznake: 412 do 416, 419, 429 do 431, 435, 436, 450 do 452, 455 do 458, 461, 473, 475 do 479, 489 do 491, 495, 496. Ako je na bilo kojoj od ovih AOP oznaka upisan iznos za razinu 31 obrazac je neispravan. | E188: =MAX(G188:L188) -> 0 | F188: 0 | G188: =IF(AND(I3=31,MAX(PRRAS!D425:E429,PRRAS!D432:E432,PRRAS!D442:E444,PRRAS!D448:E449,PRRAS!D463:E465,PRRAS!D468:E471,PRRAS!D474:E474,PRRAS!D486:E486,PRRAS!D488:E492,PRRAS!D502:E504,PRRAS!D508:E509)>0),1,0) -> 0 | U188: 35271
A189: =1+A188 -> 183 | B189: O.K. | C189: Razina 31 ne smije imati popunjene AOP oznake: 508, 511 do 514, 517, 520 do 524, 527, 537 do 539, 543, 544, 560, 563 do 569, 579, 582, 584 do 588. Ako je na bilo kojoj od ovih AOP oznaka upisan iznos za razinu 31 obrazac je neispravan. | E189: 0 | F189: 0 | G189: =IF(AND(I3=31,MAX(PRRAS!D521:E521,PRRAS!D524:E527,PRRAS!D530:E530,PRRAS!D533:E537,PRRAS!D540:E540,PRRAS!D550:E552,PRRAS!D556:E557,PRRAS!D573:E573,PRRAS!D576:E582,PRRAS!D592:E592,PRRAS!D595:E595,PRRAS!D597:E601)>0),1,0) -> 0 | U189: 35319
A190: 184 | B190: O.K. | C190: Razina 31 ne smije imati popunjene AOP oznake: 605, 606, 616 do 618, 621, 624, 642, 644, 685, 699, 701, 703, 705. Ako je na bilo kojoj od ovih AOP oznaka upisan iznos za razinu 31 obrazac je neispravan. | E190: 0 | F190: 0 | G190: =IF(AND(I3=31,MAX(PRRAS!D618:E619,PRRAS!D629:E631,PRRAS!D634:E634,PRRAS!D637:E637,PRRAS!D656:E656,PRRAS!D658:E658,PRRAS!D699:E699,PRRAS!D713:E713,PRRAS!D715:E715,PRRAS!D717:E717,PRRAS!D719:E719)>0),1,0) -> 0 | U190: 35409
A191: 185 | B191: O.K. | C191: Obveznici razine 41 ne smiju imati popunjene AOP oznake: 131 do 134. Iznimka od tog pravila su obveznici s RKP-om 23911 i 25843. Ako ova kontrola javlja pogrešku znači da je za obrazac razine 11 unesen iznos na neku od ovih pozicija. | E191: 0 | F191: 0 | G191: =IF(AND(I3=41,O3<>23911,O3<>25843,MAX(PRRAS!D142:E145)>0),1,0) -> 0 | U191: 35433
A192: 186 | B192: O.K. | C192: Razina 41 ne smije imati popunjene AOP oznake: 003 do 034, 135, 138, 172, 340, 392, 412 do 416, 419, 429 do 431, 435, 436, 450 do 452, 455 do 458, 477 do 479. Ako je na bilo kojoj od ovih AOP oznaka upisan iznos za razinu 41obrazac je neispravan. | E192: 0 | F192: 0 | G192: =IF(AND(I3=41,MAX(PRRAS!D14:E45,PRRAS!D146:E146,PRRAS!D149:E149,PRRAS!D183:E183,PRRAS!D352:E352,PRRAS!D404:E404,PRRAS!D425:E429,PRRAS!D432:E432,PRRAS!D442:E444,PRRAS!D448:E449,PRRAS!D463:E465,PRRAS!D468:E471,PRRAS!D490:E492)>0),1,0) -> 0 | U192: 35484
A193: 187 | B193: O.K. | C193: Razina 41 ne smije imati popunjene AOP oznake: 508, 511 do 514, 517, 520 do 524, 527, 537 do 539, 543, 544, 560, 563 do 569, 579, 582, 586 do 588. Ako je na bilo kojoj od ovih AOP oznaka upisan iznos za razinu 41 obrazac je neispravan | E193: 0 | F193: 0 | G193: =IF(AND(I3=41,MAX(PRRAS!D521:E521,PRRAS!D524:E527,PRRAS!D530:E530,PRRAS!D533:E537,PRRAS!D540:E540,PRRAS!D550:E552,PRRAS!D556:E557,PRRAS!D573:E573,PRRAS!D576:E582,PRRAS!D592:E592,PRRAS!D595:E595,PRRAS!D599:E601)>0),1,0) -> 0 | U193: 35548
A194: 188 | B194: O.K. | C194: Razina 41 ne smije imati popunjene AOP oznake: 616 do 618, 621, 624, 642, 644, 699, 701, 703, 705. Ako je na bilo kojoj od ovih AOP oznaka upisan iznos za razinu 41 obrazac je neispravan. | E194: 0 | F194: 0 | G194: =IF(AND(I3=41,MAX(PRRAS!D629:E631,PRRAS!D634:E634,PRRAS!D637:E637,PRRAS!D656:E656,PRRAS!D658:E658,PRRAS!D713:E713,PRRAS!D715:E715,PRRAS!D717:E717,PRRAS!D719:E719)>0),1,0) -> 0 | U194: 35669
A195: =1+A194 -> 189 | B195: O.K. | C195: Razina 42 ne smije imati popunjene AOP oznake: 003 do 034, 040 do 044,131 do 135, 138, 172, 222 do 227, 247 do 252, 340 i 392. Ako je na bilo kojoj od ovih AOP oznaka upisan iznos za razinu 42 obrazac je neispravan. | E195: =MAX(G195:L195) -> 0 | F195: 0 | G195: =IF(AND(I3=42,MAX(PRRAS!D14:E45,PRRAS!D51:E55,PRRAS!D142:E146,PRRAS!D149:E149,PRRAS!D183:E183,PRRAS!D233:E238,PRRAS!D258:E263,PRRAS!D352:E352,PRRAS!D404:E404)>0),1,0) -> 0 | U195: 35708
A196: =1+A195 -> 190 | B196: O.K. | C196: Razina 42 ne smije imati popunjene AOP oznake: 412 do 416, 419, 429 do 431, 435, 436, 450 do 452, 455 do 458, 461, 470, 473, 475 do 479, 508, 511 do 514. Ako je na bilo kojoj od ovih AOP oznaka upisan iznos za razinu 42 obrazac je neispravan. | E196: =MAX(G196:L196) -> 0 | F196: 0 | G196: =IF(AND(I3=42,MAX(PRRAS!D425:E429,PRRAS!D432:E432,PRRAS!D442:E444,PRRAS!D448:E449,PRRAS!D463:E465,PRRAS!D468:E471,PRRAS!D474:E474,PRRAS!D483:E483,PRRAS!D486:E486,PRRAS!D488:E492,PRRAS!D521:E521,PRRAS!D524:E527)>0),1,0) -> 0 | U196: 35716
A197: =1+A196 -> 191 | B197: O.K. | C197: Razina 42 ne smije imati popunjene AOP oznake: 517, 520 do 524, 527, 537 do 539, 543, 544, 560, 563 do 569, 579, 582, 586 do 588. Ako je na bilo kojoj od ovih AOP oznaka upisan iznos za razinu 42 obrazac je neispravan. | E197: =MAX(G197:L197) -> 0 | F197: 0 | G197: =IF(AND(I3=42,MAX(PRRAS!D530:E530,PRRAS!D533:E537,PRRAS!D540:E540,PRRAS!D550:E552,PRRAS!D556:E557,PRRAS!D573:E573,PRRAS!D576:E582,PRRAS!D592:E592,PRRAS!D595:E595,PRRAS!D599:E601)>0),1,0) -> 0 | U197: 35757
A198: =1+A197 -> 192 | B198: O.K. | C198: Razina 42 ne smije imati popunjene AOP oznake: 616 do 618, 621, 624, 642, 644, 685, 699, 701, 703, 705. Ako je na bilo kojoj od ovih AOP oznaka upisan iznos za razinu 42 obrazac je neispravan. | E198: =MAX(G198:L198) -> 0 | F198: 0 | G198: =IF(AND(I3=42,MAX(PRRAS!D629:E631,PRRAS!D634:E634,PRRAS!D637:E637,PRRAS!D656:E656,PRRAS!D658:E658,PRRAS!D699:E699,PRRAS!D713:E713,PRRAS!D715:E715,PRRAS!D717:E717,PRRAS!D719:E719)>0),1,0) -> 0 | U198: 35790
A199: =1+A198 -> 193 | B199: O.K. | C199: Kod razine 11 korisnici mogu imati popunjen samo broj zaposlenih kod korisnika (AOP 643 i 645), a glave unutar nadležnog ministarstva mogu imati popunjene samo zaposlene u tijelima (AOP 642 i 644). Ova kontrola upozorava kada su istovremeno popunjene AOP oznake 642 i 643 ili 644 i 645 (broj zaposleni u tijelima i kod korisnika), što mogu imati popunjene samo glave unutar nadležnog ministarstva / razdjela koja imaju iskazane i rashode proračunskih korisnika iz svoje nadležnosti. | E199: 0 | F199: =MAX(L199:O199) -> 0 | L199: =IF(AND($I$3=11,OR(PRRAS!D656>0,PRRAS!D658>0),OR(PRRAS!D657>0,PRRAS!D659>0)),1,0) -> 0 | M199: =IF(AND($I$3=11,OR(PRRAS!E656>0,PRRAS!E658>0),OR(PRRAS!E657>0,PRRAS!E659>0)),1,0) -> 0 | U199: 35888
A200: 194 | B200: O.K. | C200: Ako je iznos na AOP-u 019 veći od nule, a iznos na AOP-u 647 (porez na korištenje javnih površina) je jednak nuli, provjerite AOP 647. Ako je njegov iznos stvarno toliki, zanemarite ovu kontrolu. | E200: 0 | F200: 0 | L200: =IF(AND(PRRAS!D30>0,PRRAS!D661=0),1,0) -> 0 | M200: =IF(AND(PRRAS!E30>0,PRRAS!E661=0),1,0) -> 0 | U200: 35896
... 99 more rows

Sheet Sifre
A1: <–––– Povratak na Referentnu stranicu
A2: S obzirom na objedinjavanje svih obrazaca proračuna i proračunskih korisnika u jednu datoteku, kako bi se smanjio broj radnih listova u Excel datoteci oznake razina, šifre gradova/općina, šifre djelatnosti i popis razdjela spojeni su u ovaj jedan radni list. Šifrarnici su dani u nastavku jedan iza drugoga.
A3: Oznaka | B3: Značenje oznake razine
A4: 11 | B4: Proračunski korisnik državnog proračuna i glava unutar nadležnog ministarstva;
A5: 12 | B5: Nadježno ministarstvo/razdjel - konsolidirani izvještaj;
A6: 21 | B6: Proračunski korisnik jedinice lokalne i područne (regionalne) samouprave;
A7: 22 | B7: Proračun jedinice lokalne i područne (regionalne) samouprave;
A8: 23 | B8: Konsolidirani proračun jedinice lokalne i područne (regionalne) samouprave;
A9: 31 | B9: Proračunski korisnik jedinice lokalne i područne (regionalne) samouprave koji obavlja poslove u sklopu funkcija koje se decentraliziraju
A10: 41 | B10: Izvanproračunski korisnik državnog proračuna
A11: 42 | B11: Izvanproračunski korisnik jedinice lokalne i područne (regionalne) samouprave
A13: Šifra općine / grada upisuje se prema standardnim troznamenkastim šiframa bez kontrolne znamekne. U ovom šifrarniku šifre su dane abecednim redom naziva naselja. U obrazac se upisuje samo šifra općine / grada, a šifra županije se automatski izračunava.
A14: Šifra | B14: Naziv općine / grada | D14: Šifra | E14: Naziv općine / grada | G14: Šifra | H14: Naziv općine / grada
A15: 1 | B15: Andrijaševci | D15: 185 | E15: Klakar | G15: 88 | H15: Proložac
A16: 2 | B16: Antunovac | D16: 186 | E16: Klana | G16: 298 | H16: Promina
A17: 3 | B17: Babina Greda | D17: 187 | E17: Klanjec | G17: 358 | H17: Pučišća
A18: 4 | B18: Bakar | D18: 189 | E18: Klenovnik | G18: 359 | H18: Pula
A19: 5 | B19: Bale | D19: 190 | E19: Klinča Sela | G19: 360 | H19: Punat
A20: 6 | B20: Barban | D20: 192 | E20: Klis | G20: 361 | H20: Punitovci
A21: 7 | B21: Barilovići | D21: 193 | E21: Kloštar Ivanić | G21: 362 | H21: Pušća
A22: 8 | B22: Baška | D22: 194 | E22: Kloštar Podravski | G22: 363 | H22: Rab
A23: 9 | B23: Baška Voda | D23: 195 | E23: Kneževi Vinogradi | G23: 364 | H23: Radoboj
A24: 10 | B24: Bebrina | D24: 196 | E24: Knin | G24: 536 | H24: Rakovec
A25: 11 | B25: Bedekovčina | D25: 622 | E25: Kolan | G25: 365 | H25: Rakovica
A26: 550 | B26: Bedenica | D26: 197 | E26: Komiža | G26: 366 | H26: Rasinja
A27: 12 | B27: Bednja | D27: 198 | E27: Konavle | G27: 368 | H27: Raša
A28: 13 | B28: Beli Manastir | D28: 199 | E28: Končanica | G28: 369 | H28: Ravna Gora
A29: 15 | B29: Belica | D29: 200 | E29: Konjščina | G29: 371 | H29: Ražanac
A30: 16 | B30: Belišće | D30: 201 | E30: Koprivnica | G30: 372 | H30: Rešetari
A31: 17 | B31: Benkovac | D31: 202 | E31: Koprivnički Bregi | G31: 556 | H31: Ribnik
A32: 18 | B32: Berek | D32: 203 | E32: Koprivnički Ivanec | G32: 373 | H32: Rijeka
A33: 19 | B33: Beretinec | D33: 204 | E33: Korčula | G33: 582 | H33: Rogoznica
A34: 20 | B34: Bibinje | D34: 538 | E34: Kostrena | G34: 374 | H34: Rovinj
A35: 621 | B35: Bilice | D35: 205 | E35: Koška | G35: 375 | H35: Rovišće
A36: 21 | B36: Bilje | D36: 206 | E36: Kotoriba | G36: 376 | H36: Rugvica
A37: 22 | B37: Biograd na Moru | D37: 208 | E37: Kraljevec na Sutli | G37: 591 | H37: Runovići
A38: 310 | B38: Biskupija | D38: 209 | E38: Kraljevica | G38: 377 | H38: Ružić
A39: 547 | B39: Bistra | D39: 211 | E39: Krapina | G39: 378 | H39: Saborsko
A40: 23 | B40: Bizovac | D40: 212 | E40: Krapinske Toplice | G40: 379 | H40: Sali
A41: 24 | B41: Bjelovar | D41: 533 | E41: Krašić | G41: 380 | H41: Samobor
A42: 25 | B42: Blato | D42: 545 | E42: Kravarsko | G42: 381 | H42: Satnica Đakovačka
A43: 26 | B43: Bogdanovci | D43: 213 | E43: Križ | G43: 382 | H43: Seget
A44: 27 | B44: Bol | D44: 214 | E44: Križevci | G44: 383 | H44: Selca
A45: 29 | B45: Borovo | D45: 215 | E45: Krk | G45: 385 | H45: Selnica
A46: 30 | B46: Bosiljevo | D46: 216 | E46: Krnjak | G46: 386 | H46: Semeljci
A47: 32 | B47: Bošnjaci | D47: 217 | E47: Kršan | G47: 387 | H47: Senj
A48: 33 | B48: Brckovljani | D48: 572 | E48: Kukljica | G48: 562 | H48: Severin
A49: 34 | B49: Brdovec | D49: 219 | E49: Kula Norinska | G49: 388 | H49: Sibinj
A50: 77 | B50: Brela | D50: 553 | E50: Kumrovec | G50: 570 | H50: Sikirevci
A51: 35 | B51: Brestovac | D51: 220 | E51: Kutina | G51: 389 | H51: Sinj
A52: 36 | B52: Breznica | D52: 221 | E52: Kutjevo | G52: 390 | H52: Sirač
A53: 151 | B53: Breznički Hum | D53: 222 | E53: Labin | G53: 391 | H53: Sisak
A54: 37 | B54: Brinje | D54: 223 | E54: Lanišće | G54: 393 | H54: Skrad
A55: 38 | B55: Brod Moravice | D55: 225 | E55: Lasinja | G55: 394 | H55: Skradin
A56: 39 | B56: Brodski Stupnik | D56: 226 | E56: Lastovo | G56: 395 | H56: Slatina
A57: 40 | B57: Brtonigla | D57: 586 | E57: Lećevica | G57: 396 | H57: Slavonski Brod
A58: 41 | B58: Budinščina | D58: 227 | E58: Legrad | G58: 397 | H58: Slavonski Šamac
A59: 42 | B59: Buje | D59: 228 | E59: Lekenik | G59: 399 | H59: Slivno
A60: 567 | B60: Bukovlje | D60: 229 | E60: Lepoglava | G60: 400 | H60: Slunj
A61: 43 | B61: Buzet | D61: 230 | E61: Levanjska Varoš | G61: 402 | H61: Smokvica
A62: 44 | B62: Cerna | D62: 231 | E62: Lipik | G62: 405 | H62: Sokolovac
A63: 46 | B63: Cernik | D63: 232 | E63: Lipovljani | G63: 406 | H63: Solin
A64: 47 | B64: Cerovlje | D64: 234 | E64: Lišane Ostrovičke | G64: 407 | H64: Sopje
A65: 48 | B65: Cestica | D65: 235 | E65: Ližnjan | G65: 409 | H65: Split
A66: 49 | B66: Cetingrad | D66: 236 | E66: Lobor | G66: 410 | H66: Sračinec
A67: 50 | B67: Cista Provo | D67: 237 | E67: Lokve | G67: 411 | H67: Stankovci
A68: 51 | B68: Civljane | D68: 587 | E68: Lokvičići | G68: 412 | H68: Stara Gradiška
A69: 52 | B69: Cres | D69: 624 | E69: Lopar | G69: 413 | H69: Stari Grad
A70: 53 | B70: Crikvenica | D70: 239 | E70: Lovas | G70: 414 | H70: Stari Jankovci
A71: 54 | B71: Crnac | D71: 240 | E71: Lovinac | G71: 415 | H71: Stari Mikanovci
A72: 55 | B72: Čabar | D72: 242 | E72: Lovran | G72: 416 | H72: Starigrad
A73: 56 | B73: Čačinci | D73: 243 | E73: Lovreć | G73: 418 | H73: Staro Petrovo Selo
A74: 57 | B74: Čađavica | D74: 244 | E74: Ludbreg | G74: 419 | H74: Ston
A75: 58 | B75: Čaglin | D75: 548 | E75: Luka | G75: 606 | H75: Strahoninec
A76: 60 | B76: Čakovec | D76: 245 | E76: Lukač | G76: 421 | H76: Strizivojna
A77: 61 | B77: Čavle | D77: 600 | E77: Lumbarda | G77: 422 | H77: Stubičke Toplice
A78: 63 | B78: Čazma | D78: 246 | E78: Lupoglav | G78: 551 | H78: Stupnik
A79: 64 | B79: Čeminac | D79: 247 | E79: Ljubešćica | G79: 423 | H79: Sućuraj
A80: 65 | B80: Čepin | D80: 248 | E80: Mače | G80: 424 | H80: Suhopolje
A81: 66 | B81: Darda | D81: 578 | E81: Magadenovac | G81: 425 | H81: Sukošan
A82: 67 | B82: Daruvar | D82: 555 | E82: Majur | G82: 426 | H82: Sunja
A83: 68 | B83: Davor | D83: 249 | E83: Makarska | G83: 427 | H83: Supetar
A84: 603 | B84: Dekanovec | D84: 250 | E84: Mala Subotica | G84: 592 | H84: Sutivan
A85: 69 | B85: Delnice | D85: 251 | E85: Mali Bukovec | G85: 607 | H85: Sveta Marija
A86: 70 | B86: Desinić | D86: 252 | E86: Mali Lošinj | G86: 432 | H86: Sveta Nedelja
A87: 71 | B87: Dežanovac | D87: 253 | E87: Malinska-Dubašnica | G87: 436 | H87: Sveta Nedelja
A88: 72 | B88: Dicmo | D88: 254 | E88: Marčana | G88: 437 | H88: Sveti Đurđ
A89: 74 | B89: Dobrinj | D89: 256 | E89: Marija Bistrica | G89: 428 | H89: Sveti Filip i Jakov
A90: 75 | B90: Domašinec | D90: 539 | E90: Marija Gorica | G90: 438 | H90: Sveti Ilija
A91: 78 | B91: Donja Dubrava | D91: 257 | E91: Marijanci | G91: 429 | H91: Sveti Ivan Zelina
A92: 576 | B92: Donja Motičina | D92: 258 | E92: Marina | G92: 439 | H92: Sveti Ivan Žabno
A93: 79 | B93: Donja Stubica | D93: 610 | E93: Markušica | G93: 440 | H93: Sveti Juraj na Bregu
A94: 80 | B94: Donja Voća | D94: 259 | E94: Martinska Ves | G94: 430 | H94: Sveti Križ Začretje
A95: 81 | B95: Donji Andrijevci | D95: 260 | E95: Maruševec | G95: 431 | H95: Sveti Lovreč
A96: 82 | B96: Donji Kraljevec | D96: 261 | E96: Matulji | G96: 441 | H96: Sveti Martin na Muri
A97: 83 | B97: Donji Kukuruzari | D97: 263 | E97: Medulin | G97: 442 | H97: Sveti Petar Orehovec
A98: 84 | B98: Donji Lapac | D98: 264 | E98: Metković | G98: 433 | H98: Sveti Petar u Šumi
A99: 85 | B99: Donji Martijanec | D99: 265 | E99: Mihovljan | G99: 435 | H99: Svetvinčenat
A100: 86 | B100: Donji Miholjac | D100: 266 | E100: Mikleuš | G100: 564 | H100: Šandrovac
A101: 89 | B101: Donji Vidovec | D101: 267 | E101: Milna | G101: 608 | H101: Šenkovec
A102: 568 | B102: Dragalić | D102: 268 | E102: Mljet | G102: 443 | H102: Šestanovac
A103: 90 | B103: Draganić | D103: 270 | E103: Molve | G103: 444 | H103: Šibenik
A104: 91 | B104: Draž | D104: 273 | E104: Mošćenička Draga | G104: 445 | H104: Škabrnje
A105: 92 | B105: Drenovci | D105: 274 | E105: Motovun | G105: 614 | H105: Šodolovci
A106: 94 | B106: Drenje | D106: 275 | E106: Mrkopalj | G106: 447 | H106: Šolta
A107: 95 | B107: Drniš | D107: 87 | E107: Muć | G107: 449 | H107: Špišić Bukovica
A108: 96 | B108: Drnje | D108: 276 | E108: Mursko Središće | G108: 450 | H108: Štefanje
A109: 97 | B109: Dubrava | D109: 617 | E109: Murter | G109: 628 | H109: Štitar
A110: 549 | B110: Dubravica | D110: 278 | E110: Našice | G110: 452 | H110: Štrigova
A111: 598 | B111: Dubrovačko Primorje | D111: 279 | E111: Nedelišće | G111: 631 | H111: Tar-Vabriga
A112: 98 | B112: Dubrovnik | D112: 612 | E112: Negoslavci | G112: 453 | H112: Tinjan
A113: 99 | B113: Duga Resa | D113: 280 | E113: Nerežišća | G113: 454 | H113: Tisno
A114: 100 | B114: Dugi Rat | D114: 281 | E114: Netretić | G114: 575 | H114: Tkon
A115: 101 | B115: Dugo Selo | D115: 295 | E115: Nijemci | G115: 456 | H115: Tompojevci
A116: 585 | B116: Dugopolje | D116: 282 | E116: Nin | G116: 457 | H116: Topusko
A117: 102 | B117: Dvor | D117: 283 | E117: Nova Bukovica | G117: 458 | H117: Tordinci
A118: 103 | B118: Đakovo | D118: 284 | E118: Nova Gradiška | G118: 557 | H118: Tounj
A119: 104 | B119: Đelekovec | D119: 285 | E119: Nova Kapela | G119: 459 | H119: Tovarnik
A120: 105 | B120: Đulovac | D120: 287 | E120: Nova Rača | G120: 626 | H120: Tribunj
A121: 106 | B121: Đurđenovac | D121: 288 | E121: Novalja | G121: 460 | H121: Trilj
A122: 107 | B122: Đurđevac | D122: 554 | E122: Novi Golubovec | G122: 461 | H122: Trnava
A123: 108 | B123: Đurmanec | D123: 289 | E123: Novi Marof | G123: 462 | H123: Trnovec Bartolovečki
A124: 110 | B124: Erdut | D124: 290 | E124: Novi Vinodolski | G124: 463 | H124: Trogir
A125: 111 | B125: Ernestinovo | D125: 537 | E125: Novigrad | G125: 601 | H125: Trpanj
A126: 113 | B126: Ervenik | D126: 291 | E126: Novigrad | G126: 464 | H126: Trpinja
A127: 114 | B127: Farkaševac | D127: 292 | E127: Novigrad Podravski | G127: 593 | H127: Tučepi
A128: 619 | B128: Fažana | D128: 561 | E128: Novo Virje | G128: 466 | H128: Tuhelj
A129: 115 | B129: Ferdinandovac | D129: 293 | E129: Novska | G129: 467 | H129: Udbina
A130: 116 | B130: Feričanci | D130: 294 | E130: Nuštar | G130: 468 | H130: Umag
A131: 629 | B131: Funtana | D131: 296 | E131: Obrovac | G131: 469 | H131: Unešić
A132: 117 | B132: Fužine | D132: 297 | E132: Ogulin | G132: 471 | H132: Valpovo
A133: 571 | B133: Galovac | D133: 588 | E133: Okrug | G133: 472 | H133: Varaždin
A134: 118 | B134: Garčin | D134: 299 | E134: Okučani | G134: 473 | H134: Varaždinske Toplice
A135: 119 | B135: Garešnica | D135: 300 | E135: Omiš | G135: 474 | H135: Vela Luka
A136: 120 | B136: Generalski Stol | D136: 301 | E136: Omišalj | G136: 475 | H136: Velika
A137: 121 | B137: Glina | D137: 302 | E137: Opatija | G137: 541 | H137: Velika Gorica
A138: 122 | B138: Gola | D138: 303 | E138: Oprisavci | G138: 476 | H138: Velika Kopanica
A139: 123 | B139: Goričan | D139: 304 | E139: Oprtalj | G139: 477 | H139: Velika Ludina
A140: 124 | B140: Gorjani | D140: 306 | E140: Opuzen | G140: 478 | H140: Velika Pisanica
A141: 618 | B141: Gornja Reka | D141: 307 | E141: Orahovica | G141: 565 | H141: Velika Trnovitica
A142: 125 | B142: Gornja Stubica | D142: 308 | E142: Orebić | G142: 558 | H142: Veliki Bukovec
A143: 569 | B143: Gornja Vrba | D143: 605 | E143: Orehovica | G143: 480 | H143: Veliki Grđevac
A144: 127 | B144: Gornji Bogićevci | D144: 309 | E144: Oriovac | G144: 481 | H144: Veliko Trgovišće
A145: 129 | B145: Gornji Kneginec | D145: 542 | E145: Orle | G145: 483 | H145: Veliko Trojstvo
A146: 604 | B146: Gornji Mihaljevec | D146: 311 | E146: Oroslavje | G146: 484 | H146: Vidovec
A147: 130 | B147: Gospić | D147: 312 | E147: Osijek | G147: 485 | H147: Viljevo
A148: 131 | B148: Gračac | D148: 313 | E148: Otočac | G148: 486 | H148: Vinica
A149: 132 | B149: Gračišće | D149: 314 | E149: Otok | G149: 487 | H149: Vinkovci
A150: 134 | B150: Gradac | D150: 535 | E150: Otok (Vinkovci) | G150: 488 | H150: Vinodolska Općina
A151: 135 | B151: Gradec | D151: 315 | E151: Ozalj | G151: 489 | H151: Vir
A152: 136 | B152: Gradina | D152: 316 | E152: Pag | G152: 490 | H152: Virje
A153: 137 | B153: Gradište | D153: 317 | E153: Pakoštane | G153: 491 | H153: Virovitica
A154: 138 | B154: Grožnjan | D154: 318 | E154: Pakrac | G154: 492 | H154: Vis
A155: 139 | B155: Grubišno Polje | D155: 320 | E155: Pašman | G155: 493 | H155: Visoko
A156: 140 | B156: Gundinci | D156: 321 | E156: Pazin | G156: 494 | H156: Viškovci
A157: 141 | B157: Gunja | D157: 323 | E157: Perušić | G157: 495 | H157: Viškovo
A158: 510 | B158: Gvozd | D158: 324 | E158: Peteranec | G158: 497 | H158: Višnjan
A159: 144 | B159: Hercegovac | D159: 325 | E159: Petlovac | G159: 498 | H159: Vižinada
A160: 145 | B160: Hlebine | D160: 326 | E160: Petrijanec | G160: 579 | H160: Vladislavci
A161: 146 | B161: Hrašćina | D161: 327 | E161: Petrijevci | G161: 499 | H161: Voćin
A162: 148 | B162: Hrvace | D162: 328 | E162: Petrinja | G162: 500 | H162: Vodice
A163: 149 | B163: Hrvatska Dubica | D163: 329 | E163: Petrovsko | G163: 502 | H163: Vodnjan
A164: 150 | B164: Hrvatska Kostajnica | D164: 330 | E164: Pićan | G164: 584 | H164: Vođinci
A165: 152 | B165: Hum Na Sutli | D165: 581 | E165: Pirovac | G165: 503 | H165: Vojnić
A166: 153 | B166: Hvar | D166: 331 | E166: Pisarovina | G166: 504 | H166: Vratišinec
A167: 154 | B167: Ilok | D167: 332 | E167: Pitomača | G167: 505 | H167: Vrbanja
A168: 155 | B168: Imotski | D168: 333 | E168: Plaški | G168: 506 | H168: Vrbje
A169: 156 | B169: Ivanec | D169: 334 | E169: Pleternica | G169: 507 | H169: Vrbnik
A170: 158 | B170: Ivanić-Grad | D170: 455 | E170: Plitvička Jezera | G170: 508 | H170: Vrbovec
A171: 159 | B171: Ivankovo | D171: 335 | E171: Ploče | G171: 509 | H171: Vrbovsko
A172: 161 | B172: Ivanska | D172: 337 | E172: Podbablje | G172: 511 | H172: Vrgorac
A173: 609 | B173: Jagodnjak | D173: 338 | E173: Podcrkavlje | G173: 512 | H173: Vrhovine
A174: 163 | B174: Jakovlje | D174: 339 | E174: Podgora | G174: 513 | H174: Vrlika
A175: 164 | B175: Jakšić | D175: 340 | E175: Podgorač | G175: 514 | H175: Vrpolje
A176: 165 | B176: Jalžabet | D176: 271 | E176: Podravska Moslavina | G176: 516 | H176: Vrsar
A177: 599 | B177: Janjina | D177: 616 | E177: Podravske Sesvete | G177: 625 | H177: Vrsi
A178: 166 | B178: Jarmina | D178: 341 | E178: Podstrana | G178: 517 | H178: Vuka
A179: 167 | B179: Jasenice | D179: 342 | E179: Podturen | G179: 518 | H179: Vukovar
A180: 168 | B180: Jasenovac | D180: 343 | E180: Pojezerje | G180: 519 | H180: Zabok
A181: 169 | B181: Jastrebarsko | D181: 544 | E181: Pokupsko | G181: 520 | H181: Zadar
A182: 170 | B182: Jelenje | D182: 344 | E182: Polača | G182: 595 | H182: Zadvarje
A183: 171 | B183: Jelsa | D183: 345 | E183: Poličnik | G183: 521 | H183: Zagorska Sela
A184: 552 | B184: Jesenje | D184: 346 | E184: Popovac | G184: 133 | H184: Zagreb
A185: 172 | B185: Josipdol | D185: 347 | E185: Popovača | G185: 522 | H185: Zagvozd
A186: 173 | B186: Kali | D186: 348 | E186: Poreč | G186: 543 | H186: Zaprešić
A187: 559 | B187: Kalinovac | D187: 349 | E187: Posedarje | G187: 523 | H187: Zažablje
A188: 560 | B188: Kalnik | D188: 350 | E188: Postira | G188: 524 | H188: Zdenci
A189: 623 | B189: Kamanje | D189: 573 | E189: Povljana | G189: 525 | H189: Zemunik Donji
A190: 175 | B190: Kanfanar | D190: 351 | E190: Požega | G190: 526 | H190: Zlatar
A191: 176 | B191: Kapela | D191: 352 | E191: Pregrada | G191: 527 | H191: Zlatar-Bistrica
A192: 177 | B192: Kaptol | D192: 354 | E192: Preko | G192: 528 | H192: Zmijavci
A193: 178 | B193: Karlobag | D193: 355 | E193: Prelog | G193: 566 | H193: Zrinski Topolovac
A194: 179 | B194: Karlovac | D194: 356 | E194: Preseka | G194: 530 | H194: Žakanje
A195: 596 | B195: Karojba | D195: 589 | E195: Prgomet | G195: 531 | H195: Žminj
A196: 180 | B196: Kastav | D196: 620 | E196: Pribislavec | G196: 540 | H196: Žumberak
A197: 181 | B197: Kaštela | D197: 590 | E197: Primorski Dolac | G197: 602 | H197: Župa Dubrovačka
A198: 597 | B198: Kaštelir - Labinci | D198: 357 | E198: Primošten | G198: 534 | H198: Županja
A199: 183 | B199: Kijevo | D199: 583 | E199: Privlaka
A200: 184 | B200: Kistanje | D200: 574 | E200: Privlaka
A202: Šifarnik razdjela | C202: <–––– Povratak na Referentnu stranicu | F202: <–––– Povratak na vrh lista
... 665 more rows

Sheet Prom
A1: <–––– Povratak na Referentnu stranicu
A2: Na ovom radnom listu dat će se popis svih, i najmanjih promjena Excel datoteke iz verzije u verziju (bilo da su nastale zbog promjene zakonskih propisa, ispravka pogrešaka u Excel datoteci, dodatnim kontrolama ili poboljšanjima obrasca.
A3: Verzija | B3: Opis promjene u odnosu na prethodnu verziju
A4: 2.0.0. | B4: Svi obrasci proračuna i proračunskih korisnika objedinjeni su zbog potreba kontrola između obrazaca te lakšu kontrolu obveznosti (koja razina je obvezna podnositi koji obrazac).
A5: 2.0.0. | B5: Uvedena su polja "Datum od" i "Datum do" svakog pojedinog razdoblja kako bi se moglo posebno prepoznati obveznike koji nisu poslovali cijelo navedeno razdoblje (novootvoreni obveznici i obveznici koji zbog statusnih promjena gube pravnu osobnost).
A6: 2.0.0. | B6: Programskim kućama koje izrađuju aplikacije za punjenje obrazaca olakšan je postao jer se za sve obrasce i sve vrste posla unosi jedno jedinstveno zaglavlje, u svakom obrascu AOP oznake upisane su u koloni "C", dok svi iznosi (bez obzira na broj kolona) počinju u koloni "D", u 12. retku. Od ovoga se više neće odstupati osim ako ne bude nikakve druge mogućnosti da se unesu potrebne promjene.
A7: 2.0.1. | B7: Popravljeni su pogrešni naslovi nekih obrazaca. Dodana je kontrola da se u poštanski broj ne može unijeti nešto što nije broj između 10000 i 60000. Popravljena je kontrola upozorenja na S-PR-RAS obrascu koja je krivo izračunavala razradu konta 32 (kontrola pod rednim brojem 90)
A8: 2.0.2. | B8: Ispravljena kontrola u PR-RAS obrascu koja je AOP 010 zbrajala u AOP oznaku 003, umjesto da je oduzimala od sume svih ostalih AOP oznaka.
A9: 2.0.3. | B9: Ispravljena kontrola upozorenja na broj zaposlenih u PR-RAS obrascu preko 1000 kada to nije. Ispravljena kontrola koja je za polugodište javljala pogrešku da se za razinu 23 ne predaje obrazac Obveze. Svi obveznici (ne više samo oni kojima je razdjel ujedno i glava) razina 11 i 12 trebaju upisati razdjel, a ostali obveznici ne mogu.
A10: 2.0.3. | B10: Upisom razine 11 ili 12 u zaglavlju obrasca obveze automatski se pojavljuje oznaka da je obrazac mjesečni, a ne kvartalni. Promijenjeni su opisi obveznosti predaje prema razinama, grupirani na mjesečnu obvezu, kvartalnu, polugodišnju i godišnju. Na obrazac obveze, na dnu obrasca dodana crta za potpis zakonskog predstavnika (za dostavu obrasca nadležnim ministarstvima).
A11: 2.0.3. | B11: Proširene upute tekstom o upotrebi ove Excel datoteke za dostavu podataka nadležnim ministarstvima ili za neke druge potrebe.
A12: 2.0.4. | B12: Popravljena kontrola broj 36 u PR-RAS-u koja je provjeravala pogrešne AOP pozicije. Popravljena kontrola koja je javljala pogrešku ako je bio popunjen polugodišnji obrazac NT za razine 22 i 23.
A13: 2.0.5. | B13: Popravljena kontrola broj 9 u kojoj je za razinu 23 traženo da bude upisan i obrazac NT, a stvarno ne treba biti.
A14: 2.0.6. | B14: Popravljene kontrole broj 7 i 12 (obveznost predaje po razinama 13 i 42) te kontrola 63 - iznosi planiranog za razdoblje i planiranog za cijelu godinu u obrascu PR-RAS moraju biti identični kod godišnjeg obrasca, a za ostala razdoblja iznos planirano za razdoblje mora biti manji ili jednak planiranom za cijelu godinu.
A15: 2.0.7. | B15: Popravljena je kontrola broj 63 koja govori da planirano za razdoblje ne može biti veće od planiranoga za godinu. Iznimno, ovakvo stanje dopušteno je kod sumarnih AOP oznaka u kojima se neka vrijednost oduzima (primjerice AOP oznaka 222 ili 223) jer se računaju automatski.
A16: 2.0.8. | B16: Popravljene kontrole popunjenosti obrazaca za razine 13, 31, 41 i 42 na godišnjoj razini. Dodan je razdjel 095, Izbrisan je razdjel 065 (sa starim nazivom, ostao samo s novim), promijenjen opis kontrole P-VRIO obrasca (naglašavanje da se oznaka DA ili NE na referentnoj stranici mora upisati ručno).
A17: 2.0.9. | B17: Dodana mogućnost odabira svih razdoblje za 2010. godinu, dodani novi razdjeli za 2010.
A18: 2.1.0. | B18: Popravljen je prikaz datuma od i do na nekim obrascima koji se je poremetio ubacivanjem novih razdoblja za 2010.
A19: 2.1.0. | B19: Dorađena su poslovna pravila o popunjavanju obrasca, kolona planirano za razdoblje i planirano ukupno popunjavaju se samo na trećoj razini kontnog plana, a ne na četvrtoj kako je bilo ranije, te je obrazac dorađen u skladu s tim pravilom.
A20: 2.5.0. | B20: Omogućen je unos samo obrasca Obveze (mjesečne) za razdoblja siječanj i veljaču 2011. Ostali obrasci će se mijenjati i čekaju se izmjene. Zbog toga je Obveze dobio novu šifru vrste posla.
A21: 2.9.0. | B21: Omogućen unos obrazaca za I. kvartal 2011. godine - nepotpune kontrole.
A22: 2.9.1. | B22: Omogućen unos obrasca Obveze za travanj 2011. godine
A23: 4.0.0. | B23: Novi obrazac od 1.1.2015. - prva verzija obrasca, omogućen samo unos mjesečnog obrasca Obveze za siječanj 2015. godine
A24: 4.0.1. | B24: Omogućen unos mjesečnih obveza za veljaču. Ostale vrste obrazaca još nemaju kontrole.
A25: 4.0.2. | B25: Ugrađene su sve kontrole za sve obrasce. Omogućen je unos za sva razdoblja u 2015. godini. Dodan je opis novosti i promjena kod predaje u Upute. Ažuriran je popis razdjela za 2015. godinu.
A26: 4.0.3. | B26: Ispravljena kontrola broj 23. Pogrešno je upozoravala na AOP 646, umjesto na 649.
A27: 4.0.4. | B27: Kontrola upozorenja broj 156 je obrisana jer više nema u dodatnim podacima razrade koja je bila prije za ovaj konto. Ispravljena je kontrola 147 koja nije dopuštala da razina 11 ima upisan broj zaposlenih u tijelima s obzirom da nadležna ministarstva imaju te zaposlene, a oni također predaju izvještaje razine 11. Ispravljena je kontrola 58. koja nije dobro radila na koloni tekuće godine. Ispravljena je automatska suma na AOP oznaci 224 u koloni prethodne godine u Bilanci. Unesene su sitne ispravke "tipfelera" u nekim kontrolama.
A28: 4.0.5. | B28: Opis AOP oznake 639 je ispravljen, glasio je "Rashodi budućih razdoblja", novi opis je "Unaprijed plaćeni rashodi budućih razdoblja". Ispravljena pogrešna formula na AOP-u 407. Ispravljena je pogrešna formula u kontroli 028.
A29: 4.0.6. | B29: Ispravljene su pogreške u obrascu Obveze zbog kojih se podaci pod AOP oznakama 095 do 101 nisu uopće učitavali u aplikaciju. Iz tog razloga neće se više moći učitati bilo koji obrazac iz verzije niže od 4.0.6. Dodane su nova kontrola broj 52 i 53 (svim bivšim kontrolama iza 51 povećan je broj za 2). Ispravljen je opis što se sumira pod AOP oznakama 405 i 406. Formula je bila dobra. Ispravljen je i opis i formula za sumu na AOP oznaci 407. Proširena je lista AOP-a koji nesmiju biti popunjeni za razinu 22 i 23 - dodani su AOP-i 132 i 133 u kontrolu 153 (bivša kontrola 151). Adresa e-pošte za kontakt u zaglavlju stavljena je kao obvezan podatak zbog česte potrebe kontaktiranja obveznika, a koje je nemoguće kontaktirati putem telefona.
A30: 4.0.7. | B30: Kontrola 153 podijeljena je na dvije kontrole, jer se zabrane popunjavanja nekih AOP pozicija razlikuju kod razine 22 i 23. Za razinu 23 dopušteno je popunjavanje AOP pozicija 128 do 133.
A31: 4.0.8. | B31: Omogućen je unos mjesečnih Obveza i za razinu 11. Nova Bilanca za 2015. još nije ugrađena u obrazac.
A32: 4.0.9. | B32: Ispravljena je kontrola broj 66 koja je pogrešno glasila "AOP 423 mora biti jedna sumi AOP-a 496+498", ispravno je da treba glasiti "AOP423 mora biti jednak sumi AOP-a 496 do 498", tj. i AOP oznaka 497 ulazi u kontrolu sume. Ispravljen je i opus i formula za ovu kontrolu.
A33: 4.1.0. | B33: Ugrađena je nova Bilanca koja vrijedi od 2015. godine. Kontrole 15 i 16 su dorađene i spojene u jednu (kontrola 15, a stara kontrola 16 je obrisana te je broj kontrola manji). S proširenjem broja AOP oznaka u dodatnim podacima u Bilanci promijenjeni su opisi kontrola 224 do 232 u Bilanci, tj. kontrole se nisu mijenjali ali su opisi prilagođeni novim AOP oznakama. Dodano je 7 novih kontrola na obrazac Bilancu. Kako se obrazac Bilanca promijenio, dodana mu je nova (stara) šifra vrste posla 152.
A34: 4.2.0. | B34: Ukinuti su mjesečni obrasci Obveze za sve vrste obveznika. Izmjijenjen je opis AOP oznake 639 u PR-RAS-u te AOP 001 u obrascu Obveze. Obrazac obveze predaje se za cijelo razdoblje, od početka godine do datuma izvještavanja, ne samo za kvartal (tj. obveze na dan 30.06 predaju se za razdoblje 1.1. do 30.06. ne više za razdoblje 1.4. do 30.06.). Izmijenjena je kontrola 153. Dorađena je kontrola broj 16. Promijenjena je obveznost po razdobljima i razinama u odnosu na prethodnu godinu. U kontrole 148 do 156 dopuštene su iznimke na neke AOP oznake te za neke korisnike.
A35: 4.2.1. | B35: Ispravljen je opis vrste posla na samom radnom listu izvještaja o Obvezama (VP 159, a ne VP 160). Ispravljen je datum koji se prikazuje na izvještaju o obvezama, nije od 1. u mjesecu do kraja mjesece već od 1. siječnja do kraja razdoblja jer više mjesečnih obveza nema. Ova izmjena ne utječe na funkcionalnost obrasca, napravljena je samo iz razloga da ne zbunjuje korisnike, tj. da ne smatraju kako se radi o mjesečnom izvještaju obveze. Ako ste već izvještaj ispunili u verziji 4.2.0. nije potrebno prebacivati u novu verziju.
A36: 4.2.2. | B36: Dodan komentar u obrazac Obveze na AOP oznaku 001. Ispravljen pogrešan opis AOP oznake 639. Ispravljena kontrola 13 koja je pogreškom uspoređivala AOP 639 iz PR-RAS obrasca i 159 iz Bilance. Ispravno je da je uspoređuje sa AOP oznakom 158 iz Bilance.
A37: 4.2.3. | B37: Ispravljena je kontrola broj 16 koja nije uzimala u obzir iznos prikazan na AOP oznaci 234 PR-RAS-a. Ispravljen opis kontrole 13 koji je kod zadnje izmjene greškom ostao 159. Obveznici koji nisu imali popunjen iznos na AOP 234 ni u jednoj godini mogu predati i na starijoj verziji obrasca jer im ova kontrola neće javljati pogrešku.
A38: 5.0.1. | B38: Nova verzija obrasca za 2017. Promijenio se broj AOP oznaka kod 3 obrasca pa su svi obrasci i kontrole novi.
A39: 5.0.2. | B39: Dorađene kontrole izuzetaka koji mogu imati popunjen AOP 031 (a time i 024) za razinu 11, tj. kontrola 154 je podijeljena na 154. i 155., a kontrola 157 na 158 i 159, pa se i broj kontrola povećao za 2. Ispravljena kontrola 14. umjesto AOP-a 159 kontrolira se AOP 158. Popravljene neke kontrole koje ne dopuštaju da neka razina ima popunjen neki određeni AOP.
A40: 5.0.3. | B40: Na listu AOP oznaka koje ne mogu biti popunjene kod razine 23 dodane su AOP oznake: 069 do 073 i 241 do 245. Obrazac eventualno popunjen u verziji 5.0.2. može se predati ako je zadovoljen ovaj uvjet da za razinu 23 nisu popunjene te AOP oznake. Ispravljena kontrola 172, greškom je javljala pogrešku ako je popunjen AOP 695, a ne 685.
A41: 5.0.4. | B41: Ispravljene kontrole 202 i 203 koje su provjeravale pogrešne AOP oznake u koloni tekuće godine. Ponovo je ispravljena kontrola 177, tj. isključen je AOP 246 iz liste onih koji ne mogu biti popunjeni. Popravljena je kontrola 168 koja se javljala kod razine 12 umjesto kod razine 13. Kontrole na razinu 12 nisu radile ako je bila upisana razina 11 i kad je izvještaj imao oznaku da vrijedi i kao konsolidirani.Ispravljena je kontrola 205 koja je greškom uspoređivala AOP-e 210 i 729, a treba 211 i 729.
